Body Name,Organisation Code,Service Lable,Service Code,Organisation Unit,Expenditure Category,Expenditure Code,Narrative,Date,Transaction Number,Net Amount,Supplier Name
Ealing Council,http://opendatacommunities.org/id/london-borough-council/ealing,CHILDREN & ADULTS,1,SAFEGUARDING & SUPPORT - CIC,CHILDRENS SERVICES -ELIGIBLE CHILDREN ACCOMMODATIO,4281,GROSS AMOUNT,30/06/2019,40872632,13714.2,ERIC PATRICK CARE LTD
Ealing Council,http://opendatacommunities.org/id/london-borough-council/ealing,CHILDREN & ADULTS,1,SAFEGUARDING & SUPPORT - CIC,CHILDRENS SERVICES -ELIGIBLE CHILDREN ACCOMMODATIO,4281,,31/05/2019,40872634,14171.34,ERIC PATRICK CARE LTD
Ealing Council,http://opendatacommunities.org/id/london-borough-council/ealing,CHILDREN & ADULTS,1,SAFEGUARDING & SUPPORT - CIC,CHILDRENS SERVICES -ELIGIBLE CHILDREN ACCOMMODATIO,4281,,30/06/2019,40872641,4426.8,ERIC PATRICK CARE LTD
Ealing Council,http://opendatacommunities.org/id/london-borough-council/ealing,CHILDREN & ADULTS,1,SAFEGUARDING & SUPPORT - CIC,CHILDRENS SERVICES -ELIGIBLE CHILDREN ACCOMMODATIO,4281,,31/05/2019,40870535,5712.86,JORDAN XAVIER LTD
Ealing Council,http://opendatacommunities.org/id/london-borough-council/ealing,CHILDREN & ADULTS,1,SAFEGUARDING & SUPPORT - CIC,CHILDRENS SERVICES -ELIGIBLE CHILDREN ACCOMMODATIO,4281,,31/05/2019,40870535,1328.57,JORDAN XAVIER LTD
Ealing Council,http://opendatacommunities.org/id/london-borough-council/ealing,CHILDREN & ADULTS,1,SAFEGUARDING & SUPPORT - CIC,CHILDRENS SERVICES -ELIGIBLE CHILDREN ACCOMMODATIO,4281,,13/06/2019,40871106,1124.64,WEST LONDON YMCA
Ealing Council,http://opendatacommunities.org/id/london-borough-council/ealing,CHILDREN & ADULTS,1,SAFEGUARDING & SUPPORT - CIC,CHILDRENS SERVICES -ELIGIBLE CHILDREN ACCOMMODATIO,4281,,24/04/2019,40869357,683.23,WEST LONDON YMCA
Ealing Council,http://opendatacommunities.org/id/london-borough-council/ealing,CHILDREN & ADULTS,1,SAFEGUARDING & SUPPORT - CIC,CHILDRENS SERVICES -ELIGIBLE CHILDREN ACCOMMODATIO,4281,,31/03/2019,40869603,1476,WEST LONDON YMCA
Ealing Council,http://opendatacommunities.org/id/london-borough-council/ealing,CHILDREN & ADULTS,1,SAFEGUARDING & SUPPORT - CIC,CHILDRENS SERVICES -ELIGIBLE CHILDREN ACCOMMODATIO,4281,,31/03/2019,40868702,2105.21,WEST LONDON YMCA
Ealing Council,http://opendatacommunities.org/id/london-borough-council/ealing,CHILDREN & ADULTS,1,SAFEGUARDING & SUPPORT - CIC,CHILDRENS SERVICES -ELIGIBLE CHILDREN ACCOMMODATIO,4281,,30/05/2019,40868323,1665.23,WEST LONDON YMCA
Ealing Council,http://opendatacommunities.org/id/london-borough-council/ealing,CHILDREN & ADULTS,1,SAFEGUARDING & SUPPORT - CIC,CHILDRENS SERVICES -ELIGIBLE CHILDREN ACCOMMODATIO,4281,,30/05/2019,40868326,1579.63,WEST LONDON YMCA
Ealing Council,http://opendatacommunities.org/id/london-borough-council/ealing,CHILDREN & ADULTS,1,SAFEGUARDING & SUPPORT - CIC,CHILDRENS SERVICES -ELIGIBLE CHILDREN ACCOMMODATIO,4281,,01/04/2019,40871283,3896.4,CAPSTONE FOSTER CARE LTD
Ealing Council,http://opendatacommunities.org/id/london-borough-council/ealing,CHILDREN & ADULTS,1,SAFEGUARDING & SUPPORT - CIC,CHILDRENS SERVICES -ELIGIBLE CHILDREN ACCOMMODATIO,4281,,01/05/2019,40871284,4026.28,CAPSTONE FOSTER CARE LTD
Ealing Council,http://opendatacommunities.org/id/london-borough-council/ealing,CHILDREN & ADULTS,1,SAFEGUARDING & SUPPORT - CIC,CHILDRENS SERVICES -ELIGIBLE CHILDREN ACCOMMODATIO,4281,,13/06/2019,40871103,1247.48,WEST LONDON YMCA
Ealing Council,http://opendatacommunities.org/id/london-borough-council/ealing,CHILDREN & ADULTS,1,SAFEGUARDING & SUPPORT - CIC,CHILDRENS SERVICES -ELIGIBLE CHILDREN ACCOMMODATIO,4281,,13/06/2019,40871104,1124.64,WEST LONDON YMCA
Ealing Council,http://opendatacommunities.org/id/london-borough-council/ealing,CHILDREN & ADULTS,1,SAFEGUARDING & SUPPORT - CIC,CHILDRENS SERVICES -ELIGIBLE CHILDREN ACCOMMODATIO,4281,,30/05/2019,40868741,1999.72,WEST LONDON YMCA
Ealing Council,http://opendatacommunities.org/id/london-borough-council/ealing,CHILDREN & ADULTS,1,SAFEGUARDING & SUPPORT - CIC,CHILDRENS SERVICES -ELIGIBLE CHILDREN ACCOMMODATIO,4281,,30/05/2019,40868747,1523.43,WEST LONDON YMCA
Ealing Council,http://opendatacommunities.org/id/london-borough-council/ealing,CHILDREN & ADULTS,1,SAFEGUARDING & SUPPORT - CIC,CHILDRENS SERVICES -ELIGIBLE CHILDREN ACCOMMODATIO,4281,,30/05/2019,40868748,1523.43,WEST LONDON YMCA
Ealing Council,http://opendatacommunities.org/id/london-borough-council/ealing,CHILDREN & ADULTS,1,SAFEGUARDING & SUPPORT - CIC,CHILDRENS SERVICES -ELIGIBLE CHILDREN ACCOMMODATIO,4281,,10/06/2019,40869649,725,RENAISSANCE SUPPORTED HOUSING LTD
Ealing Council,http://opendatacommunities.org/id/london-borough-council/ealing,CHILDREN & ADULTS,1,SAFEGUARDING & SUPPORT - CIC,CHILDRENS SERVICES -ELIGIBLE CHILDREN ACCOMMODATIO,4281,,31/05/2019,40869659,1572.01,ATLANTIC LODGE (HOUSING) LTD
Ealing Council,http://opendatacommunities.org/id/london-borough-council/ealing,CHILDREN & ADULTS,1,SAFEGUARDING & SUPPORT - CIC,CHILDRENS SERVICES -ELIGIBLE CHILDREN ACCOMMODATIO,4281,,30/05/2019,40868324,706,WEST LONDON YMCA
Ealing Council,http://opendatacommunities.org/id/london-borough-council/ealing,CHILDREN & ADULTS,1,SAFEGUARDING & SUPPORT - CIC,CHILDRENS SERVICES -ELIGIBLE CHILDREN ACCOMMODATIO,4281,,30/05/2019,40868351,1091.29,WEST LONDON YMCA
Ealing Council,http://opendatacommunities.org/id/london-borough-council/ealing,CHILDREN & ADULTS,1,SAFEGUARDING & SUPPORT - CIC,CHILDRENS SERVICES -ELIGIBLE CHILDREN ACCOMMODATIO,4281,,30/05/2019,40868353,1534.15,WEST LONDON YMCA
Ealing Council,http://opendatacommunities.org/id/london-borough-council/ealing,CHILDREN & ADULTS,1,SAFEGUARDING & SUPPORT - CIC,CHILDRENS SERVICES -ELIGIBLE CHILDREN ACCOMMODATIO,4281,,30/05/2019,40868322,1513.42,WEST LONDON YMCA
Ealing Council,http://opendatacommunities.org/id/london-borough-council/ealing,CHILDREN & ADULTS,1,SAFEGUARDING & SUPPORT - CIC,CHILDRENS SERVICES -ELIGIBLE CHILDREN ACCOMMODATIO,4281,,30/05/2019,40868330,781.12,WEST LONDON YMCA
Ealing Council,http://opendatacommunities.org/id/london-borough-council/ealing,CHILDREN & ADULTS,1,SAFEGUARDING & SUPPORT - CIC,CHILDRENS SERVICES -ELIGIBLE CHILDREN ACCOMMODATIO,4281,,23/07/2019,22746189,262.04,REDACTED SENSITIVE SUPPLIER
Ealing Council,http://opendatacommunities.org/id/london-borough-council/ealing,CHILDREN & ADULTS,1,SAFEGUARDING & SUPPORT - CIC,CHILDRENS SERVICES -ELIGIBLE CHILDREN ACCOMMODATIO,4281,,23/07/2019,22746099,253.1,REDACTED SENSITIVE SUPPLIER
Ealing Council,http://opendatacommunities.org/id/london-borough-council/ealing,CHILDREN & ADULTS,1,SAFEGUARDING & SUPPORT - CIC,CHILDRENS SERVICES -ELIGIBLE CHILDREN ACCOMMODATIO,4281,,23/07/2019,22746237,262.04,REDACTED SENSITIVE SUPPLIER
Ealing Council,http://opendatacommunities.org/id/london-borough-council/ealing,CHILDREN & ADULTS,1,SAFEGUARDING & SUPPORT - CIC,CHILDRENS SERVICES -ELIGIBLE CHILDREN ACCOMMODATIO,4281,,23/07/2019,22746237,700,REDACTED SENSITIVE SUPPLIER
Ealing Council,http://opendatacommunities.org/id/london-borough-council/ealing,CHILDREN & ADULTS,1,SAFEGUARDING & SUPPORT - CIC,CHILDRENS SERVICES -ELIGIBLE CHILDREN ACCOMMODATIO,4281,,03/07/2019,40869899,3107.1,YOUNG LONDON TODAY
Ealing Council,http://opendatacommunities.org/id/london-borough-council/ealing,CHILDREN & ADULTS,1,SAFEGUARDING & SUPPORT - CIC,CHILDRENS SERVICES -ELIGIBLE CHILDREN ACCOMMODATIO,4281,,30/05/2019,40868349,1114.72,WEST LONDON YMCA
Ealing Council,http://opendatacommunities.org/id/london-borough-council/ealing,CHILDREN & ADULTS,1,SAFEGUARDING & SUPPORT - CIC,CHILDRENS SERVICES -ELIGIBLE CHILDREN OTHER COSTS,4282,,23/07/2019,22745999,850,REDACTED SENSITIVE SUPPLIER
Ealing Council,http://opendatacommunities.org/id/london-borough-council/ealing,CHILDREN & ADULTS,1,SAFEGUARDING & SUPPORT - CIC,CHILDRENS SERVICES -ELIGIBLE CHILDREN OTHER COSTS,4282,,23/07/2019,22745999,2000,REDACTED SENSITIVE SUPPLIER
Ealing Council,http://opendatacommunities.org/id/london-borough-council/ealing,CHILDREN & ADULTS,1,SAFEGUARDING & SUPPORT - CIC,CHILDRENS SERVICES -ELIGIBLE CHILDREN ACCOMMODATIO,4281,,23/07/2019,22746328,253.1,REDACTED SENSITIVE SUPPLIER
Ealing Council,http://opendatacommunities.org/id/london-borough-council/ealing,CHILDREN & ADULTS,1,SAFEGUARDING & SUPPORT - CIC,CHILDRENS SERVICES -ELIGIBLE CHILDREN ACCOMMODATIO,4281,,23/07/2019,22746307,262.04,REDACTED SENSITIVE SUPPLIER
Ealing Council,http://opendatacommunities.org/id/london-borough-council/ealing,CHILDREN & ADULTS,1,SAFEGUARDING & SUPPORT - CIC,CHILDRENS SERVICES -ELIGIBLE CHILDREN ACCOMMODATIO,4281,,23/07/2019,22746319,256.9,REDACTED SENSITIVE SUPPLIER
Ealing Council,http://opendatacommunities.org/id/london-borough-council/ealing,CHILDREN & ADULTS,1,SAFEGUARDING & SUPPORT - CIC,CHILDRENS SERVICES -ELIGIBLE CHILDREN ACCOMMODATIO,4281,,23/07/2019,22746322,253.1,REDACTED SENSITIVE SUPPLIER
Ealing Council,http://opendatacommunities.org/id/london-borough-council/ealing,CHILDREN & ADULTS,1,SAFEGUARDING & SUPPORT - CIC,CHILDRENS SERVICES -ELIGIBLE CHILDREN OTHER COSTS,4282,,05/06/2019,40869272,289.5,NET PEX LTD
Ealing Council,http://opendatacommunities.org/id/london-borough-council/ealing,CHILDREN & ADULTS,1,SAFEGUARDING & SUPPORT - CIC,CHILDRENS SERVICES -ELIGIBLE CHILDREN ACCOMMODATIO,4281,,31/05/2019,40868506,1650.13,WEST LONDON YMCA
Ealing Council,http://opendatacommunities.org/id/london-borough-council/ealing,CHILDREN & ADULTS,1,SAFEGUARDING & SUPPORT - CIC,CHILDRENS SERVICES -ELIGIBLE CHILDREN ACCOMMODATIO,4281,,31/05/2019,40868923,1650.13,WEST LONDON YMCA
Ealing Council,http://opendatacommunities.org/id/london-borough-council/ealing,CHILDREN & ADULTS,1,SAFEGUARDING & SUPPORT - CIC,CHILDRENS SERVICES -ELIGIBLE CHILDREN ACCOMMODATIO,4281,,30/05/2019,40868743,2123.28,WEST LONDON YMCA
Ealing Council,http://opendatacommunities.org/id/london-borough-council/ealing,CHILDREN & ADULTS,1,SAFEGUARDING & SUPPORT - CIC,CHILDRENS SERVICES -ELIGIBLE CHILDREN ACCOMMODATIO,4281,,23/07/2019,22746211,253.1,REDACTED SENSITIVE SUPPLIER
Ealing Council,http://opendatacommunities.org/id/london-borough-council/ealing,CHILDREN & ADULTS,1,SAFEGUARDING & SUPPORT - CIC,CHILDRENS SERVICES -ELIGIBLE CHILDREN ACCOMMODATIO,4281,,31/05/2019,40869021,4433,GREATER LONDON FOSTERING (GLF)
Ealing Council,http://opendatacommunities.org/id/london-borough-council/ealing,CHILDREN & ADULTS,1,SAFEGUARDING & SUPPORT - CIC,CHILDRENS SERVICES -ELIGIBLE CHILDREN ACCOMMODATIO,4281,,13/06/2019,40871101,1247.48,WEST LONDON YMCA
Ealing Council,http://opendatacommunities.org/id/london-borough-council/ealing,CHILDREN & ADULTS,1,SAFEGUARDING & SUPPORT - CIC,CHILDRENS SERVICES -ELIGIBLE CHILDREN ACCOMMODATIO,4281,,13/06/2019,40871102,1124.64,WEST LONDON YMCA
Ealing Council,http://opendatacommunities.org/id/london-borough-council/ealing,CHILDREN & ADULTS,1,SAFEGUARDING & SUPPORT - CIC,CHILDRENS SERVICES -ELIGIBLE CHILDREN ACCOMMODATIO,4281,,31/05/2019,40868367,620.31,WEST LONDON YMCA
Ealing Council,http://opendatacommunities.org/id/london-borough-council/ealing,CHILDREN & ADULTS,1,SAFEGUARDING & SUPPORT - CIC,CHILDRENS SERVICES -ELIGIBLE CHILDREN ACCOMMODATIO,4281,,05/06/2019,40869271,4207.32,NET PEX LTD
Ealing Council,http://opendatacommunities.org/id/london-borough-council/ealing,CHILDREN & ADULTS,1,SAFEGUARDING & SUPPORT - CIC,CHILDRENS SERVICES -ELIGIBLE CHILDREN ACCOMMODATIO,4281,,05/06/2019,40869273,5070.67,NET PEX LTD
Ealing Council,http://opendatacommunities.org/id/london-borough-council/ealing,CHILDREN & ADULTS,1,SAFEGUARDING & SUPPORT - CIC,CHILDRENS SERVICES -ELIGIBLE CHILDREN ACCOMMODATIO,4281,,05/06/2019,40869173,5100,PARALLEL CARE LTD
Ealing Council,http://opendatacommunities.org/id/london-borough-council/ealing,CHILDREN & ADULTS,1,SAFEGUARDING & SUPPORT - CIC,CHILDRENS SERVICES -ELIGIBLE CHILDREN ACCOMMODATIO,4281,,05/06/2019,40869267,3963.66,NET PEX LTD
Ealing Council,http://opendatacommunities.org/id/london-borough-council/ealing,CHILDREN & ADULTS,1,SAFEGUARDING & SUPPORT - CIC,CHILDRENS SERVICES -ELIGIBLE CHILDREN ACCOMMODATIO,4281,,31/05/2019,40869016,1690.74,GREATER LONDON FOSTERING (GLF)
Ealing Council,http://opendatacommunities.org/id/london-borough-council/ealing,CHILDREN & ADULTS,1,SAFEGUARDING & SUPPORT - CIC,CHILDRENS SERVICES -ELIGIBLE CHILDREN ACCOMMODATIO,4281,,31/05/2019,40869017,1690.74,GREATER LONDON FOSTERING (GLF)
Ealing Council,http://opendatacommunities.org/id/london-borough-council/ealing,CHILDREN & ADULTS,1,SAFEGUARDING & SUPPORT - CIC,CHILDRENS SERVICES -ELIGIBLE CHILDREN ACCOMMODATIO,4281,,05/06/2019,40869261,1956.46,NET PEX LTD
Ealing Council,http://opendatacommunities.org/id/london-borough-council/ealing,CHILDREN & ADULTS,1,SAFEGUARDING & SUPPORT - CIC,CHILDRENS SERVICES -ELIGIBLE CHILDREN ACCOMMODATIO,4281,,02/07/2019,22739696,700,REDACTED SENSITIVE SUPPLIER
Ealing Council,http://opendatacommunities.org/id/london-borough-council/ealing,CHILDREN & ADULTS,1,SAFEGUARDING & SUPPORT - CIC,CHILDRENS SERVICES -ELIGIBLE CHILDREN ACCOMMODATIO,4281,,02/07/2019,22739779,256.9,REDACTED SENSITIVE SUPPLIER
Ealing Council,http://opendatacommunities.org/id/london-borough-council/ealing,CHILDREN & ADULTS,1,SAFEGUARDING & SUPPORT - CIC,CHILDRENS SERVICES -ELIGIBLE CHILDREN ACCOMMODATIO,4281,,02/07/2019,22739782,253.1,REDACTED SENSITIVE SUPPLIER
Ealing Council,http://opendatacommunities.org/id/london-borough-council/ealing,CHILDREN & ADULTS,1,SAFEGUARDING & SUPPORT - CIC,CHILDRENS SERVICES -ELIGIBLE CHILDREN ACCOMMODATIO,4281,,28/05/2019,40870086,428.58,ROUTE TO TRANSITION LTD
Ealing Council,http://opendatacommunities.org/id/london-borough-council/ealing,CHILDREN & ADULTS,1,SAFEGUARDING & SUPPORT - CIC,CHILDRENS SERVICES -ELIGIBLE CHILDREN ACCOMMODATIO,4281,,12/06/2019,40870493,2034.28,MORE THAN CARE LTD T/A THE CARE ASSOCIATES
Ealing Council,http://opendatacommunities.org/id/london-borough-council/ealing,CHILDREN & ADULTS,1,SAFEGUARDING & SUPPORT - CIC,CHILDRENS SERVICES -ELIGIBLE CHILDREN ACCOMMODATIO,4281,,12/06/2019,40870501,1505.71,MORE THAN CARE LTD T/A THE CARE ASSOCIATES
Ealing Council,http://opendatacommunities.org/id/london-borough-council/ealing,CHILDREN & ADULTS,1,SAFEGUARDING & SUPPORT - CIC,CHILDRENS SERVICES -ELIGIBLE CHILDREN ACCOMMODATIO,4281,,30/04/2019,40868432,3133.21,STEP AHEAD SERVICES LTD
Ealing Council,http://opendatacommunities.org/id/london-borough-council/ealing,CHILDREN & ADULTS,1,SAFEGUARDING & SUPPORT - CIC,CHILDRENS SERVICES -ELIGIBLE CHILDREN ACCOMMODATIO,4281,,05/04/2019,40868697,2704.2,PARALLEL CARE LTD
Ealing Council,http://opendatacommunities.org/id/london-borough-council/ealing,CHILDREN & ADULTS,1,SAFEGUARDING & SUPPORT - CIC,CHILDRENS SERVICES -ELIGIBLE CHILDREN ACCOMMODATIO,4281,,02/07/2019,22739768,262.04,REDACTED SENSITIVE SUPPLIER
Ealing Council,http://opendatacommunities.org/id/london-borough-council/ealing,CHILDREN & ADULTS,1,SAFEGUARDING & SUPPORT - CIC,CHILDRENS SERVICES -ELIGIBLE CHILDREN ACCOMMODATIO,4281,,02/07/2019,22739789,253.1,REDACTED SENSITIVE SUPPLIER
Ealing Council,http://opendatacommunities.org/id/london-borough-council/ealing,CHILDREN & ADULTS,1,SAFEGUARDING & SUPPORT - CIC,CHILDRENS SERVICES -ELIGIBLE CHILDREN ACCOMMODATIO,4281,,02/07/2019,22739648,262.04,REDACTED SENSITIVE SUPPLIER
Ealing Council,http://opendatacommunities.org/id/london-borough-council/ealing,CHILDREN & ADULTS,1,SAFEGUARDING & SUPPORT - CIC,CHILDRENS SERVICES -ELIGIBLE CHILDREN ACCOMMODATIO,4281,,02/07/2019,22739696,262.04,REDACTED SENSITIVE SUPPLIER
Ealing Council,http://opendatacommunities.org/id/london-borough-council/ealing,CHILDREN & ADULTS,1,SAFEGUARDING & SUPPORT - CIC,CHILDRENS SERVICES -ELIGIBLE CHILDREN ACCOMMODATIO,4281,,30/04/2019,40869324,1800,ASPHALEIA LIMITED
Ealing Council,http://opendatacommunities.org/id/london-borough-council/ealing,CHILDREN & ADULTS,1,SAFEGUARDING & SUPPORT - CIC,CHILDRENS SERVICES -ELIGIBLE CHILDREN OTHER COSTS,4282,,31/05/2019,40872350,256.37,NEST CARE HOMES LTD
Ealing Council,http://opendatacommunities.org/id/london-borough-council/ealing,CHILDREN & ADULTS,1,SAFEGUARDING & SUPPORT - CIC,CHILDRENS SERVICES -ELIGIBLE CHILDREN ACCOMMODATIO,4281,,27/05/2019,40868285,725,RENAISSANCE SUPPORTED HOUSING LTD
Ealing Council,http://opendatacommunities.org/id/london-borough-council/ealing,CHILDREN & ADULTS,1,SAFEGUARDING & SUPPORT - CIC,CHILDRENS SERVICES -ELIGIBLE CHILDREN OTHER COSTS,4282,,06/06/2019,40868405,45750,CORAL COMMUNITY ASSESSMENTS
Ealing Council,http://opendatacommunities.org/id/london-borough-council/ealing,CHILDREN & ADULTS,1,SAFEGUARDING & SUPPORT - CIC,CHILDRENS SERVICES -ELIGIBLE CHILDREN ACCOMMODATIO,4281,,05/04/2019,40868699,5100,PARALLEL CARE LTD
Ealing Council,http://opendatacommunities.org/id/london-borough-council/ealing,CHILDREN & ADULTS,1,SAFEGUARDING & SUPPORT - CIC,CHILDRENS SERVICES -ELIGIBLE CHILDREN ACCOMMODATIO,4281,,01/04/2019,40863335,1017.85,OPENMINDS SOCIAL CARE LTD
Ealing Council,http://opendatacommunities.org/id/london-borough-council/ealing,CHILDREN & ADULTS,1,SAFEGUARDING & SUPPORT - CIC,CHILDRENS SERVICES -ELIGIBLE CHILDREN ACCOMMODATIO,4281,,13/06/2019,40871132,1247.48,WEST LONDON YMCA
Ealing Council,http://opendatacommunities.org/id/london-borough-council/ealing,CHILDREN & ADULTS,1,SAFEGUARDING & SUPPORT - CIC,CHILDRENS SERVICES -ELIGIBLE CHILDREN ACCOMMODATIO,4281,,13/06/2019,40871133,891.83,WEST LONDON YMCA
Ealing Council,http://opendatacommunities.org/id/london-borough-council/ealing,CHILDREN & ADULTS,1,SAFEGUARDING & SUPPORT - CIC,CHILDRENS SERVICES -ELIGIBLE CHILDREN ACCOMMODATIO,4281,,25/04/2019,40871223,1551.51,WEST LONDON YMCA
Ealing Council,http://opendatacommunities.org/id/london-borough-council/ealing,CHILDREN & ADULTS,1,SAFEGUARDING & SUPPORT - CIC,CHILDRENS SERVICES -ELIGIBLE CHILDREN ACCOMMODATIO,4281,,30/05/2019,40871224,1008.87,WEST LONDON YMCA
Ealing Council,http://opendatacommunities.org/id/london-borough-council/ealing,CHILDREN & ADULTS,1,SAFEGUARDING & SUPPORT - CIC,CHILDRENS SERVICES -ELIGIBLE CHILDREN ACCOMMODATIO,4281,,26/05/2019,40868557,3240,PRIME CARING SERVICES LIMITED
Ealing Council,http://opendatacommunities.org/id/london-borough-council/ealing,CHILDREN & ADULTS,1,SAFEGUARDING & SUPPORT - CIC,CHILDRENS SERVICES -ELIGIBLE CHILDREN ACCOMMODATIO,4281,,03/06/2019,40868284,1325,RENAISSANCE SUPPORTED HOUSING LTD
Ealing Council,http://opendatacommunities.org/id/london-borough-council/ealing,CHILDREN & ADULTS,1,SAFEGUARDING & SUPPORT - CIC,CHILDRENS SERVICES -ELIGIBLE CHILDREN ACCOMMODATIO,4281,,16/07/2019,22742528,256.9,REDACTED SENSITIVE SUPPLIER
Ealing Council,http://opendatacommunities.org/id/london-borough-council/ealing,CHILDREN & ADULTS,1,SAFEGUARDING & SUPPORT - CIC,CHILDRENS SERVICES -ELIGIBLE CHILDREN ACCOMMODATIO,4281,,16/07/2019,22742531,253.1,REDACTED SENSITIVE SUPPLIER
Ealing Council,http://opendatacommunities.org/id/london-borough-council/ealing,CHILDREN & ADULTS,1,SAFEGUARDING & SUPPORT - CIC,CHILDRENS SERVICES -ELIGIBLE CHILDREN ACCOMMODATIO,4281,,02/07/2019,22739556,253.1,REDACTED SENSITIVE SUPPLIER
Ealing Council,http://opendatacommunities.org/id/london-borough-council/ealing,CHILDREN & ADULTS,1,SAFEGUARDING & SUPPORT - CIC,CHILDRENS SERVICES -ELIGIBLE CHILDREN ACCOMMODATIO,4281,,02/07/2019,22739669,253.1,REDACTED SENSITIVE SUPPLIER
Ealing Council,http://opendatacommunities.org/id/london-borough-council/ealing,CHILDREN & ADULTS,1,SAFEGUARDING & SUPPORT - CIC,CHILDRENS SERVICES -ELIGIBLE CHILDREN ACCOMMODATIO,4281,,30/03/2019,40872493,3240,PRIME CARING SERVICES LIMITED
Ealing Council,http://opendatacommunities.org/id/london-borough-council/ealing,CHILDREN & ADULTS,1,SAFEGUARDING & SUPPORT - CIC,CHILDRENS SERVICES -ELIGIBLE CHILDREN ACCOMMODATIO,4281,,22/06/2019,40872495,3240,PRIME CARING SERVICES LIMITED
Ealing Council,http://opendatacommunities.org/id/london-borough-council/ealing,CHILDREN & ADULTS,1,SAFEGUARDING & SUPPORT - CIC,CHILDRENS SERVICES -ELIGIBLE CHILDREN ACCOMMODATIO,4281,,16/07/2019,22742417,253.1,REDACTED SENSITIVE SUPPLIER
Ealing Council,http://opendatacommunities.org/id/london-borough-council/ealing,CAPITAL SCHEMES,K,ENVIRONMENT & LEISURE,CAPITAL - MINOR EQUIP./PLANT,7290,,01/07/2019,40868429,500,Sundry Supplier - Environment & Customer Services
Ealing Council,http://opendatacommunities.org/id/london-borough-council/ealing,CHILDREN & ADULTS,1,SAFEGUARDING & SUPP - BS &A&F,WATER,1140,,24/05/2019,40869785,507.53,AFFINITY FOR BUSINESS (RETAIL) LTD
Ealing Council,http://opendatacommunities.org/id/london-borough-council/ealing,CHILDREN & ADULTS,1,ADULT MENTAL HEALTH,DOMICILIARY CARE - BLOCK,4240,,04/07/2019,22740593,414.4,AMBER HOME CARERS LTD - T/A AMBER HOME CARERS
Ealing Council,http://opendatacommunities.org/id/london-borough-council/ealing,CHILDREN & ADULTS,1,ADULT MENTAL HEALTH,SUPPORTED LIVING,4236,,29/07/2019,22755215,2259.4,BEAUMONT ALEXIS HC LIMITED
Ealing Council,http://opendatacommunities.org/id/london-borough-council/ealing,CHILDREN & ADULTS,1,ADULT MENTAL HEALTH,NURSING HOMES EXTERNAL,4230,,29/07/2019,22755217,8025.6,APEX CARE HOMES LIMITED
Ealing Council,http://opendatacommunities.org/id/london-borough-council/ealing,CHILDREN & ADULTS,1,ADULT MENTAL HEALTH,DOMICILIARY CARE - BLOCK,4240,,11/07/2019,22741394,442.96,AVANT HEALTHCARE SERVICES LIMITED
Ealing Council,http://opendatacommunities.org/id/london-borough-council/ealing,CHILDREN & ADULTS,1,ADULT MENTAL HEALTH,DOMICILIARY CARE - BLOCK,4240,,11/07/2019,22741394,1106.84,AVANT HEALTHCARE SERVICES LIMITED
Ealing Council,http://opendatacommunities.org/id/london-borough-council/ealing,CHILDREN & ADULTS,1,ADULT MENTAL HEALTH,DOMICILIARY CARE - BLOCK,4240,,11/07/2019,22741394,3098.76,AVANT HEALTHCARE SERVICES LIMITED
Ealing Council,http://opendatacommunities.org/id/london-borough-council/ealing,CHILDREN & ADULTS,1,ADULT MENTAL HEALTH,DOMICILIARY CARE - BLOCK,4240,,09/07/2019,22741393,632.94,GENESIS RECRUITMENT AGENCY LTD
Ealing Council,http://opendatacommunities.org/id/london-borough-council/ealing,CHILDREN & ADULTS,1,ADULT MENTAL HEALTH,DOMICILIARY CARE - BLOCK,4240,,09/07/2019,22741393,669.43,GENESIS RECRUITMENT AGENCY LTD
Ealing Council,http://opendatacommunities.org/id/london-borough-council/ealing,CHILDREN & ADULTS,1,ADULT MENTAL HEALTH,DOMICILIARY CARE - BLOCK,4240,,09/07/2019,22741393,468.12,GENESIS RECRUITMENT AGENCY LTD
Ealing Council,http://opendatacommunities.org/id/london-borough-council/ealing,CHILDREN & ADULTS,1,ADULT MENTAL HEALTH,RESIDENTIAL HOMES EXTERNAL-INCOME,8780,,27/06/2019,22738880,-330.2,KORCARE LTD
Ealing Council,http://opendatacommunities.org/id/london-borough-council/ealing,CHILDREN & ADULTS,1,ADULT MENTAL HEALTH,SUPPORTED LIVNG-FEES & CHGS,8785,,27/06/2019,22738768,-537.8,SIMIKS CARE LTD
Ealing Council,http://opendatacommunities.org/id/london-borough-council/ealing,CHILDREN & ADULTS,1,ADULT MENTAL HEALTH,RESIDENTIAL HOMES EXTERNAL-INCOME,8780,,27/06/2019,22738761,-330.2,ASTER HEALTHCARE
Ealing Council,http://opendatacommunities.org/id/london-borough-council/ealing,CHILDREN & ADULTS,1,ADULT MENTAL HEALTH,NURSING HOMES EXTERNAL-INCOME,8781,,27/06/2019,22738737,-569.4,KENILWORTH NURSING HOME
Ealing Council,http://opendatacommunities.org/id/london-borough-council/ealing,CHILDREN & ADULTS,1,ADULT MENTAL HEALTH,NURSING HOMES EXTERNAL-INCOME,8781,,27/06/2019,22738795,-330.2,RAINBOW LODGE NURSING HOME
Ealing Council,http://opendatacommunities.org/id/london-borough-council/ealing,CHILDREN & ADULTS,1,ADULT MENTAL HEALTH,DOMICILIARY CARE - BLOCK,4240,,18/07/2019,22744711,488.07,THAMES HOMECARE SERVICE LTD
Ealing Council,http://opendatacommunities.org/id/london-borough-council/ealing,CHILDREN & ADULTS,1,ADULT MENTAL HEALTH,DIRECT PAYMENTS-INCOME,8787,,15/07/2019,22742007,-329.04,CARE IN FINANCE LTD
Ealing Council,http://opendatacommunities.org/id/london-borough-council/ealing,CHILDREN & ADULTS,1,ADULT MENTAL HEALTH,RESIDENTIAL HOMES EXTERNAL-INCOME,8780,,29/07/2019,22755152,-330.2,KORCARE LTD
Ealing Council,http://opendatacommunities.org/id/london-borough-council/ealing,CHILDREN & ADULTS,1,ADULT MENTAL HEALTH,NURSING HOMES EXTERNAL-INCOME,8781,,29/07/2019,22755011,-569.4,KENILWORTH NURSING HOME
Ealing Council,http://opendatacommunities.org/id/london-borough-council/ealing,CHILDREN & ADULTS,1,ADULT MENTAL HEALTH,RESIDENTIAL HOMES EXTERNAL-INCOME,8780,,29/07/2019,22755034,-330.2,ASTER HEALTHCARE
Ealing Council,http://opendatacommunities.org/id/london-borough-council/ealing,CHILDREN & ADULTS,1,ADULT MENTAL HEALTH,NURSING HOMES EXTERNAL-INCOME,8781,,29/07/2019,22755067,-330.2,RAINBOW LODGE NURSING HOME
Ealing Council,http://opendatacommunities.org/id/london-borough-council/ealing,CHILDREN & ADULTS,1,ADULT MENTAL HEALTH,SUPPORTED LIVNG-FEES & CHGS,8785,,29/07/2019,22755041,-537.8,SIMIKS CARE LTD
Ealing Council,http://opendatacommunities.org/id/london-borough-council/ealing,CHILDREN & ADULTS,1,ADULT MENTAL HEALTH,SUPPORTED LIVING,4236,,22/07/2019,22744739,-876,SANCTUARY HOME CARE LTD
Ealing Council,http://opendatacommunities.org/id/london-borough-council/ealing,CHILDREN & ADULTS,1,ADULT MENTAL HEALTH,SUPPORTED LIVING,4236,,22/07/2019,22744740,1506.43,POSITIVE COMMUNITY CARE LTD
Ealing Council,http://opendatacommunities.org/id/london-borough-council/ealing,CHILDREN & ADULTS,1,ADULT MENTAL HEALTH,SUPPORTED LIVING,4236,,22/07/2019,22744741,951.43,POSITIVE COMMUNITY CARE LTD
Ealing Council,http://opendatacommunities.org/id/london-borough-council/ealing,CHILDREN & ADULTS,1,ADULT MENTAL HEALTH,NURSING HOMES EXTERNAL,4230,,03/07/2019,22740323,-13877.44,MIDDLESEX MANOR NURSING CTRE
Ealing Council,http://opendatacommunities.org/id/london-borough-council/ealing,CHILDREN & ADULTS,1,ADULT MENTAL HEALTH,NURSING HOMES EXTERNAL,4230,,03/07/2019,22740323,14293.76,MIDDLESEX MANOR NURSING CTRE
Ealing Council,http://opendatacommunities.org/id/london-borough-council/ealing,CHILDREN & ADULTS,1,ADULT MENTAL HEALTH,DIRECT PAYMENTS-INCOME,8787,,15/07/2019,22742007,-478.08,CARE IN FINANCE LTD
Ealing Council,http://opendatacommunities.org/id/london-borough-council/ealing,CHILDREN & ADULTS,1,ADULT MENTAL HEALTH,RESIDENTIAL HOMES EXTERNAL,4220,,22/07/2019,22744729,3024,MD HOMES
Ealing Council,http://opendatacommunities.org/id/london-borough-council/ealing,CHILDREN & ADULTS,1,ADULT MENTAL HEALTH,NURSING HOMES EXTERNAL,4230,,22/07/2019,22744725,-3293.62,SUSASH UK LTD T/A BARONS LODGE
Ealing Council,http://opendatacommunities.org/id/london-borough-council/ealing,CHILDREN & ADULTS,1,ADULT MENTAL HEALTH,NURSING HOMES EXTERNAL,4230,,22/07/2019,22744728,-321.12,MEERA NURSING HOME LTD
Ealing Council,http://opendatacommunities.org/id/london-borough-council/ealing,CHILDREN & ADULTS,1,ADULT MENTAL HEALTH,RESIDENTIAL HOMES EXTERNAL,4220,,22/07/2019,22744737,-4356.86,SUSSEX OAKLEAF HOUSING ASSOC
Ealing Council,http://opendatacommunities.org/id/london-borough-council/ealing,CHILDREN & ADULTS,1,ADULT MENTAL HEALTH,RESIDENTIAL HOMES EXTERNAL,4220,,22/07/2019,22744737,4178.57,SUSSEX OAKLEAF HOUSING ASSOC
Ealing Council,http://opendatacommunities.org/id/london-borough-council/ealing,CHILDREN & ADULTS,1,ADULT MENTAL HEALTH,RESIDENTIAL HOMES EXTERNAL,4220,,22/07/2019,22744738,1071.43,JUDE HOUSE
Ealing Council,http://opendatacommunities.org/id/london-borough-council/ealing,CHILDREN & ADULTS,1,ADULT MENTAL HEALTH,DOMICILIARY CARE - BLOCK,4240,,18/07/2019,22744714,524.44,METRO HOMECARE LTD
Ealing Council,http://opendatacommunities.org/id/london-borough-council/ealing,CHILDREN & ADULTS,1,ADULT MENTAL HEALTH,DOMICILIARY CARE - BLOCK,4240,,18/07/2019,22744714,419.44,METRO HOMECARE LTD
Ealing Council,http://opendatacommunities.org/id/london-borough-council/ealing,CHILDREN & ADULTS,1,ADULT MENTAL HEALTH,DOMICILIARY CARE - BLOCK,4240,,19/07/2019,22744715,420,Sofin Care Limited T/A Right at Home (Ealing & Hounslow)
Ealing Council,http://opendatacommunities.org/id/london-borough-council/ealing,CHILDREN & ADULTS,1,ADULT MENTAL HEALTH,DOMICILIARY CARE - BLOCK,4240,,19/07/2019,22744716,629,BMF SOCIAL CARE LIMITED
Ealing Council,http://opendatacommunities.org/id/london-borough-council/ealing,CHILDREN & ADULTS,1,ADULT MENTAL HEALTH,DOMICILIARY CARE - BLOCK,4240,,19/07/2019,22744716,407,BMF SOCIAL CARE LIMITED
Ealing Council,http://opendatacommunities.org/id/london-borough-council/ealing,CHILDREN & ADULTS,1,ADULT MENTAL HEALTH,RESIDENTIAL HOMES EXTERNAL,4220,,22/07/2019,22744729,-3456,MD HOMES
Ealing Council,http://opendatacommunities.org/id/london-borough-council/ealing,CHILDREN & ADULTS,1,ADULT MENTAL HEALTH,DOMICILIARY CARE - BLOCK,4240,,17/07/2019,22744713,742.52,SUPREME CARE SERVICES LTD
Ealing Council,http://opendatacommunities.org/id/london-borough-council/ealing,CHILDREN & ADULTS,1,ADULT MENTAL HEALTH,DOMICILIARY CARE - BLOCK,4240,,17/07/2019,22744713,418.6,SUPREME CARE SERVICES LTD
Ealing Council,http://opendatacommunities.org/id/london-borough-council/ealing,CHILDREN & ADULTS,1,SAFEGUARDING & SUPPORT - CIC,CHILDRENS SERVICES -ELIGIBLE CHILDREN ACCOMMODATIO,4281,,16/07/2019,22742537,253.1,REDACTED SENSITIVE SUPPLIER
Ealing Council,http://opendatacommunities.org/id/london-borough-council/ealing,CHILDREN & ADULTS,1,SAFEGUARDING & SUPPORT - CIC,CHILDRENS SERVICES -ELIGIBLE CHILDREN ACCOMMODATIO,4281,,16/07/2019,22742443,700,REDACTED SENSITIVE SUPPLIER
Ealing Council,http://opendatacommunities.org/id/london-borough-council/ealing,CHILDREN & ADULTS,1,SAFEGUARDING & SUPPORT - CIC,CHILDRENS SERVICES -ELIGIBLE CHILDREN ACCOMMODATIO,4281,,16/07/2019,22742443,262.04,REDACTED SENSITIVE SUPPLIER
Ealing Council,http://opendatacommunities.org/id/london-borough-council/ealing,CHILDREN & ADULTS,1,SAFEGUARDING & SUPPORT - CIC,SOCIAL SERVICES -INDEPENDENT FOSTERING,4221,,27/05/2019,40867875,845.53,SWIIS FOSTER CARE LTD
Ealing Council,http://opendatacommunities.org/id/london-borough-council/ealing,CHILDREN & ADULTS,1,SAFEGUARDING & SUPPORT - CIC,CHILDRENS SERVICES -ELIGIBLE CHILDREN ACCOMMODATIO,4281,,16/07/2019,22742516,262.04,REDACTED SENSITIVE SUPPLIER
Ealing Council,http://opendatacommunities.org/id/london-borough-council/ealing,CHILDREN & ADULTS,1,SAFEGUARDING & SUPPORT - CIC,CHILDRENS SERVICES -ELIGIBLE CHILDREN ACCOMMODATIO,4281,,26/07/2019,40872918,704.8,CENTREPOINT SOHO
Ealing Council,http://opendatacommunities.org/id/london-borough-council/ealing,CHILDREN & ADULTS,1,SAFEGUARDING & SUPPORT - CIC,CHILDRENS SERVICES -ELIGIBLE CHILDREN ACCOMMODATIO,4281,,26/07/2019,40872929,704.8,CENTREPOINT SOHO
Ealing Council,http://opendatacommunities.org/id/london-borough-council/ealing,CHILDREN & ADULTS,1,SAFEGUARDING & SUPPORT - CIC,CHILDRENS SERVICES -ELIGIBLE CHILDREN OTHER COSTS,4282,,16/07/2019,22742201,650,REDACTED SENSITIVE SUPPLIER
Ealing Council,http://opendatacommunities.org/id/london-borough-council/ealing,CHILDREN & ADULTS,1,SAFEGUARDING & SUPPORT - CIC,CHILDRENS SERVICES -ELIGIBLE CHILDREN ACCOMMODATIO,4281,,16/07/2019,22742395,262.04,REDACTED SENSITIVE SUPPLIER
Ealing Council,http://opendatacommunities.org/id/london-borough-council/ealing,CHILDREN & ADULTS,1,SAFEGUARDING & SUPPORT - CIC,CHILDRENS SERVICES -ELIGIBLE CHILDREN ACCOMMODATIO,4281,,16/07/2019,22742303,253.1,REDACTED SENSITIVE SUPPLIER
Ealing Council,http://opendatacommunities.org/id/london-borough-council/ealing,CHILDREN & ADULTS,1,SAFEGUARDING & SUPPORT - CIC,CHILDRENS SERVICES -ELIGIBLE CHILDREN ACCOMMODATIO,4281,,16/07/2019,22742264,1010.63,REDACTED SENSITIVE SUPPLIER
Ealing Council,http://opendatacommunities.org/id/london-borough-council/ealing,CHILDREN & ADULTS,1,SAFEGUARDING & SUPPORT - CIC,CHILDRENS SERVICES -ELIGIBLE CHILDREN ACCOMMODATIO,4281,,03/07/2019,40869896,3107.1,YOUNG LONDON TODAY
Ealing Council,http://opendatacommunities.org/id/london-borough-council/ealing,CHILDREN & ADULTS,1,SAFEGUARDING & SUPPORT - CIC,CHILDRENS SERVICES -ELIGIBLE CHILDREN ACCOMMODATIO,4281,,01/04/2019,40870003,3118.08,NEXUS FOSTERING LIMITED
Ealing Council,http://opendatacommunities.org/id/london-borough-council/ealing,CHILDREN & ADULTS,1,SAFEGUARDING & SUPPORT - CIC,CHILDRENS SERVICES -ELIGIBLE CHILDREN ACCOMMODATIO,4281,,01/04/2019,40870004,3407.88,NEXUS FOSTERING LIMITED
Ealing Council,http://opendatacommunities.org/id/london-borough-council/ealing,CHILDREN & ADULTS,1,SAFEGUARDING & SUPPORT - CIC,CHILDRENS SERVICES -ELIGIBLE CHILDREN ACCOMMODATIO,4281,,01/04/2019,40870005,872.76,NEXUS FOSTERING LIMITED
Ealing Council,http://opendatacommunities.org/id/london-borough-council/ealing,CHILDREN & ADULTS,1,SAFEGUARDING & SUPPORT - CIC,CHILDRENS SERVICES -ELIGIBLE CHILDREN ACCOMMODATIO,4281,,03/07/2019,40869894,1371.3,YOUNG LONDON TODAY
Ealing Council,http://opendatacommunities.org/id/london-borough-council/ealing,CHILDREN & ADULTS,1,SAFEGUARDING & SUPPORT - CIC,CHILDRENS SERVICES -ELIGIBLE CHILDREN ACCOMMODATIO,4281,,23/05/2019,40872868,6930.71,HOLMDENE HOUSING LTD
Ealing Council,http://opendatacommunities.org/id/london-borough-council/ealing,CHILDREN & ADULTS,1,SAFEGUARDING & SUPPORT - CIC,CHILDRENS SERVICES -ELIGIBLE CHILDREN ACCOMMODATIO,4281,,09/07/2019,22740979,256.9,REDACTED SENSITIVE SUPPLIER
Ealing Council,http://opendatacommunities.org/id/london-borough-council/ealing,CHILDREN & ADULTS,1,SAFEGUARDING & SUPPORT - CIC,CHILDRENS SERVICES -ELIGIBLE CHILDREN ACCOMMODATIO,4281,,09/07/2019,22740982,253.1,REDACTED SENSITIVE SUPPLIER
Ealing Council,http://opendatacommunities.org/id/london-borough-council/ealing,CHILDREN & ADULTS,1,SAFEGUARDING & SUPPORT - CIC,SOCIAL SERVICES -INDEPENDENT FOSTERING,4221,,13/06/2019,40870340,3457.14,SHINE FOSTERING LTD
Ealing Council,http://opendatacommunities.org/id/london-borough-council/ealing,CHILDREN & ADULTS,1,SAFEGUARDING & SUPPORT - CIC,SOCIAL SERVICES -INDEPENDENT FOSTERING,4221,,13/06/2019,40870342,4871.43,SHINE FOSTERING LTD
Ealing Council,http://opendatacommunities.org/id/london-borough-council/ealing,CHILDREN & ADULTS,1,SAFEGUARDING & SUPPORT - CIC,SOCIAL SERVICES -INDEPENDENT FOSTERING,4221,,13/06/2019,40870343,4714.29,SHINE FOSTERING LTD
Ealing Council,http://opendatacommunities.org/id/london-borough-council/ealing,CHILDREN & ADULTS,1,SAFEGUARDING & SUPPORT - CIC,SOCIAL SERVICES -INDEPENDENT FOSTERING,4221,,13/06/2019,40870345,4871.43,SHINE FOSTERING LTD
Ealing Council,http://opendatacommunities.org/id/london-borough-council/ealing,CHILDREN & ADULTS,1,SAFEGUARDING & SUPPORT - CIC,CHILDRENS SERVICES -ELIGIBLE CHILDREN OTHER COSTS,4282,,09/07/2019,22740649,1725,REDACTED SENSITIVE SUPPLIER
Ealing Council,http://opendatacommunities.org/id/london-borough-council/ealing,CHILDREN & ADULTS,1,SAFEGUARDING & SUPPORT - CIC,CHILDRENS SERVICES -ELIGIBLE CHILDREN ACCOMMODATIO,4281,,09/07/2019,22740896,700,REDACTED SENSITIVE SUPPLIER
Ealing Council,http://opendatacommunities.org/id/london-borough-council/ealing,CHILDREN & ADULTS,1,SAFEGUARDING & SUPPORT - CIC,CHILDRENS SERVICES -ELIGIBLE CHILDREN ACCOMMODATIO,4281,,09/07/2019,22740896,262.04,REDACTED SENSITIVE SUPPLIER
Ealing Council,http://opendatacommunities.org/id/london-borough-council/ealing,CHILDREN & ADULTS,1,SAFEGUARDING & SUPPORT - CIC,CHILDRENS SERVICES -ELIGIBLE CHILDREN ACCOMMODATIO,4281,,09/07/2019,22740967,262.04,REDACTED SENSITIVE SUPPLIER
Ealing Council,http://opendatacommunities.org/id/london-borough-council/ealing,CHILDREN & ADULTS,1,SAFEGUARDING & SUPPORT - CIC,CHILDRENS SERVICES -ELIGIBLE CHILDREN OTHER COSTS,4282,,09/07/2019,22740917,2000,REDACTED SENSITIVE SUPPLIER
Ealing Council,http://opendatacommunities.org/id/london-borough-council/ealing,CHILDREN & ADULTS,1,SAFEGUARDING & SUPPORT - CIC,CHILDRENS SERVICES -ELIGIBLE CHILDREN ACCOMMODATIO,4281,,09/07/2019,22740755,253.1,REDACTED SENSITIVE SUPPLIER
Ealing Council,http://opendatacommunities.org/id/london-borough-council/ealing,CHILDREN & ADULTS,1,SAFEGUARDING & SUPPORT - CIC,CHILDRENS SERVICES -ELIGIBLE CHILDREN ACCOMMODATIO,4281,,31/05/2019,40870531,1992.86,JORDAN XAVIER LTD
Ealing Council,http://opendatacommunities.org/id/london-borough-council/ealing,CHILDREN & ADULTS,1,SAFEGUARDING & SUPPORT - CIC,CHILDRENS SERVICES -ELIGIBLE CHILDREN ACCOMMODATIO,4281,,17/06/2019,40871163,1325,RENAISSANCE SUPPORTED HOUSING LTD
Ealing Council,http://opendatacommunities.org/id/london-borough-council/ealing,CHILDREN & ADULTS,1,SAFEGUARDING & SUPPORT - CIC,CHILDRENS SERVICES -ELIGIBLE CHILDREN ACCOMMODATIO,4281,,31/05/2019,40870528,256.41,JORDAN XAVIER LTD
Ealing Council,http://opendatacommunities.org/id/london-borough-council/ealing,CHILDREN & ADULTS,1,SAFEGUARDING & SUPPORT - CIC,CHILDRENS SERVICES -ELIGIBLE CHILDREN ACCOMMODATIO,4281,,09/07/2019,22740989,253.1,REDACTED SENSITIVE SUPPLIER
Ealing Council,http://opendatacommunities.org/id/london-borough-council/ealing,CHILDREN & ADULTS,1,SAFEGUARDING & SUPPORT - CIC,CHILDRENS SERVICES -ELIGIBLE CHILDREN ACCOMMODATIO,4281,,09/07/2019,22740870,253.1,REDACTED SENSITIVE SUPPLIER
Ealing Council,http://opendatacommunities.org/id/london-borough-council/ealing,CHILDREN & ADULTS,1,SAFEGUARDING & SUPPORT - CIC,CHILDRENS SERVICES -ELIGIBLE CHILDREN ACCOMMODATIO,4281,,09/07/2019,22740848,262.04,REDACTED SENSITIVE SUPPLIER
Ealing Council,http://opendatacommunities.org/id/london-borough-council/ealing,CHILDREN & ADULTS,1,SAFEGUARDING & SUPPORT - CIC,CHILDRENS SERVICES -ELIGIBLE CHILDREN ACCOMMODATIO,4281,,31/05/2019,40870527,1771.43,JORDAN XAVIER LTD
Ealing Council,http://opendatacommunities.org/id/london-borough-council/ealing,CHILDREN & ADULTS,1,SAFEGUARDING & SUPPORT - CIC,CHILDRENS SERVICES -ELIGIBLE CHILDREN ACCOMMODATIO,4281,,31/05/2019,40870529,885.71,JORDAN XAVIER LTD
Ealing Council,http://opendatacommunities.org/id/london-borough-council/ealing,CHILDREN & ADULTS,1,SAFEGUARDING & SUPPORT - CIC,CHILDRENS SERVICES -ELIGIBLE CHILDREN ACCOMMODATIO,4281,,31/05/2019,40870529,1992.86,JORDAN XAVIER LTD
Ealing Council,http://opendatacommunities.org/id/london-borough-council/ealing,CHILDREN & ADULTS,1,SAFEGUARDING & SUPPORT - CIC,CHILDRENS SERVICES -ELIGIBLE CHILDREN ACCOMMODATIO,4281,,31/05/2019,40870530,442.86,JORDAN XAVIER LTD
Ealing Council,http://opendatacommunities.org/id/london-borough-council/ealing,CHILDREN & ADULTS,1,SAFEGUARDING & SUPPORT - CIC,CHILDRENS SERVICES -ELIGIBLE CHILDREN ACCOMMODATIO,4281,,31/05/2019,40870530,1992.86,JORDAN XAVIER LTD
Ealing Council,http://opendatacommunities.org/id/london-borough-council/ealing,CHILDREN & ADULTS,1,SAFEGUARDING & SUPPORT - CIC,CHILDRENS SERVICES -ELIGIBLE CHILDREN ACCOMMODATIO,4281,,31/05/2019,40870531,442.86,JORDAN XAVIER LTD
Ealing Council,http://opendatacommunities.org/id/london-borough-council/ealing,CHILDREN & ADULTS,1,SAFEGUARDING & SUPPORT - CIC,CHILDRENS SERVICES -ELIGIBLE CHILDREN ACCOMMODATIO,4281,,17/06/2019,40873331,5589.29,HOLMDENE HOUSING LTD
Ealing Council,http://opendatacommunities.org/id/london-borough-council/ealing,CHILDREN & ADULTS,1,SAFEGUARDING & SUPPORT - CIC,CHILDRENS SERVICES -ELIGIBLE CHILDREN ACCOMMODATIO,4281,,10/06/2019,40869647,1325,RENAISSANCE SUPPORTED HOUSING LTD
Ealing Council,http://opendatacommunities.org/id/london-borough-council/ealing,CHILDREN & ADULTS,1,ADULT MENTAL HEALTH,DOMICILIARY CARE - BLOCK,4240,,17/07/2019,22744713,359.04,SUPREME CARE SERVICES LTD
Ealing Council,http://opendatacommunities.org/id/london-borough-council/ealing,CHILDREN & ADULTS,1,ADULT MENTAL HEALTH,DOMICILIARY CARE - BLOCK,4240,,18/07/2019,22744714,524.44,METRO HOMECARE LTD
Ealing Council,http://opendatacommunities.org/id/london-borough-council/ealing,CHILDREN & ADULTS,1,ADULT MENTAL HEALTH,DOMICILIARY CARE - BLOCK,4240,,18/07/2019,22744714,419.44,METRO HOMECARE LTD
Ealing Council,http://opendatacommunities.org/id/london-borough-council/ealing,CHILDREN & ADULTS,1,ADULT MENTAL HEALTH,DOMICILIARY CARE - BLOCK,4240,,18/07/2019,22744714,381.99,METRO HOMECARE LTD
Ealing Council,http://opendatacommunities.org/id/london-borough-council/ealing,CHILDREN & ADULTS,1,ADULT MENTAL HEALTH,DOMICILIARY CARE - BLOCK,4240,,18/03/2019,22739413,419.44,METRO HOMECARE LTD
Ealing Council,http://opendatacommunities.org/id/london-borough-council/ealing,CHILDREN & ADULTS,1,ADULT MENTAL HEALTH,RESIDENTIAL HOMES EXTERNAL,4220,,12/07/2019,40870839,1422.46,THE FEARNES
Ealing Council,http://opendatacommunities.org/id/london-borough-council/ealing,CHILDREN & ADULTS,1,ADULT MENTAL HEALTH,RESIDENTIAL HOMES EXTERNAL,4220,,12/07/2019,40870842,278.58,WELLS HOUSE CARE LTD
Ealing Council,http://opendatacommunities.org/id/london-borough-council/ealing,CHILDREN & ADULTS,1,ADULT MENTAL HEALTH,RESIDENTIAL HOMES EXTERNAL,4220,,12/07/2019,40870842,300,WELLS HOUSE CARE LTD
Ealing Council,http://opendatacommunities.org/id/london-borough-council/ealing,CHILDREN & ADULTS,1,ADULT MENTAL HEALTH,DOMICILIARY CARE - BLOCK,4240,,18/07/2019,22744712,1248,CAREWATCH (BRENT)
Ealing Council,http://opendatacommunities.org/id/london-borough-council/ealing,CHILDREN & ADULTS,1,ADULT MENTAL HEALTH,DOMICILIARY CARE - BLOCK,4240,,18/07/2019,22744712,452,CAREWATCH (BRENT)
Ealing Council,http://opendatacommunities.org/id/london-borough-council/ealing,CHILDREN & ADULTS,1,ADULT MENTAL HEALTH,SUPPORTED LIVING,4236,,27/06/2019,22738943,2200,BEAUMONT ALEXIS HC LIMITED
Ealing Council,http://opendatacommunities.org/id/london-borough-council/ealing,CHILDREN & ADULTS,1,ADULT MENTAL HEALTH,SUPPORTED LIVING,4236,,27/06/2019,22738943,2600,BEAUMONT ALEXIS HC LIMITED
Ealing Council,http://opendatacommunities.org/id/london-borough-council/ealing,CHILDREN & ADULTS,1,ADULT MENTAL HEALTH,SUPPORTED LIVING,4236,,27/06/2019,22738943,2259.4,BEAUMONT ALEXIS HC LIMITED
Ealing Council,http://opendatacommunities.org/id/london-borough-council/ealing,CHILDREN & ADULTS,1,ADULT MENTAL HEALTH,DOMICILIARY CARE - BLOCK,4240,,21/12/2018,22739413,404.46,METRO HOMECARE LTD
Ealing Council,http://opendatacommunities.org/id/london-borough-council/ealing,CHILDREN & ADULTS,1,ADULT MENTAL HEALTH,DOMICILIARY CARE - BLOCK,4240,,29/01/2019,22739413,419.44,METRO HOMECARE LTD
Ealing Council,http://opendatacommunities.org/id/london-borough-council/ealing,CHILDREN & ADULTS,1,ADULT MENTAL HEALTH,DOMICILIARY CARE - BLOCK,4240,,20/02/2019,22739413,419.44,METRO HOMECARE LTD
Ealing Council,http://opendatacommunities.org/id/london-borough-council/ealing,CHILDREN & ADULTS,1,ADULT MENTAL HEALTH,NURSING HOMES EXTERNAL,4230,,27/06/2019,22738834,2205.72,HEALTHCARE HOME (LSC) LTD T/A KINGSLEY COURT CARE HOME
Ealing Council,http://opendatacommunities.org/id/london-borough-council/ealing,CHILDREN & ADULTS,1,ADULT MENTAL HEALTH,RESIDENTIAL HOMES EXTERNAL,4220,,27/06/2019,22738738,-7116,KENT LODGE
Ealing Council,http://opendatacommunities.org/id/london-borough-council/ealing,CHILDREN & ADULTS,1,ADULT MENTAL HEALTH,RESIDENTIAL HOMES EXTERNAL,4220,,27/06/2019,22738738,9677.76,KENT LODGE
Ealing Council,http://opendatacommunities.org/id/london-borough-council/ealing,CHILDREN & ADULTS,1,ADULT MENTAL HEALTH,SUPPORTED LIVING,4236,,27/06/2019,22738943,2176,BEAUMONT ALEXIS HC LIMITED
Ealing Council,http://opendatacommunities.org/id/london-borough-council/ealing,CHILDREN & ADULTS,1,ADULT MENTAL HEALTH,SUPPORTED LIVING,4236,,27/06/2019,22738943,1988.28,BEAUMONT ALEXIS HC LIMITED
Ealing Council,http://opendatacommunities.org/id/london-borough-council/ealing,CHILDREN & ADULTS,1,ADULT MENTAL HEALTH,SUPPORTED LIVING,4236,,27/06/2019,22738943,1988.28,BEAUMONT ALEXIS HC LIMITED
Ealing Council,http://opendatacommunities.org/id/london-borough-council/ealing,CHILDREN & ADULTS,1,ADULT MENTAL HEALTH,NURSING HOMES EXTERNAL,4230,,27/06/2019,22738795,2343.16,RAINBOW LODGE NURSING HOME
Ealing Council,http://opendatacommunities.org/id/london-borough-council/ealing,CHILDREN & ADULTS,1,ADULT MENTAL HEALTH,RESIDENTIAL HOMES EXTERNAL,4220,,27/06/2019,22738734,-8275.08,HAZELWOOD HOUSE RESIDENTIAL
Ealing Council,http://opendatacommunities.org/id/london-borough-council/ealing,CHILDREN & ADULTS,1,ADULT MENTAL HEALTH,RESIDENTIAL HOMES EXTERNAL,4220,,27/06/2019,22738734,11254.08,HAZELWOOD HOUSE RESIDENTIAL
Ealing Council,http://opendatacommunities.org/id/london-borough-council/ealing,CHILDREN & ADULTS,1,ADULT MENTAL HEALTH,RESIDENTIAL HOMES EXTERNAL,4220,,27/06/2019,22738734,-11664,HAZELWOOD HOUSE RESIDENTIAL
Ealing Council,http://opendatacommunities.org/id/london-borough-council/ealing,CHILDREN & ADULTS,1,ADULT MENTAL HEALTH,RESIDENTIAL HOMES EXTERNAL,4220,,27/06/2019,22738734,15863.04,HAZELWOOD HOUSE RESIDENTIAL
Ealing Council,http://opendatacommunities.org/id/london-borough-council/ealing,CHILDREN & ADULTS,1,ADULT MENTAL HEALTH,RESIDENTIAL HOMES EXTERNAL,4220,,27/06/2019,22738753,2184,NORWOOD GREEN CARE CENTRE
Ealing Council,http://opendatacommunities.org/id/london-borough-council/ealing,CHILDREN & ADULTS,1,ADULT MENTAL HEALTH,RESIDENTIAL HOMES EXTERNAL,4220,,27/06/2019,22738793,2800,PETTS HILL RES CARE HOME
Ealing Council,http://opendatacommunities.org/id/london-borough-council/ealing,CHILDREN & ADULTS,1,ADULT MENTAL HEALTH,NURSING HOMES EXTERNAL,4230,,27/06/2019,22738707,-8476.2,SUSASH UK LTD T/A BARONS LODGE
Ealing Council,http://opendatacommunities.org/id/london-borough-council/ealing,CHILDREN & ADULTS,1,ADULT MENTAL HEALTH,NURSING HOMES EXTERNAL,4230,,27/06/2019,22738707,11527.68,SUSASH UK LTD T/A BARONS LODGE
Ealing Council,http://opendatacommunities.org/id/london-borough-council/ealing,CHILDREN & ADULTS,1,ADULT MENTAL HEALTH,NURSING HOMES EXTERNAL,4230,,27/06/2019,22738795,-887.02,RAINBOW LODGE NURSING HOME
Ealing Council,http://opendatacommunities.org/id/london-borough-council/ealing,CHILDREN & ADULTS,1,ADULT MENTAL HEALTH,NURSING HOMES EXTERNAL,4230,,27/06/2019,22738795,-380.14,RAINBOW LODGE NURSING HOME
Ealing Council,http://opendatacommunities.org/id/london-borough-council/ealing,CHILDREN & ADULTS,1,ADULT MENTAL HEALTH,NURSING HOMES EXTERNAL,4230,,27/06/2019,22738795,2406.72,RAINBOW LODGE NURSING HOME
Ealing Council,http://opendatacommunities.org/id/london-borough-council/ealing,CHILDREN & ADULTS,1,ADULT MENTAL HEALTH,SUPPORTED LIVING,4236,,27/06/2019,22738955,2300,CARE ASSIST PARK DRIVE
Ealing Council,http://opendatacommunities.org/id/london-borough-council/ealing,CHILDREN & ADULTS,1,ADULT MENTAL HEALTH,SUPPORTED LIVING,4236,,27/06/2019,22738955,-1257.14,CARE ASSIST PARK DRIVE
Ealing Council,http://opendatacommunities.org/id/london-borough-council/ealing,CHILDREN & ADULTS,1,ADULT MENTAL HEALTH,SUPPORTED LIVING,4236,,27/06/2019,22738955,2301.52,CARE ASSIST PARK DRIVE
Ealing Council,http://opendatacommunities.org/id/london-borough-council/ealing,CHILDREN & ADULTS,1,ADULT MENTAL HEALTH,SUPPORTED LIVING,4236,,27/06/2019,22738955,2200,CARE ASSIST PARK DRIVE
Ealing Council,http://opendatacommunities.org/id/london-borough-council/ealing,CHILDREN & ADULTS,1,ADULT MENTAL HEALTH,SUPPORTED LIVING,4236,,27/06/2019,22738955,2200,CARE ASSIST PARK DRIVE
Ealing Council,http://opendatacommunities.org/id/london-borough-council/ealing,CHILDREN & ADULTS,1,ADULT MENTAL HEALTH,RESIDENTIAL HOMES EXTERNAL,4220,,27/06/2019,22738699,2160,CAPITAL HOMECARE (UK) LTD
Ealing Council,http://opendatacommunities.org/id/london-borough-council/ealing,CHILDREN & ADULTS,1,ADULT MENTAL HEALTH,SUPPORTED LIVING,4236,,27/06/2019,22739027,2300,COMMUNITY HOUSING & THERAPY
Ealing Council,http://opendatacommunities.org/id/london-borough-council/ealing,CHILDREN & ADULTS,1,ADULT MENTAL HEALTH,RESIDENTIAL HOMES EXTERNAL,4220,,27/06/2019,22739027,276,COMMUNITY HOUSING & THERAPY
Ealing Council,http://opendatacommunities.org/id/london-borough-council/ealing,CHILDREN & ADULTS,1,ADULT MENTAL HEALTH,RESIDENTIAL HOMES EXTERNAL,4220,,27/06/2019,22739028,2268,CARE UK COMMUNITY PARTNERSHIP LTD
Ealing Council,http://opendatacommunities.org/id/london-borough-council/ealing,CHILDREN & ADULTS,1,SAFEGUARDING & SUPPORT - CIC,CHILDRENS SERVICES -ELIGIBLE CHILDREN ACCOMMODATIO,4281,,01/04/2019,40870002,-1336.32,NEXUS FOSTERING LIMITED
Ealing Council,http://opendatacommunities.org/id/london-borough-council/ealing,CHILDREN & ADULTS,1,SAFEGUARDING & SUPPORT - CIC,CHILDRENS SERVICES -ELIGIBLE CHILDREN ACCOMMODATIO,4281,,01/05/2019,40870018,3407.88,NEXUS FOSTERING LIMITED
Ealing Council,http://opendatacommunities.org/id/london-borough-council/ealing,CHILDREN & ADULTS,1,SAFEGUARDING & SUPPORT - CIC,CHILDRENS SERVICES -ELIGIBLE CHILDREN ACCOMMODATIO,4281,,01/05/2019,40870021,-1338.81,NEXUS FOSTERING LIMITED
Ealing Council,http://opendatacommunities.org/id/london-borough-council/ealing,CHILDREN & ADULTS,1,SAFEGUARDING & SUPPORT - CIC,CHILDRENS SERVICES -ELIGIBLE CHILDREN ACCOMMODATIO,4281,,31/05/2019,40870527,3321.43,JORDAN XAVIER LTD
Ealing Council,http://opendatacommunities.org/id/london-borough-council/ealing,CHILDREN & ADULTS,1,SAFEGUARDING & SUPPORT - CIC,CHILDRENS SERVICES -ELIGIBLE CHILDREN ACCOMMODATIO,4281,,30/06/2019,40872349,5785.5,NEST CARE HOMES LTD
Ealing Council,http://opendatacommunities.org/id/london-borough-council/ealing,CHILDREN & ADULTS,1,SAFEGUARDING & SUPPORT - CIC,CHILDRENS SERVICES -ELIGIBLE CHILDREN ACCOMMODATIO,4281,,31/05/2019,40872351,5978.35,NEST CARE HOMES LTD
Ealing Council,http://opendatacommunities.org/id/london-borough-council/ealing,CHILDREN & ADULTS,1,SAFEGUARDING & SUPPORT - CIC,CHILDRENS SERVICES -ELIGIBLE CHILDREN ACCOMMODATIO,4281,,30/04/2019,40872352,5785.5,NEST CARE HOMES LTD
Ealing Council,http://opendatacommunities.org/id/london-borough-council/ealing,CHILDREN & ADULTS,1,SAFEGUARDING & SUPPORT - CIC,CHILDRENS SERVICES -ELIGIBLE CHILDREN ACCOMMODATIO,4281,,24/06/2019,40872492,1325,RENAISSANCE SUPPORTED HOUSING LTD
Ealing Council,http://opendatacommunities.org/id/london-borough-council/ealing,CHILDREN & ADULTS,1,SAFEGUARDING & SUPPORT - CIC,CHILDRENS SERVICES -ELIGIBLE CHILDREN ACCOMMODATIO,4281,,01/04/2018,40873372,3428.1,YAM UNITY LIMITED
Ealing Council,http://opendatacommunities.org/id/london-borough-council/ealing,CHILDREN & ADULTS,1,SAFEGUARDING & SUPPORT - CIC,CHILDRENS SERVICES -ELIGIBLE CHILDREN ACCOMMODATIO,4281,,26/07/2019,40872921,704.8,CENTREPOINT SOHO
Ealing Council,http://opendatacommunities.org/id/london-borough-council/ealing,CHILDREN & ADULTS,1,CHILD PROTECTION & EDT,TRAINING,80,,15/06/2019,40871181,600,"TRAINING, CONSULTANCY AND PRACTICE LTD"
Ealing Council,http://opendatacommunities.org/id/london-borough-council/ealing,CHILDREN & ADULTS,1,ADULT MENTAL HEALTH,RESIDENTIAL HOMES EXTERNAL,4220,,29/07/2019,22754975,1285.72,WESTERN COUNSELLING SERVICES
Ealing Council,http://opendatacommunities.org/id/london-borough-council/ealing,CHILDREN & ADULTS,1,ADULT MENTAL HEALTH,RESIDENTIAL HOMES EXTERNAL,4220,,29/07/2019,22754975,1885.72,WESTERN COUNSELLING SERVICES
Ealing Council,http://opendatacommunities.org/id/london-borough-council/ealing,CHILDREN & ADULTS,1,ADULT MENTAL HEALTH,DAY CARE CENTRES,4250,,29/07/2019,22755087,900,KAIROS CRAVERS COMM TRUST
Ealing Council,http://opendatacommunities.org/id/london-borough-council/ealing,CHILDREN & ADULTS,1,ADULT MENTAL HEALTH,DAY CARE CENTRES,4250,,29/07/2019,22755087,560,KAIROS CRAVERS COMM TRUST
Ealing Council,http://opendatacommunities.org/id/london-borough-council/ealing,CHILDREN & ADULTS,1,ADULT MENTAL HEALTH,DAY CARE CENTRES,4250,,29/07/2019,22755087,1600,KAIROS CRAVERS COMM TRUST
Ealing Council,http://opendatacommunities.org/id/london-borough-council/ealing,CHILDREN & ADULTS,1,ADULT MENTAL HEALTH,DAY CARE CENTRES,4250,,29/07/2019,22755088,260,EACH COUNSELLING AND SUPPORT
Ealing Council,http://opendatacommunities.org/id/london-borough-council/ealing,CHILDREN & ADULTS,1,ADULT MENTAL HEALTH,DAY CARE CENTRES,4250,,27/06/2019,22739006,400,JANUS RESONANCE FACTOR LIMITED T/A JANUS SOLUTIONS
Ealing Council,http://opendatacommunities.org/id/london-borough-council/ealing,CHILDREN & ADULTS,1,ADULT MENTAL HEALTH,RESIDENTIAL HOMES EXTERNAL,4220,,27/06/2019,22738701,9120,ANA ADDICTION TREATMENT CENTRE
Ealing Council,http://opendatacommunities.org/id/london-borough-council/ealing,CHILDREN & ADULTS,1,ADULT MENTAL HEALTH,DAY CARE CENTRES,4250,,03/07/2019,22740332,4857.15,KAIROS CRAVERS COMM TRUST
Ealing Council,http://opendatacommunities.org/id/london-borough-council/ealing,CHILDREN & ADULTS,1,ADULT MENTAL HEALTH,RESIDENTIAL HOMES EXTERNAL,4220,,27/06/2019,22738767,3136,MERCIA CARE HOMES LTD
Ealing Council,http://opendatacommunities.org/id/london-borough-council/ealing,CHILDREN & ADULTS,1,ADULT MENTAL HEALTH,RESIDENTIAL HOMES EXTERNAL,4220,,29/07/2019,22755040,2464,MERCIA CARE HOMES LTD
Ealing Council,http://opendatacommunities.org/id/london-borough-council/ealing,CHILDREN & ADULTS,1,ADULT MENTAL HEALTH,RESIDENTIAL HOMES EXTERNAL,4220,,29/07/2019,22755040,1904,MERCIA CARE HOMES LTD
Ealing Council,http://opendatacommunities.org/id/london-borough-council/ealing,CHILDREN & ADULTS,1,ADULT MENTAL HEALTH,RESIDENTIAL HOMES EXTERNAL,4220,,27/06/2019,22738767,3136,MERCIA CARE HOMES LTD
Ealing Council,http://opendatacommunities.org/id/london-borough-council/ealing,CHILDREN & ADULTS,1,ADULT MENTAL HEALTH,DAY CARE CENTRES,4250,,27/06/2019,22738815,514.29,EACH COUNSELLING AND SUPPORT
Ealing Council,http://opendatacommunities.org/id/london-borough-council/ealing,CHILDREN & ADULTS,1,ADULT MENTAL HEALTH,DAY CARE CENTRES,4250,,27/06/2019,22738815,380.71,EACH COUNSELLING AND SUPPORT
Ealing Council,http://opendatacommunities.org/id/london-borough-council/ealing,CHILDREN & ADULTS,1,SAFEGUARDING & SUPPORT - CIC,PAYMENTS TO CONTRACTORS,4000,,31/05/2019,40871441,396.15,AIDHOUR LIMITED
Ealing Council,http://opendatacommunities.org/id/london-borough-council/ealing,CHILDREN & ADULTS,1,SAFEGUARDING & SUPPORT - CIC,PAYMENTS TO CONTRACTORS,4000,,31/05/2019,40871442,1435,AIDHOUR LIMITED
Ealing Council,http://opendatacommunities.org/id/london-borough-council/ealing,CHILDREN & ADULTS,1,SAFEGUARDING & SUPPORT - CIC,PAYMENTS TO CONTRACTORS,4000,,31/05/2019,40869860,626.33,AIDHOUR LIMITED
Ealing Council,http://opendatacommunities.org/id/london-borough-council/ealing,CHILDREN & ADULTS,1,SAFEGUARDING & SUPPORT - CIC,PAYMENTS TO CONTRACTORS,4000,,31/05/2019,40871439,678.4,AIDHOUR LIMITED
Ealing Council,http://opendatacommunities.org/id/london-borough-council/ealing,CHILDREN & ADULTS,1,SAFEGUARDING & SUPPORT - CIC,PAYMENTS TO CONTRACTORS,4000,,31/05/2019,40871440,341.45,AIDHOUR LIMITED
Ealing Council,http://opendatacommunities.org/id/london-borough-council/ealing,CHILDREN & ADULTS,1,SAFEGUARDING & SUPPORT - CIC,SOCIAL SERVICES CONTRACTUAL CARERS ALLOWANCES,4380,,24/07/2019,22746334,2700,REDACTED SENSITIVE SUPPLIER
Ealing Council,http://opendatacommunities.org/id/london-borough-council/ealing,CHILDREN & ADULTS,1,SAFEGUARDING & SUPPORT - CIC,VEHICLE HIRE,2010,,15/05/2019,40868864,1537.5,WRIXON CARE SERVICES
Ealing Council,http://opendatacommunities.org/id/london-borough-council/ealing,CHILDREN & ADULTS,1,SAFEGUARDING & SUPPORT - CIC,VEHICLE HIRE,2010,,14/05/2019,40868875,845.5,WRIXON CARE SERVICES
Ealing Council,http://opendatacommunities.org/id/london-borough-council/ealing,CHILDREN & ADULTS,1,SAFEGUARDING & SUPPORT - CIC,SOCIAL SERVICES CONTRACTUAL CARERS ALLOWANCES,4380,,23/07/2019,22746095,700,REDACTED SENSITIVE SUPPLIER
Ealing Council,http://opendatacommunities.org/id/london-borough-council/ealing,CHILDREN & ADULTS,1,SAFEGUARDING & SUPPORT - CIC,SOCIAL SERVICES CONTRACTUAL CARERS ALLOWANCES,4380,,23/07/2019,22746138,576.18,REDACTED SENSITIVE SUPPLIER
Ealing Council,http://opendatacommunities.org/id/london-borough-council/ealing,CHILDREN & ADULTS,1,SAFEGUARDING & SUPPORT - CIC,SOCIAL SERVICES CONTRACTUAL CARERS ALLOWANCES,4380,,23/07/2019,22746140,519.81,REDACTED SENSITIVE SUPPLIER
Ealing Council,http://opendatacommunities.org/id/london-borough-council/ealing,CHILDREN & ADULTS,1,SAFEGUARDING & SUPPORT - CIC,SOCIAL SERVICES CONTRACTUAL CARERS ALLOWANCES,4380,,23/07/2019,22746038,700,REDACTED SENSITIVE SUPPLIER
Ealing Council,http://opendatacommunities.org/id/london-borough-council/ealing,CHILDREN & ADULTS,1,SAFEGUARDING & SUPPORT - CIC,SOCIAL SERVICES CONTRACTUAL CARERS ALLOWANCES,4380,,23/07/2019,22746237,700,REDACTED SENSITIVE SUPPLIER
Ealing Council,http://opendatacommunities.org/id/london-borough-council/ealing,CHILDREN & ADULTS,1,SAFEGUARDING & SUPPORT - CIC,SOCIAL SERVICES CONTRACTUAL CARERS ALLOWANCES,4380,,24/07/2019,22746334,1010.73,REDACTED SENSITIVE SUPPLIER
Ealing Council,http://opendatacommunities.org/id/london-borough-council/ealing,CHILDREN & ADULTS,1,SAFEGUARDING & SUPPORT - CIC,SOCIAL SERVICES CONTRACTUAL CARERS ALLOWANCES,4380,,23/07/2019,22746008,262.04,REDACTED SENSITIVE SUPPLIER
Ealing Council,http://opendatacommunities.org/id/london-borough-council/ealing,CHILDREN & ADULTS,1,SAFEGUARDING & SUPPORT - CIC,SOCIAL SERVICES CONTRACTUAL CARERS ALLOWANCES,4380,,23/07/2019,22746008,262.04,REDACTED SENSITIVE SUPPLIER
Ealing Council,http://opendatacommunities.org/id/london-borough-council/ealing,CHILDREN & ADULTS,1,ADULT MENTAL HEALTH,RESIDENTIAL HOMES EXTERNAL,4220,,27/06/2019,22739028,2160,CARE UK COMMUNITY PARTNERSHIP LTD
Ealing Council,http://opendatacommunities.org/id/london-borough-council/ealing,CHILDREN & ADULTS,1,ADULT MENTAL HEALTH,SUPPORTED LIVING,4236,,27/06/2019,22738949,2848,MICADO HOMES LIMITED
Ealing Council,http://opendatacommunities.org/id/london-borough-council/ealing,CHILDREN & ADULTS,1,ADULT MENTAL HEALTH,SUPPORTED LIVING,4236,,27/06/2019,22738955,2200,CARE ASSIST PARK DRIVE
Ealing Council,http://opendatacommunities.org/id/london-borough-council/ealing,CHILDREN & ADULTS,1,ADULT MENTAL HEALTH,RESIDENTIAL HOMES EXTERNAL,4220,,27/06/2019,22739027,274,COMMUNITY HOUSING & THERAPY
Ealing Council,http://opendatacommunities.org/id/london-borough-council/ealing,CHILDREN & ADULTS,1,ADULT MENTAL HEALTH,SUPPORTED LIVING,4236,,27/06/2019,22738972,2044,SANCTUARY HOME CARE LTD
Ealing Council,http://opendatacommunities.org/id/london-borough-council/ealing,CHILDREN & ADULTS,1,ADULT MENTAL HEALTH,SUPPORTED LIVING,4236,,27/06/2019,22738972,2044,SANCTUARY HOME CARE LTD
Ealing Council,http://opendatacommunities.org/id/london-borough-council/ealing,CHILDREN & ADULTS,1,ADULT MENTAL HEALTH,SUPPORTED LIVING,4236,,27/06/2019,22738972,2044,SANCTUARY HOME CARE LTD
Ealing Council,http://opendatacommunities.org/id/london-borough-council/ealing,CHILDREN & ADULTS,1,ADULT MENTAL HEALTH,SUPPORTED LIVING,4236,,27/06/2019,22739027,2026,COMMUNITY HOUSING & THERAPY
Ealing Council,http://opendatacommunities.org/id/london-borough-council/ealing,CHILDREN & ADULTS,1,ADULT MENTAL HEALTH,SUPPORTED LIVING,4236,,27/06/2019,22739027,2024,COMMUNITY HOUSING & THERAPY
Ealing Council,http://opendatacommunities.org/id/london-borough-council/ealing,CHILDREN & ADULTS,1,ADULT MENTAL HEALTH,SUPPORTED LIVING,4236,,27/06/2019,22739004,2000,ENRICHED CARE LTD
Ealing Council,http://opendatacommunities.org/id/london-borough-council/ealing,CHILDREN & ADULTS,1,ADULT MENTAL HEALTH,SUPPORTED LIVING,4236,,27/06/2019,22739004,2200,ENRICHED CARE LTD
Ealing Council,http://opendatacommunities.org/id/london-borough-council/ealing,CHILDREN & ADULTS,1,ADULT MENTAL HEALTH,RESIDENTIAL HOMES EXTERNAL,4220,,27/06/2019,22739003,320,DEVINE CARE LTD
Ealing Council,http://opendatacommunities.org/id/london-borough-council/ealing,CHILDREN & ADULTS,1,ADULT MENTAL HEALTH,SUPPORTED LIVING,4236,,27/06/2019,22739004,2200,ENRICHED CARE LTD
Ealing Council,http://opendatacommunities.org/id/london-borough-council/ealing,CHILDREN & ADULTS,1,ADULT MENTAL HEALTH,RESIDENTIAL HOMES EXTERNAL,4220,,27/06/2019,22738734,10180.64,HAZELWOOD HOUSE RESIDENTIAL
Ealing Council,http://opendatacommunities.org/id/london-borough-council/ealing,CHILDREN & ADULTS,1,ADULT MENTAL HEALTH,RESIDENTIAL HOMES EXTERNAL,4220,,27/06/2019,22738734,-7485.72,HAZELWOOD HOUSE RESIDENTIAL
Ealing Council,http://opendatacommunities.org/id/london-borough-council/ealing,CHILDREN & ADULTS,1,ADULT MENTAL HEALTH,SUPPORTED LIVING,4236,,27/06/2019,22739013,2380,COMFORT CARE SERVICES UK LTD
Ealing Council,http://opendatacommunities.org/id/london-borough-council/ealing,CHILDREN & ADULTS,1,ADULT MENTAL HEALTH,SUPPORTED LIVING,4236,,27/06/2019,22739013,2380,COMFORT CARE SERVICES UK LTD
Ealing Council,http://opendatacommunities.org/id/london-borough-council/ealing,CHILDREN & ADULTS,1,ADULT MENTAL HEALTH,SUPPORTED LIVING,4236,,27/06/2019,22739050,1733.6,BEAUMONT ALEXIS HC LIMITED
Ealing Council,http://opendatacommunities.org/id/london-borough-council/ealing,CHILDREN & ADULTS,1,ADULT MENTAL HEALTH,SUPPORTED LIVING,4236,,27/06/2019,22739051,1276,ISLAD
Ealing Council,http://opendatacommunities.org/id/london-borough-council/ealing,CHILDREN & ADULTS,1,ADULT MENTAL HEALTH,RESIDENTIAL HOMES EXTERNAL,4220,,27/06/2019,22739050,506.4,BEAUMONT ALEXIS HC LIMITED
Ealing Council,http://opendatacommunities.org/id/london-borough-council/ealing,CHILDREN & ADULTS,1,ADULT MENTAL HEALTH,SUPPORTED LIVING,4236,,27/06/2019,22739003,1880,DEVINE CARE LTD
Ealing Council,http://opendatacommunities.org/id/london-borough-council/ealing,CHILDREN & ADULTS,1,ADULT MENTAL HEALTH,RESIDENTIAL HOMES EXTERNAL,4220,,27/06/2019,22738736,3000,KEATS HOUSE HEALTH CARE LIMITED
Ealing Council,http://opendatacommunities.org/id/london-borough-council/ealing,CHILDREN & ADULTS,1,ADULT MENTAL HEALTH,RESIDENTIAL HOMES EXTERNAL,4220,,27/06/2019,22738736,3000,KEATS HOUSE HEALTH CARE LIMITED
Ealing Council,http://opendatacommunities.org/id/london-borough-council/ealing,CHILDREN & ADULTS,1,ADULT MENTAL HEALTH,RESIDENTIAL HOMES EXTERNAL,4220,,27/06/2019,22738736,2600,KEATS HOUSE HEALTH CARE LIMITED
Ealing Council,http://opendatacommunities.org/id/london-borough-council/ealing,CHILDREN & ADULTS,1,ADULT MENTAL HEALTH,NURSING HOMES EXTERNAL,4230,,27/06/2019,22738737,8504,KENILWORTH NURSING HOME
Ealing Council,http://opendatacommunities.org/id/london-borough-council/ealing,CHILDREN & ADULTS,1,ADULT MENTAL HEALTH,NURSING HOMES EXTERNAL,4230,,27/06/2019,22738737,4800,KENILWORTH NURSING HOME
Ealing Council,http://opendatacommunities.org/id/london-borough-council/ealing,CHILDREN & ADULTS,1,ADULT MENTAL HEALTH,NURSING HOMES EXTERNAL,4230,,27/06/2019,22738737,2462.28,KENILWORTH NURSING HOME
Ealing Council,http://opendatacommunities.org/id/london-borough-council/ealing,CHILDREN & ADULTS,1,ADULT MENTAL HEALTH,SUPPORTED LIVING,4236,,27/06/2019,22738907,2270.12,CROWTHORNE CARE
Ealing Council,http://opendatacommunities.org/id/london-borough-council/ealing,CHILDREN & ADULTS,1,ADULT MENTAL HEALTH,SUPPORTED LIVING,4236,,27/06/2019,22738907,2266.84,CROWTHORNE CARE
Ealing Council,http://opendatacommunities.org/id/london-borough-council/ealing,CHILDREN & ADULTS,1,ADULT MENTAL HEALTH,SUPPORTED LIVING,4236,,27/06/2019,22738908,2180,M&LM RODRIGUES - T/A BAMFORD HOMES
Ealing Council,http://opendatacommunities.org/id/london-borough-council/ealing,CHILDREN & ADULTS,1,ADULT MENTAL HEALTH,RESIDENTIAL HOMES EXTERNAL,4220,,27/06/2019,22738734,-9000,HAZELWOOD HOUSE RESIDENTIAL
Ealing Council,http://opendatacommunities.org/id/london-borough-council/ealing,CHILDREN & ADULTS,1,ADULT MENTAL HEALTH,RESIDENTIAL HOMES EXTERNAL,4220,,27/06/2019,22738734,12240,HAZELWOOD HOUSE RESIDENTIAL
Ealing Council,http://opendatacommunities.org/id/london-borough-council/ealing,CHILDREN & ADULTS,1,ADULT MENTAL HEALTH,RESIDENTIAL HOMES EXTERNAL,4220,,27/06/2019,22738736,2600,KEATS HOUSE HEALTH CARE LIMITED
Ealing Council,http://opendatacommunities.org/id/london-borough-council/ealing,CHILDREN & ADULTS,1,ADULT MENTAL HEALTH,RESIDENTIAL HOMES EXTERNAL,4220,,27/06/2019,22738898,3960,CARE ASSIST KINGS ROAD
Ealing Council,http://opendatacommunities.org/id/london-borough-council/ealing,CHILDREN & ADULTS,1,ADULT MENTAL HEALTH,RESIDENTIAL HOMES EXTERNAL,4220,,27/06/2019,22738900,4000,SK BHUNJUN & A MODHWADIA-T/A IMPERIAL LODGE
Ealing Council,http://opendatacommunities.org/id/london-borough-council/ealing,CHILDREN & ADULTS,1,ADULT MENTAL HEALTH,RESIDENTIAL HOMES EXTERNAL,4220,,27/06/2019,22738900,3600,SK BHUNJUN & A MODHWADIA-T/A IMPERIAL LODGE
Ealing Council,http://opendatacommunities.org/id/london-borough-council/ealing,CHILDREN & ADULTS,1,ADULT MENTAL HEALTH,SUPPORTED LIVING,4236,,27/06/2019,22738907,2198,CROWTHORNE CARE
Ealing Council,http://opendatacommunities.org/id/london-borough-council/ealing,CHILDREN & ADULTS,1,ADULT MENTAL HEALTH,SUPPORTED LIVING,4236,,27/06/2019,22738907,2266,CROWTHORNE CARE
Ealing Council,http://opendatacommunities.org/id/london-borough-council/ealing,CHILDREN & ADULTS,1,ADULT MENTAL HEALTH,SUPPORTED LIVING,4236,,27/06/2019,22738907,2331.92,CROWTHORNE CARE
Ealing Council,http://opendatacommunities.org/id/london-borough-council/ealing,CHILDREN & ADULTS,1,ADULT MENTAL HEALTH,NURSING HOMES EXTERNAL,4230,,27/06/2019,22738819,2579.8,MMCG (2) T/A LIFESTYLE CARE
Ealing Council,http://opendatacommunities.org/id/london-borough-council/ealing,CHILDREN & ADULTS,1,ADULT MENTAL HEALTH,NURSING HOMES EXTERNAL,4230,,27/06/2019,22738835,2029.2,BCS MEDICAL (SHACKLETON) LTD
Ealing Council,http://opendatacommunities.org/id/london-borough-council/ealing,CHILDREN & ADULTS,1,ADULT MENTAL HEALTH,SUPPORTED LIVING,4236,,27/06/2019,22738896,2200,CARE ASSIST LTD HAMILTON ROAD
Ealing Council,http://opendatacommunities.org/id/london-borough-council/ealing,CHILDREN & ADULTS,1,ADULT MENTAL HEALTH,SUPPORTED LIVING,4236,,27/06/2019,22738896,2300,CARE ASSIST LTD HAMILTON ROAD
Ealing Council,http://opendatacommunities.org/id/london-borough-council/ealing,CHILDREN & ADULTS,1,SAFEGUARDING & SUPPORT - CIC,SOCIAL SERVICES CONTRACTUAL CARERS ALLOWANCES,4380,,23/07/2019,22746016,262.04,REDACTED SENSITIVE SUPPLIER
Ealing Council,http://opendatacommunities.org/id/london-borough-council/ealing,CHILDREN & ADULTS,1,SAFEGUARDING & SUPPORT - CIC,SOCIAL SERVICES CONTRACTUAL CARERS ALLOWANCES,4380,,23/07/2019,22746083,262.04,REDACTED SENSITIVE SUPPLIER
Ealing Council,http://opendatacommunities.org/id/london-borough-council/ealing,CHILDREN & ADULTS,1,SAFEGUARDING & SUPPORT - CIC,SOCIAL SERVICES CONTRACTUAL CARERS ALLOWANCES,4380,,23/07/2019,22746267,353.26,REDACTED SENSITIVE SUPPLIER
Ealing Council,http://opendatacommunities.org/id/london-borough-council/ealing,CHILDREN & ADULTS,1,SAFEGUARDING & SUPPORT - CIC,KINSHIP CARE (SOCIAL SERVICES),4662,,23/07/2019,22746099,262.04,REDACTED SENSITIVE SUPPLIER
Ealing Council,http://opendatacommunities.org/id/london-borough-council/ealing,CHILDREN & ADULTS,1,SAFEGUARDING & SUPPORT - CIC,SOCIAL SERVICES CONTRACTUAL CARERS ALLOWANCES,4380,,23/07/2019,22746142,262.04,REDACTED SENSITIVE SUPPLIER
Ealing Council,http://opendatacommunities.org/id/london-borough-council/ealing,CHILDREN & ADULTS,1,SAFEGUARDING & SUPPORT - CIC,SOCIAL SERVICES CONTRACTUAL CARERS ALLOWANCES,4380,,23/07/2019,22746145,300,REDACTED SENSITIVE SUPPLIER
Ealing Council,http://opendatacommunities.org/id/london-borough-council/ealing,CHILDREN & ADULTS,1,SAFEGUARDING & SUPPORT - CIC,SOCIAL SERVICES CONTRACTUAL CARERS ALLOWANCES,4380,,23/07/2019,22746320,262.04,REDACTED SENSITIVE SUPPLIER
Ealing Council,http://opendatacommunities.org/id/london-borough-council/ealing,CHILDREN & ADULTS,1,SAFEGUARDING & SUPPORT - CIC,SOCIAL SERVICES CONTRACTUAL CARERS ALLOWANCES,4380,,23/07/2019,22746321,700,REDACTED SENSITIVE SUPPLIER
Ealing Council,http://opendatacommunities.org/id/london-borough-council/ealing,CHILDREN & ADULTS,1,SAFEGUARDING & SUPPORT - CIC,SOCIAL SERVICES CONTRACTUAL CARERS ALLOWANCES,4380,,23/07/2019,22746324,700,REDACTED SENSITIVE SUPPLIER
Ealing Council,http://opendatacommunities.org/id/london-borough-council/ealing,CHILDREN & ADULTS,1,SAFEGUARDING & SUPPORT - CIC,SOCIAL SERVICES CONTRACTUAL CARERS ALLOWANCES,4380,,23/07/2019,22746324,262.04,REDACTED SENSITIVE SUPPLIER
Ealing Council,http://opendatacommunities.org/id/london-borough-council/ealing,CHILDREN & ADULTS,1,SAFEGUARDING & SUPPORT - CIC,SOCIAL SERVICES CONTRACTUAL CARERS ALLOWANCES,4380,,23/07/2019,22746310,786.12,REDACTED SENSITIVE SUPPLIER
Ealing Council,http://opendatacommunities.org/id/london-borough-council/ealing,CHILDREN & ADULTS,1,SAFEGUARDING & SUPPORT - CIC,SOCIAL SERVICES CONTRACTUAL CARERS ALLOWANCES,4380,,23/07/2019,22746310,262.04,REDACTED SENSITIVE SUPPLIER
Ealing Council,http://opendatacommunities.org/id/london-borough-council/ealing,CHILDREN & ADULTS,1,SAFEGUARDING & SUPPORT - CIC,SOCIAL SERVICES CONTRACTUAL CARERS ALLOWANCES,4380,,23/07/2019,22746310,700,REDACTED SENSITIVE SUPPLIER
Ealing Council,http://opendatacommunities.org/id/london-borough-council/ealing,CHILDREN & ADULTS,1,SAFEGUARDING & SUPPORT - CIC,SOCIAL SERVICES CONTRACTUAL CARERS ALLOWANCES,4380,,23/07/2019,22746311,262.04,REDACTED SENSITIVE SUPPLIER
Ealing Council,http://opendatacommunities.org/id/london-borough-council/ealing,CHILDREN & ADULTS,1,SAFEGUARDING & SUPPORT - CIC,SOCIAL SERVICES CONTRACTUAL CARERS ALLOWANCES,4380,,23/07/2019,22746311,262.04,REDACTED SENSITIVE SUPPLIER
Ealing Council,http://opendatacommunities.org/id/london-borough-council/ealing,CHILDREN & ADULTS,1,SAFEGUARDING & SUPPORT - CIC,SOCIAL SERVICES CONTRACTUAL CARERS ALLOWANCES,4380,,23/07/2019,22746142,262.04,REDACTED SENSITIVE SUPPLIER
Ealing Council,http://opendatacommunities.org/id/london-borough-council/ealing,CHILDREN & ADULTS,1,SAFEGUARDING & SUPPORT - CIC,SOCIAL SERVICES CONTRACTUAL CARERS ALLOWANCES,4380,,23/07/2019,22746038,700,REDACTED SENSITIVE SUPPLIER
Ealing Council,http://opendatacommunities.org/id/london-borough-council/ealing,CHILDREN & ADULTS,1,SAFEGUARDING & SUPPORT - CIC,SOCIAL SERVICES CONTRACTUAL CARERS ALLOWANCES,4380,,23/07/2019,22746040,519.81,REDACTED SENSITIVE SUPPLIER
Ealing Council,http://opendatacommunities.org/id/london-borough-council/ealing,CHILDREN & ADULTS,1,SAFEGUARDING & SUPPORT - CIC,SOCIAL SERVICES CONTRACTUAL CARERS ALLOWANCES,4380,,23/07/2019,22746303,262.04,REDACTED SENSITIVE SUPPLIER
Ealing Council,http://opendatacommunities.org/id/london-borough-council/ealing,CHILDREN & ADULTS,1,SAFEGUARDING & SUPPORT - CIC,SOCIAL SERVICES CONTRACTUAL CARERS ALLOWANCES,4380,,23/07/2019,22746306,700,REDACTED SENSITIVE SUPPLIER
Ealing Council,http://opendatacommunities.org/id/london-borough-council/ealing,CHILDREN & ADULTS,1,SAFEGUARDING & SUPPORT - CIC,SOCIAL SERVICES CONTRACTUAL CARERS ALLOWANCES,4380,,23/07/2019,22746306,262.04,REDACTED SENSITIVE SUPPLIER
Ealing Council,http://opendatacommunities.org/id/london-borough-council/ealing,CHILDREN & ADULTS,1,SAFEGUARDING & SUPPORT - CIC,SOCIAL SERVICES CONTRACTUAL CARERS ALLOWANCES,4380,,23/07/2019,22746306,700,REDACTED SENSITIVE SUPPLIER
Ealing Council,http://opendatacommunities.org/id/london-borough-council/ealing,CHILDREN & ADULTS,1,SAFEGUARDING & SUPPORT - CIC,SOCIAL SERVICES CONTRACTUAL CARERS ALLOWANCES,4380,,23/07/2019,22746031,262.04,REDACTED SENSITIVE SUPPLIER
Ealing Council,http://opendatacommunities.org/id/london-borough-council/ealing,CHILDREN & ADULTS,1,SAFEGUARDING & SUPPORT - CIC,SOCIAL SERVICES CONTRACTUAL CARERS ALLOWANCES,4380,,23/07/2019,22746033,700,REDACTED SENSITIVE SUPPLIER
Ealing Council,http://opendatacommunities.org/id/london-borough-council/ealing,CHILDREN & ADULTS,1,SAFEGUARDING & SUPPORT - CIC,SOCIAL SERVICES CONTRACTUAL CARERS ALLOWANCES,4380,,23/07/2019,22746033,700,REDACTED SENSITIVE SUPPLIER
Ealing Council,http://opendatacommunities.org/id/london-borough-council/ealing,CHILDREN & ADULTS,1,SAFEGUARDING & SUPPORT - CIC,SOCIAL SERVICES CONTRACTUAL CARERS ALLOWANCES,4380,,23/07/2019,22746108,262.04,REDACTED SENSITIVE SUPPLIER
Ealing Council,http://opendatacommunities.org/id/london-borough-council/ealing,CHILDREN & ADULTS,1,SAFEGUARDING & SUPPORT - CIC,SOCIAL SERVICES CONTRACTUAL CARERS ALLOWANCES,4380,,23/07/2019,22746108,262.04,REDACTED SENSITIVE SUPPLIER
Ealing Council,http://opendatacommunities.org/id/london-borough-council/ealing,CHILDREN & ADULTS,1,SAFEGUARDING & SUPPORT - CIC,SOCIAL SERVICES CONTRACTUAL CARERS ALLOWANCES,4380,,23/07/2019,22746109,262.04,REDACTED SENSITIVE SUPPLIER
Ealing Council,http://opendatacommunities.org/id/london-borough-council/ealing,CHILDREN & ADULTS,1,SAFEGUARDING & SUPPORT - CIC,SOCIAL SERVICES CONTRACTUAL CARERS ALLOWANCES,4380,,23/07/2019,22746061,-300,REDACTED SENSITIVE SUPPLIER
Ealing Council,http://opendatacommunities.org/id/london-borough-council/ealing,CHILDREN & ADULTS,1,SAFEGUARDING & SUPPORT - CIC,SOCIAL SERVICES CONTRACTUAL CARERS ALLOWANCES,4380,,23/07/2019,22746237,700,REDACTED SENSITIVE SUPPLIER
Ealing Council,http://opendatacommunities.org/id/london-borough-council/ealing,CHILDREN & ADULTS,1,SAFEGUARDING & SUPPORT - CIC,SOCIAL SERVICES CONTRACTUAL CARERS ALLOWANCES,4380,,23/07/2019,22746215,262.04,REDACTED SENSITIVE SUPPLIER
Ealing Council,http://opendatacommunities.org/id/london-borough-council/ealing,CHILDREN & ADULTS,1,SAFEGUARDING & SUPPORT - CIC,KINSHIP CARE (SOCIAL SERVICES),4662,,23/07/2019,22745991,262.04,REDACTED SENSITIVE SUPPLIER
Ealing Council,http://opendatacommunities.org/id/london-borough-council/ealing,CHILDREN & ADULTS,1,SAFEGUARDING & SUPPORT - CIC,SOCIAL SERVICES CONTRACTUAL CARERS ALLOWANCES,4380,,23/07/2019,22746026,306,REDACTED SENSITIVE SUPPLIER
Ealing Council,http://opendatacommunities.org/id/london-borough-council/ealing,CHILDREN & ADULTS,1,SAFEGUARDING & SUPPORT - CIC,SOCIAL SERVICES CONTRACTUAL CARERS ALLOWANCES,4380,,23/07/2019,22746031,262.04,REDACTED SENSITIVE SUPPLIER
Ealing Council,http://opendatacommunities.org/id/london-borough-council/ealing,CHILDREN & ADULTS,1,SAFEGUARDING & SUPPORT - CIC,SOCIAL SERVICES CONTRACTUAL CARERS ALLOWANCES,4380,,23/07/2019,22746054,1216.38,REDACTED SENSITIVE SUPPLIER
Ealing Council,http://opendatacommunities.org/id/london-borough-council/ealing,CHILDREN & ADULTS,1,SAFEGUARDING & SUPPORT - CIC,SOCIAL SERVICES CONTRACTUAL CARERS ALLOWANCES,4380,,23/07/2019,22746057,262.04,REDACTED SENSITIVE SUPPLIER
Ealing Council,http://opendatacommunities.org/id/london-borough-council/ealing,CHILDREN & ADULTS,1,SAFEGUARDING & SUPPORT - CIC,SOCIAL SERVICES CONTRACTUAL CARERS ALLOWANCES,4380,,23/07/2019,22746057,700,REDACTED SENSITIVE SUPPLIER
Ealing Council,http://opendatacommunities.org/id/london-borough-council/ealing,CHILDREN & ADULTS,1,SAFEGUARDING & SUPPORT - CIC,SOCIAL SERVICES CONTRACTUAL CARERS ALLOWANCES,4380,,23/07/2019,22746125,262.04,REDACTED SENSITIVE SUPPLIER
Ealing Council,http://opendatacommunities.org/id/london-borough-council/ealing,CHILDREN & ADULTS,1,SAFEGUARDING & SUPPORT - CIC,SOCIAL SERVICES CONTRACTUAL CARERS ALLOWANCES,4380,,23/07/2019,22746125,700,REDACTED SENSITIVE SUPPLIER
Ealing Council,http://opendatacommunities.org/id/london-borough-council/ealing,CHILDREN & ADULTS,1,SAFEGUARDING & SUPPORT - CIC,KINSHIP CARE (SOCIAL SERVICES),4662,,23/07/2019,22746238,262.04,REDACTED SENSITIVE SUPPLIER
Ealing Council,http://opendatacommunities.org/id/london-borough-council/ealing,CHILDREN & ADULTS,1,SAFEGUARDING & SUPPORT - CIC,SOCIAL SERVICES CONTRACTUAL CARERS ALLOWANCES,4380,,23/07/2019,22746051,650.43,REDACTED SENSITIVE SUPPLIER
Ealing Council,http://opendatacommunities.org/id/london-borough-council/ealing,CHILDREN & ADULTS,1,SAFEGUARDING & SUPPORT - CIC,SOCIAL SERVICES CONTRACTUAL CARERS ALLOWANCES,4380,,23/07/2019,22746051,700,REDACTED SENSITIVE SUPPLIER
Ealing Council,http://opendatacommunities.org/id/london-borough-council/ealing,CHILDREN & ADULTS,1,SAFEGUARDING & SUPPORT - CIC,SOCIAL SERVICES CONTRACTUAL CARERS ALLOWANCES,4380,,23/07/2019,22746052,926.41,REDACTED SENSITIVE SUPPLIER
Ealing Council,http://opendatacommunities.org/id/london-borough-council/ealing,CHILDREN & ADULTS,1,ADULT MENTAL HEALTH,RESIDENTIAL HOMES EXTERNAL,4220,,27/06/2019,22738897,3000,CARE ASSIST KINGS ROAD
Ealing Council,http://opendatacommunities.org/id/london-borough-council/ealing,CHILDREN & ADULTS,1,ADULT MENTAL HEALTH,RESIDENTIAL HOMES EXTERNAL,4220,,27/06/2019,22738897,2780,CARE ASSIST KINGS ROAD
Ealing Council,http://opendatacommunities.org/id/london-borough-council/ealing,CHILDREN & ADULTS,1,ADULT MENTAL HEALTH,SUPPORTED LIVING,4236,,27/06/2019,22738983,2200,INFINITY SERVICES (UK) LIMITED
Ealing Council,http://opendatacommunities.org/id/london-borough-council/ealing,CHILDREN & ADULTS,1,ADULT MENTAL HEALTH,SUPPORTED LIVING,4236,,27/06/2019,22738983,2536,INFINITY SERVICES (UK) LIMITED
Ealing Council,http://opendatacommunities.org/id/london-borough-council/ealing,CHILDREN & ADULTS,1,ADULT MENTAL HEALTH,SUPPORTED LIVING,4236,,27/06/2019,22738983,2200,INFINITY SERVICES (UK) LIMITED
Ealing Council,http://opendatacommunities.org/id/london-borough-council/ealing,CHILDREN & ADULTS,1,ADULT MENTAL HEALTH,SUPPORTED LIVING,4236,,27/06/2019,22738983,2200,INFINITY SERVICES (UK) LIMITED
Ealing Council,http://opendatacommunities.org/id/london-borough-council/ealing,CHILDREN & ADULTS,1,ADULT MENTAL HEALTH,SUPPORTED LIVING,4236,,27/06/2019,22738983,1676,INFINITY SERVICES (UK) LIMITED
Ealing Council,http://opendatacommunities.org/id/london-borough-council/ealing,CHILDREN & ADULTS,1,ADULT MENTAL HEALTH,SUPPORTED LIVING,4236,,27/06/2019,22738986,2676.56,PANACEA CARE LIMITED
Ealing Council,http://opendatacommunities.org/id/london-borough-council/ealing,CHILDREN & ADULTS,1,ADULT MENTAL HEALTH,SUPPORTED LIVING,4236,,27/06/2019,22738940,2080.48,ROLAND COMMUNITY CARE LTD
Ealing Council,http://opendatacommunities.org/id/london-borough-council/ealing,CHILDREN & ADULTS,1,ADULT MENTAL HEALTH,RESIDENTIAL HOMES EXTERNAL,4220,,27/06/2019,22738977,2600,POSITIVE COMMUNITY CARE LTD
Ealing Council,http://opendatacommunities.org/id/london-borough-council/ealing,CHILDREN & ADULTS,1,ADULT MENTAL HEALTH,RESIDENTIAL HOMES EXTERNAL,4220,,27/06/2019,22738977,5944.71,POSITIVE COMMUNITY CARE LTD
Ealing Council,http://opendatacommunities.org/id/london-borough-council/ealing,CHILDREN & ADULTS,1,ADULT MENTAL HEALTH,RESIDENTIAL HOMES EXTERNAL,4220,,27/06/2019,22738977,4759.14,POSITIVE COMMUNITY CARE LTD
Ealing Council,http://opendatacommunities.org/id/london-borough-council/ealing,CHILDREN & ADULTS,1,ADULT MENTAL HEALTH,RESIDENTIAL HOMES EXTERNAL,4220,,27/06/2019,22738977,-10878.61,POSITIVE COMMUNITY CARE LTD
Ealing Council,http://opendatacommunities.org/id/london-borough-council/ealing,CHILDREN & ADULTS,1,ADULT MENTAL HEALTH,RESIDENTIAL HOMES EXTERNAL,4220,,27/06/2019,22738983,1260,INFINITY SERVICES (UK) LIMITED
Ealing Council,http://opendatacommunities.org/id/london-borough-council/ealing,CHILDREN & ADULTS,1,ADULT MENTAL HEALTH,SUPPORTED LIVING,4236,,27/06/2019,22738908,2180,M&LM RODRIGUES - T/A BAMFORD HOMES
Ealing Council,http://opendatacommunities.org/id/london-borough-council/ealing,CHILDREN & ADULTS,1,ADULT MENTAL HEALTH,SUPPORTED LIVING,4236,,27/06/2019,22738909,2152,STEPUP CARE LIMITED
Ealing Council,http://opendatacommunities.org/id/london-borough-council/ealing,CHILDREN & ADULTS,1,ADULT MENTAL HEALTH,SUPPORTED LIVING,4236,,27/06/2019,22738909,1600,STEPUP CARE LIMITED
Ealing Council,http://opendatacommunities.org/id/london-borough-council/ealing,CHILDREN & ADULTS,1,ADULT MENTAL HEALTH,SUPPORTED LIVING,4236,,27/06/2019,22738937,2123.2,PANDORA HOUSE HEALTHCARE LIMITED
Ealing Council,http://opendatacommunities.org/id/london-borough-council/ealing,CHILDREN & ADULTS,1,ADULT MENTAL HEALTH,SUPPORTED LIVING,4236,,27/06/2019,22738937,2120,PANDORA HOUSE HEALTHCARE LIMITED
Ealing Council,http://opendatacommunities.org/id/london-borough-council/ealing,CHILDREN & ADULTS,1,ADULT MENTAL HEALTH,SUPPORTED LIVING,4236,,27/06/2019,22738937,2200,PANDORA HOUSE HEALTHCARE LIMITED
Ealing Council,http://opendatacommunities.org/id/london-borough-council/ealing,CHILDREN & ADULTS,1,ADULT MENTAL HEALTH,RESIDENTIAL HOMES EXTERNAL,4220,,27/06/2019,22738887,2900,JUDE HOUSE
Ealing Council,http://opendatacommunities.org/id/london-borough-council/ealing,CHILDREN & ADULTS,1,ADULT MENTAL HEALTH,SUPPORTED LIVING,4236,,27/06/2019,22738909,3328,STEPUP CARE LIMITED
Ealing Council,http://opendatacommunities.org/id/london-borough-council/ealing,CHILDREN & ADULTS,1,ADULT MENTAL HEALTH,SUPPORTED LIVING,4236,,27/06/2019,22738960,1994.8,INFINITY SERVICES (UK) LIMITED
Ealing Council,http://opendatacommunities.org/id/london-borough-council/ealing,CHILDREN & ADULTS,1,ADULT MENTAL HEALTH,RESIDENTIAL HOMES EXTERNAL,4220,,27/06/2019,22738960,401.2,INFINITY SERVICES (UK) LIMITED
Ealing Council,http://opendatacommunities.org/id/london-borough-council/ealing,CHILDREN & ADULTS,1,ADULT MENTAL HEALTH,RESIDENTIAL HOMES EXTERNAL,4220,,27/06/2019,22738909,448,STEPUP CARE LIMITED
Ealing Council,http://opendatacommunities.org/id/london-borough-council/ealing,CHILDREN & ADULTS,1,ADULT MENTAL HEALTH,SUPPORTED LIVING,4236,,27/06/2019,22738961,2378.8,PRECIOUS HOMES LTD
Ealing Council,http://opendatacommunities.org/id/london-borough-council/ealing,CHILDREN & ADULTS,1,ADULT MENTAL HEALTH,RESIDENTIAL HOMES EXTERNAL,4220,,27/06/2019,22739009,3280,JEWISH CARE
Ealing Council,http://opendatacommunities.org/id/london-borough-council/ealing,CHILDREN & ADULTS,1,ADULT MENTAL HEALTH,RESIDENTIAL HOMES EXTERNAL,4220,,27/06/2019,22738753,2226,NORWOOD GREEN CARE CENTRE
Ealing Council,http://opendatacommunities.org/id/london-borough-council/ealing,CHILDREN & ADULTS,1,ADULT MENTAL HEALTH,SUPPORTED LIVING,4236,,27/06/2019,22738885,2180,BEAUMONT ALEXIS LTD
Ealing Council,http://opendatacommunities.org/id/london-borough-council/ealing,CHILDREN & ADULTS,1,ADULT MENTAL HEALTH,SUPPORTED LIVING,4236,,27/06/2019,22738885,2152.6,BEAUMONT ALEXIS LTD
Ealing Council,http://opendatacommunities.org/id/london-borough-council/ealing,CHILDREN & ADULTS,1,ADULT MENTAL HEALTH,SUPPORTED LIVING,4236,,27/06/2019,22738885,1932.4,BEAUMONT ALEXIS LTD
Ealing Council,http://opendatacommunities.org/id/london-borough-council/ealing,CHILDREN & ADULTS,1,ADULT MENTAL HEALTH,SUPPORTED LIVING,4236,,27/06/2019,22738885,2152.4,BEAUMONT ALEXIS LTD
Ealing Council,http://opendatacommunities.org/id/london-borough-council/ealing,CHILDREN & ADULTS,1,ADULT MENTAL HEALTH,SUPPORTED LIVING,4236,,27/06/2019,22738848,483.4,HESTIA HOUSING AND SUPPORT
Ealing Council,http://opendatacommunities.org/id/london-borough-council/ealing,CHILDREN & ADULTS,1,ADULT MENTAL HEALTH,SUPPORTED LIVING,4236,,27/06/2019,22738848,663.56,HESTIA HOUSING AND SUPPORT
Ealing Council,http://opendatacommunities.org/id/london-borough-council/ealing,CHILDREN & ADULTS,1,ADULT MENTAL HEALTH,RESIDENTIAL HOMES EXTERNAL,4220,,27/06/2019,22738848,-8593.2,HESTIA HOUSING AND SUPPORT
Ealing Council,http://opendatacommunities.org/id/london-borough-council/ealing,CHILDREN & ADULTS,1,ADULT MENTAL HEALTH,RESIDENTIAL HOMES EXTERNAL,4220,,27/06/2019,22738848,11824.32,HESTIA HOUSING AND SUPPORT
Ealing Council,http://opendatacommunities.org/id/london-borough-council/ealing,CHILDREN & ADULTS,1,ADULT MENTAL HEALTH,RESIDENTIAL HOMES EXTERNAL,4220,,27/06/2019,22738848,11824.32,HESTIA HOUSING AND SUPPORT
Ealing Council,http://opendatacommunities.org/id/london-borough-council/ealing,CHILDREN & ADULTS,1,ADULT MENTAL HEALTH,RESIDENTIAL HOMES EXTERNAL,4220,,27/06/2019,22738848,-8593.2,HESTIA HOUSING AND SUPPORT
Ealing Council,http://opendatacommunities.org/id/london-borough-council/ealing,CHILDREN & ADULTS,1,ADULT MENTAL HEALTH,RESIDENTIAL HOMES EXTERNAL,4220,,27/06/2019,22738848,11824.32,HESTIA HOUSING AND SUPPORT
Ealing Council,http://opendatacommunities.org/id/london-borough-council/ealing,CHILDREN & ADULTS,1,ADULT MENTAL HEALTH,RESIDENTIAL HOMES EXTERNAL,4220,,27/06/2019,22738848,-8593.2,HESTIA HOUSING AND SUPPORT
Ealing Council,http://opendatacommunities.org/id/london-borough-council/ealing,CHILDREN & ADULTS,1,ADULT MENTAL HEALTH,RESIDENTIAL HOMES EXTERNAL,4220,,27/06/2019,22738848,-8593.2,HESTIA HOUSING AND SUPPORT
Ealing Council,http://opendatacommunities.org/id/london-borough-council/ealing,CHILDREN & ADULTS,1,ADULT MENTAL HEALTH,RESIDENTIAL HOMES EXTERNAL,4220,,27/06/2019,22738848,11824.32,HESTIA HOUSING AND SUPPORT
Ealing Council,http://opendatacommunities.org/id/london-borough-council/ealing,CHILDREN & ADULTS,1,ADULT MENTAL HEALTH,SUPPORTED LIVING,4236,,27/06/2019,22738848,483.4,HESTIA HOUSING AND SUPPORT
Ealing Council,http://opendatacommunities.org/id/london-borough-council/ealing,CHILDREN & ADULTS,1,SAFEGUARDING & SUPPORT - CIC,SOCIAL SERVICES CONTRACTUAL CARERS ALLOWANCES,4380,,23/07/2019,22746052,926.41,REDACTED SENSITIVE SUPPLIER
Ealing Council,http://opendatacommunities.org/id/london-borough-council/ealing,CHILDREN & ADULTS,1,SAFEGUARDING & SUPPORT - CIC,SOCIAL SERVICES CONTRACTUAL CARERS ALLOWANCES,4380,,23/07/2019,22746054,262.04,REDACTED SENSITIVE SUPPLIER
Ealing Council,http://opendatacommunities.org/id/london-borough-council/ealing,CHILDREN & ADULTS,1,SAFEGUARDING & SUPPORT - CIC,SOCIAL SERVICES CONTRACTUAL CARERS ALLOWANCES,4380,,23/07/2019,22746054,253.1,REDACTED SENSITIVE SUPPLIER
Ealing Council,http://opendatacommunities.org/id/london-borough-council/ealing,CHILDREN & ADULTS,1,SAFEGUARDING & SUPPORT - CIC,SOCIAL SERVICES CONTRACTUAL CARERS ALLOWANCES,4380,,02/07/2019,22739660,262.04,REDACTED SENSITIVE SUPPLIER
Ealing Council,http://opendatacommunities.org/id/london-borough-council/ealing,CHILDREN & ADULTS,1,SAFEGUARDING & SUPPORT - CIC,SOCIAL SERVICES CONTRACTUAL CARERS ALLOWANCES,4380,,23/07/2019,22745967,262.04,REDACTED SENSITIVE SUPPLIER
Ealing Council,http://opendatacommunities.org/id/london-borough-council/ealing,CHILDREN & ADULTS,1,SAFEGUARDING & SUPPORT - CIC,SOCIAL SERVICES CONTRACTUAL CARERS ALLOWANCES,4380,,23/07/2019,22745976,700,REDACTED SENSITIVE SUPPLIER
Ealing Council,http://opendatacommunities.org/id/london-borough-council/ealing,CHILDREN & ADULTS,1,SAFEGUARDING & SUPPORT - CIC,SOCIAL SERVICES CONTRACTUAL CARERS ALLOWANCES,4380,,23/07/2019,22746201,700,REDACTED SENSITIVE SUPPLIER
Ealing Council,http://opendatacommunities.org/id/london-borough-council/ealing,CHILDREN & ADULTS,1,SAFEGUARDING & SUPPORT - CIC,SOCIAL SERVICES CONTRACTUAL CARERS ALLOWANCES,4380,,23/07/2019,22746201,262.04,REDACTED SENSITIVE SUPPLIER
Ealing Council,http://opendatacommunities.org/id/london-borough-council/ealing,CHILDREN & ADULTS,1,SAFEGUARDING & SUPPORT - CIC,SOCIAL SERVICES CONTRACTUAL CARERS ALLOWANCES,4380,,23/07/2019,22746051,455.97,REDACTED SENSITIVE SUPPLIER
Ealing Council,http://opendatacommunities.org/id/london-borough-council/ealing,CHILDREN & ADULTS,1,SAFEGUARDING & SUPPORT - CIC,SOCIAL SERVICES CONTRACTUAL CARERS ALLOWANCES,4380,,02/07/2019,22739781,700,REDACTED SENSITIVE SUPPLIER
Ealing Council,http://opendatacommunities.org/id/london-borough-council/ealing,CHILDREN & ADULTS,1,SAFEGUARDING & SUPPORT - CIC,SOCIAL SERVICES CONTRACTUAL CARERS ALLOWANCES,4380,,02/07/2019,22739784,700,REDACTED SENSITIVE SUPPLIER
Ealing Council,http://opendatacommunities.org/id/london-borough-council/ealing,CHILDREN & ADULTS,1,SAFEGUARDING & SUPPORT - CIC,SOCIAL SERVICES CONTRACTUAL CARERS ALLOWANCES,4380,,02/07/2019,22739784,262.04,REDACTED SENSITIVE SUPPLIER
Ealing Council,http://opendatacommunities.org/id/london-borough-council/ealing,CHILDREN & ADULTS,1,SAFEGUARDING & SUPPORT - CIC,SOCIAL SERVICES CONTRACTUAL CARERS ALLOWANCES,4380,,02/07/2019,22739508,700,REDACTED SENSITIVE SUPPLIER
Ealing Council,http://opendatacommunities.org/id/london-borough-council/ealing,CHILDREN & ADULTS,1,SAFEGUARDING & SUPPORT - CIC,SOCIAL SERVICES CONTRACTUAL CARERS ALLOWANCES,4380,,02/07/2019,22739509,297.04,REDACTED SENSITIVE SUPPLIER
Ealing Council,http://opendatacommunities.org/id/london-borough-council/ealing,CHILDREN & ADULTS,1,SAFEGUARDING & SUPPORT - CIC,SOCIAL SERVICES CONTRACTUAL CARERS ALLOWANCES,4380,,02/07/2019,22739660,700,REDACTED SENSITIVE SUPPLIER
Ealing Council,http://opendatacommunities.org/id/london-borough-council/ealing,CHILDREN & ADULTS,1,SAFEGUARDING & SUPPORT - CIC,SOCIAL SERVICES CONTRACTUAL CARERS ALLOWANCES,4380,,02/07/2019,22739696,700,REDACTED SENSITIVE SUPPLIER
Ealing Council,http://opendatacommunities.org/id/london-borough-council/ealing,CHILDREN & ADULTS,1,SAFEGUARDING & SUPPORT - CIC,SOCIAL SERVICES CONTRACTUAL CARERS ALLOWANCES,4380,,02/07/2019,22739771,262.04,REDACTED SENSITIVE SUPPLIER
Ealing Council,http://opendatacommunities.org/id/london-borough-council/ealing,CHILDREN & ADULTS,1,SAFEGUARDING & SUPPORT - CIC,SOCIAL SERVICES CONTRACTUAL CARERS ALLOWANCES,4380,,02/07/2019,22739771,700,REDACTED SENSITIVE SUPPLIER
Ealing Council,http://opendatacommunities.org/id/london-borough-council/ealing,CHILDREN & ADULTS,1,SAFEGUARDING & SUPPORT - CIC,SOCIAL SERVICES CONTRACTUAL CARERS ALLOWANCES,4380,,02/07/2019,22739772,262.04,REDACTED SENSITIVE SUPPLIER
Ealing Council,http://opendatacommunities.org/id/london-borough-council/ealing,CHILDREN & ADULTS,1,SAFEGUARDING & SUPPORT - CIC,SOCIAL SERVICES CONTRACTUAL CARERS ALLOWANCES,4380,,02/07/2019,22739772,262.04,REDACTED SENSITIVE SUPPLIER
Ealing Council,http://opendatacommunities.org/id/london-borough-council/ealing,CHILDREN & ADULTS,1,SAFEGUARDING & SUPPORT - CIC,SOCIAL SERVICES CONTRACTUAL CARERS ALLOWANCES,4380,,02/07/2019,22739780,262.04,REDACTED SENSITIVE SUPPLIER
Ealing Council,http://opendatacommunities.org/id/london-borough-council/ealing,CHILDREN & ADULTS,1,SAFEGUARDING & SUPPORT - CIC,SOCIAL SERVICES CONTRACTUAL CARERS ALLOWANCES,4380,,02/07/2019,22739473,262.04,REDACTED SENSITIVE SUPPLIER
Ealing Council,http://opendatacommunities.org/id/london-borough-council/ealing,CHILDREN & ADULTS,1,SAFEGUARDING & SUPPORT - CIC,SOCIAL SERVICES CONTRACTUAL CARERS ALLOWANCES,4380,,02/07/2019,22739475,-836.27,REDACTED SENSITIVE SUPPLIER
Ealing Council,http://opendatacommunities.org/id/london-borough-council/ealing,CHILDREN & ADULTS,1,SAFEGUARDING & SUPPORT - CIC,SOCIAL SERVICES CONTRACTUAL CARERS ALLOWANCES,4380,,02/07/2019,22739764,262.04,REDACTED SENSITIVE SUPPLIER
Ealing Council,http://opendatacommunities.org/id/london-borough-council/ealing,CHILDREN & ADULTS,1,SAFEGUARDING & SUPPORT - CIC,SOCIAL SERVICES CONTRACTUAL CARERS ALLOWANCES,4380,,02/07/2019,22739767,1400,REDACTED SENSITIVE SUPPLIER
Ealing Council,http://opendatacommunities.org/id/london-borough-council/ealing,CHILDREN & ADULTS,1,SAFEGUARDING & SUPPORT - CIC,SOCIAL SERVICES CONTRACTUAL CARERS ALLOWANCES,4380,,02/07/2019,22739767,262.04,REDACTED SENSITIVE SUPPLIER
Ealing Council,http://opendatacommunities.org/id/london-borough-council/ealing,CHILDREN & ADULTS,1,SAFEGUARDING & SUPPORT - CIC,SOCIAL SERVICES CONTRACTUAL CARERS ALLOWANCES,4380,,02/07/2019,22739767,786.12,REDACTED SENSITIVE SUPPLIER
Ealing Council,http://opendatacommunities.org/id/london-borough-council/ealing,CHILDREN & ADULTS,1,SAFEGUARDING & SUPPORT - CIC,SOCIAL SERVICES CONTRACTUAL CARERS ALLOWANCES,4380,,02/07/2019,22739490,700,REDACTED SENSITIVE SUPPLIER
Ealing Council,http://opendatacommunities.org/id/london-borough-council/ealing,CHILDREN & ADULTS,1,SAFEGUARDING & SUPPORT - CIC,SOCIAL SERVICES CONTRACTUAL CARERS ALLOWANCES,4380,,02/07/2019,22739490,700,REDACTED SENSITIVE SUPPLIER
Ealing Council,http://opendatacommunities.org/id/london-borough-council/ealing,CHILDREN & ADULTS,1,SAFEGUARDING & SUPPORT - CIC,SOCIAL SERVICES CONTRACTUAL CARERS ALLOWANCES,4380,,02/07/2019,22739493,700,REDACTED SENSITIVE SUPPLIER
Ealing Council,http://opendatacommunities.org/id/london-borough-council/ealing,CHILDREN & ADULTS,1,SAFEGUARDING & SUPPORT - CIC,SOCIAL SERVICES CONTRACTUAL CARERS ALLOWANCES,4380,,02/07/2019,22739464,262.04,REDACTED SENSITIVE SUPPLIER
Ealing Council,http://opendatacommunities.org/id/london-borough-council/ealing,CHILDREN & ADULTS,1,SAFEGUARDING & SUPPORT - CIC,SOCIAL SERVICES CONTRACTUAL CARERS ALLOWANCES,4380,,02/07/2019,22739600,262.04,REDACTED SENSITIVE SUPPLIER
Ealing Council,http://opendatacommunities.org/id/london-borough-council/ealing,CHILDREN & ADULTS,1,SAFEGUARDING & SUPPORT - CIC,SOCIAL SERVICES CONTRACTUAL CARERS ALLOWANCES,4380,,02/07/2019,22739600,262.04,REDACTED SENSITIVE SUPPLIER
Ealing Council,http://opendatacommunities.org/id/london-borough-council/ealing,CHILDREN & ADULTS,1,SAFEGUARDING & SUPPORT - CIC,SOCIAL SERVICES CONTRACTUAL CARERS ALLOWANCES,4380,,02/07/2019,22739767,700,REDACTED SENSITIVE SUPPLIER
Ealing Council,http://opendatacommunities.org/id/london-borough-council/ealing,CHILDREN & ADULTS,1,SAFEGUARDING & SUPPORT - CIC,SOCIAL SERVICES CONTRACTUAL CARERS ALLOWANCES,4380,,02/07/2019,22739767,650.43,REDACTED SENSITIVE SUPPLIER
Ealing Council,http://opendatacommunities.org/id/london-borough-council/ealing,CHILDREN & ADULTS,1,SAFEGUARDING & SUPPORT - CIC,SOCIAL SERVICES CONTRACTUAL CARERS ALLOWANCES,4380,,02/07/2019,22739767,700,REDACTED SENSITIVE SUPPLIER
Ealing Council,http://opendatacommunities.org/id/london-borough-council/ealing,CHILDREN & ADULTS,1,SAFEGUARDING & SUPPORT - CIC,SOCIAL SERVICES CONTRACTUAL CARERS ALLOWANCES,4380,,02/07/2019,22739483,650.43,REDACTED SENSITIVE SUPPLIER
Ealing Council,http://opendatacommunities.org/id/london-borough-council/ealing,CHILDREN & ADULTS,1,SAFEGUARDING & SUPPORT - CIC,SOCIAL SERVICES CONTRACTUAL CARERS ALLOWANCES,4380,,02/07/2019,22739488,262.04,REDACTED SENSITIVE SUPPLIER
Ealing Council,http://opendatacommunities.org/id/london-borough-council/ealing,CHILDREN & ADULTS,1,SAFEGUARDING & SUPPORT - CIC,SOCIAL SERVICES CONTRACTUAL CARERS ALLOWANCES,4380,,02/07/2019,22739488,262.04,REDACTED SENSITIVE SUPPLIER
Ealing Council,http://opendatacommunities.org/id/london-borough-council/ealing,CHILDREN & ADULTS,1,SAFEGUARDING & SUPPORT - CIC,SOCIAL SERVICES CONTRACTUAL CARERS ALLOWANCES,4380,,02/07/2019,22739566,262.04,REDACTED SENSITIVE SUPPLIER
Ealing Council,http://opendatacommunities.org/id/london-borough-council/ealing,CHILDREN & ADULTS,1,SAFEGUARDING & SUPPORT - CIC,SOCIAL SERVICES CONTRACTUAL CARERS ALLOWANCES,4380,,02/07/2019,22739424,262.04,REDACTED SENSITIVE SUPPLIER
Ealing Council,http://opendatacommunities.org/id/london-borough-council/ealing,CHILDREN & ADULTS,1,SAFEGUARDING & SUPPORT - CIC,SOCIAL SERVICES CONTRACTUAL CARERS ALLOWANCES,4380,,02/07/2019,22739433,700,REDACTED SENSITIVE SUPPLIER
Ealing Council,http://opendatacommunities.org/id/london-borough-council/ealing,CHILDREN & ADULTS,1,SAFEGUARDING & SUPPORT - CIC,KINSHIP CARE (SOCIAL SERVICES),4662,,02/07/2019,22739448,262.04,REDACTED SENSITIVE SUPPLIER
Ealing Council,http://opendatacommunities.org/id/london-borough-council/ealing,CHILDREN & ADULTS,1,ADULT MENTAL HEALTH,SUPPORTED LIVING,4236,,27/06/2019,22738848,483.4,HESTIA HOUSING AND SUPPORT
Ealing Council,http://opendatacommunities.org/id/london-borough-council/ealing,CHILDREN & ADULTS,1,ADULT MENTAL HEALTH,SUPPORTED LIVING,4236,,27/06/2019,22738757,1936,POSITIVE COMMUNITY CARE LTD
Ealing Council,http://opendatacommunities.org/id/london-borough-council/ealing,CHILDREN & ADULTS,1,ADULT MENTAL HEALTH,SUPPORTED LIVING,4236,,27/06/2019,22738757,2196.16,POSITIVE COMMUNITY CARE LTD
Ealing Council,http://opendatacommunities.org/id/london-borough-council/ealing,CHILDREN & ADULTS,1,ADULT MENTAL HEALTH,NURSING HOMES EXTERNAL,4230,,27/06/2019,22738761,-6539.88,ASTER HEALTHCARE
Ealing Council,http://opendatacommunities.org/id/london-borough-council/ealing,CHILDREN & ADULTS,1,ADULT MENTAL HEALTH,NURSING HOMES EXTERNAL,4230,,27/06/2019,22738761,8894.24,ASTER HEALTHCARE
Ealing Council,http://opendatacommunities.org/id/london-borough-council/ealing,CHILDREN & ADULTS,1,ADULT MENTAL HEALTH,NURSING HOMES EXTERNAL,4230,,27/06/2019,22738761,9469.12,ASTER HEALTHCARE
Ealing Council,http://opendatacommunities.org/id/london-borough-council/ealing,CHILDREN & ADULTS,1,ADULT MENTAL HEALTH,NURSING HOMES EXTERNAL,4230,,27/06/2019,22738761,-6962.64,ASTER HEALTHCARE
Ealing Council,http://opendatacommunities.org/id/london-borough-council/ealing,CHILDREN & ADULTS,1,ADULT MENTAL HEALTH,RESIDENTIAL HOMES EXTERNAL,4220,,27/06/2019,22738757,2306.24,POSITIVE COMMUNITY CARE LTD
Ealing Council,http://opendatacommunities.org/id/london-borough-council/ealing,CHILDREN & ADULTS,1,ADULT MENTAL HEALTH,RESIDENTIAL HOMES EXTERNAL,4220,,27/06/2019,22738760,2667.76,RAINBOW LODGE NURSING HOME
Ealing Council,http://opendatacommunities.org/id/london-borough-council/ealing,CHILDREN & ADULTS,1,ADULT MENTAL HEALTH,RESIDENTIAL HOMES EXTERNAL,4220,,27/06/2019,22738760,2888.44,RAINBOW LODGE NURSING HOME
Ealing Council,http://opendatacommunities.org/id/london-borough-council/ealing,CHILDREN & ADULTS,1,ADULT MENTAL HEALTH,RESIDENTIAL HOMES EXTERNAL,4220,,27/06/2019,22738761,2724.4,ASTER HEALTHCARE
Ealing Council,http://opendatacommunities.org/id/london-borough-council/ealing,CHILDREN & ADULTS,1,ADULT MENTAL HEALTH,SUPPORTED LIVING,4236,,27/06/2019,22738757,2200,POSITIVE COMMUNITY CARE LTD
Ealing Council,http://opendatacommunities.org/id/london-borough-council/ealing,CHILDREN & ADULTS,1,ADULT MENTAL HEALTH,EMI RESIDENTIAL,4227,,27/06/2019,22738776,2419.44,LIFE STYLE CARE PLC
Ealing Council,http://opendatacommunities.org/id/london-borough-council/ealing,CHILDREN & ADULTS,1,ADULT MENTAL HEALTH,NURSING HOMES EXTERNAL,4230,,27/06/2019,22738776,2487.88,LIFE STYLE CARE PLC
Ealing Council,http://opendatacommunities.org/id/london-borough-council/ealing,CHILDREN & ADULTS,1,ADULT MENTAL HEALTH,SUPPORTED LIVING,4236,,27/06/2019,22738757,1476.76,POSITIVE COMMUNITY CARE LTD
Ealing Council,http://opendatacommunities.org/id/london-borough-council/ealing,CHILDREN & ADULTS,1,ADULT MENTAL HEALTH,SUPPORTED LIVING,4236,,27/06/2019,22738757,1476.76,POSITIVE COMMUNITY CARE LTD
Ealing Council,http://opendatacommunities.org/id/london-borough-council/ealing,CHILDREN & ADULTS,1,ADULT MENTAL HEALTH,SUPPORTED LIVING,4236,,27/06/2019,22738757,2096,POSITIVE COMMUNITY CARE LTD
Ealing Council,http://opendatacommunities.org/id/london-borough-council/ealing,CHILDREN & ADULTS,1,ADULT MENTAL HEALTH,RESIDENTIAL HOMES EXTERNAL,4220,,27/06/2019,22738757,3914.2,POSITIVE COMMUNITY CARE LTD
Ealing Council,http://opendatacommunities.org/id/london-borough-council/ealing,CHILDREN & ADULTS,1,ADULT MENTAL HEALTH,RESIDENTIAL HOMES EXTERNAL,4220,,27/06/2019,22739065,2800,BONIVILLE HOUSE LIMITED
Ealing Council,http://opendatacommunities.org/id/london-borough-council/ealing,CHILDREN & ADULTS,1,ADULT MENTAL HEALTH,RESIDENTIAL HOMES EXTERNAL,4220,,27/06/2019,22739066,2576,STRONVAR REST HOME LTD
Ealing Council,http://opendatacommunities.org/id/london-borough-council/ealing,CHILDREN & ADULTS,1,ADULT MENTAL HEALTH,RESIDENTIAL HOMES EXTERNAL,4220,,27/06/2019,22739067,3594,PRESTWOOD RESIDENTIAL HOMES LTD
Ealing Council,http://opendatacommunities.org/id/london-borough-council/ealing,CHILDREN & ADULTS,1,ADULT MENTAL HEALTH,RESIDENTIAL HOMES EXTERNAL,4220,,27/06/2019,22739067,10752,PRESTWOOD RESIDENTIAL HOMES LTD
Ealing Council,http://opendatacommunities.org/id/london-borough-council/ealing,CHILDREN & ADULTS,1,ADULT MENTAL HEALTH,NURSING HOMES EXTERNAL,4230,,27/06/2019,22738776,2451.88,LIFE STYLE CARE PLC
Ealing Council,http://opendatacommunities.org/id/london-borough-council/ealing,CHILDREN & ADULTS,1,ADULT MENTAL HEALTH,NURSING HOMES EXTERNAL,4230,,27/06/2019,22738776,-6378.58,LIFE STYLE CARE PLC
Ealing Council,http://opendatacommunities.org/id/london-borough-council/ealing,CHILDREN & ADULTS,1,ADULT MENTAL HEALTH,NURSING HOMES EXTERNAL,4230,,27/06/2019,22738861,3356.44,FOREST CARE VILLAGE
Ealing Council,http://opendatacommunities.org/id/london-borough-council/ealing,CHILDREN & ADULTS,1,ADULT MENTAL HEALTH,RESIDENTIAL HOMES EXTERNAL,4220,,27/06/2019,22739051,1019.4,ISLAD
Ealing Council,http://opendatacommunities.org/id/london-borough-council/ealing,CHILDREN & ADULTS,1,ADULT MENTAL HEALTH,RESIDENTIAL HOMES EXTERNAL,4220,,27/06/2019,22739052,4104,CARE WITH HOPE LIMITED
Ealing Council,http://opendatacommunities.org/id/london-borough-council/ealing,CHILDREN & ADULTS,1,ADULT MENTAL HEALTH,RESIDENTIAL HOMES EXTERNAL,4220,,27/06/2019,22739056,3080,HESTIA HOUSING AND SUPPORT
Ealing Council,http://opendatacommunities.org/id/london-borough-council/ealing,CHILDREN & ADULTS,1,ADULT MENTAL HEALTH,RESIDENTIAL HOMES EXTERNAL,4220,,27/06/2019,22739056,2812,HESTIA HOUSING AND SUPPORT
Ealing Council,http://opendatacommunities.org/id/london-borough-council/ealing,CHILDREN & ADULTS,1,ADULT MENTAL HEALTH,RESIDENTIAL HOMES EXTERNAL,4220,,27/06/2019,22739062,-2216,MATTHEW RESIDENTIAL CARE LTD
Ealing Council,http://opendatacommunities.org/id/london-borough-council/ealing,CHILDREN & ADULTS,1,ADULT MENTAL HEALTH,SUPPORTED LIVING,4236,,27/06/2019,22738873,2300,CARE ASSIST KINGS ROAD
Ealing Council,http://opendatacommunities.org/id/london-borough-council/ealing,CHILDREN & ADULTS,1,ADULT MENTAL HEALTH,SUPPORTED LIVING,4236,,27/06/2019,22738873,2300,CARE ASSIST KINGS ROAD
Ealing Council,http://opendatacommunities.org/id/london-borough-council/ealing,CHILDREN & ADULTS,1,ADULT MENTAL HEALTH,SUPPORTED LIVING,4236,,27/06/2019,22738873,2300,CARE ASSIST KINGS ROAD
Ealing Council,http://opendatacommunities.org/id/london-borough-council/ealing,CHILDREN & ADULTS,1,ADULT MENTAL HEALTH,SUPPORTED LIVING,4236,,27/06/2019,22738876,2200,INSTANT CARE SOLUTIONS
Ealing Council,http://opendatacommunities.org/id/london-borough-council/ealing,CHILDREN & ADULTS,1,ADULT MENTAL HEALTH,SUPPORTED LIVING,4236,,27/06/2019,22738876,2200,INSTANT CARE SOLUTIONS
Ealing Council,http://opendatacommunities.org/id/london-borough-council/ealing,CHILDREN & ADULTS,1,ADULT MENTAL HEALTH,RESIDENTIAL HOMES EXTERNAL,4220,,27/06/2019,22738876,2920,INSTANT CARE SOLUTIONS
Ealing Council,http://opendatacommunities.org/id/london-borough-council/ealing,CHILDREN & ADULTS,1,ADULT MENTAL HEALTH,SUPPORTED LIVING,4236,,27/06/2019,22739014,2380,COMFORT CARE SERVICES UK LTD
Ealing Council,http://opendatacommunities.org/id/london-borough-council/ealing,CHILDREN & ADULTS,1,ADULT MENTAL HEALTH,SUPPORTED LIVING,4236,,27/06/2019,22739015,2304.88,POSITIVE COMMUNITY CARE LTD
Ealing Council,http://opendatacommunities.org/id/london-borough-council/ealing,CHILDREN & ADULTS,1,ADULT MENTAL HEALTH,RESIDENTIAL HOMES EXTERNAL,4220,,27/06/2019,22738874,2396,BEAUMONT ALEXIS LTD
Ealing Council,http://opendatacommunities.org/id/london-borough-council/ealing,CHILDREN & ADULTS,1,ADULT MENTAL HEALTH,RESIDENTIAL HOMES EXTERNAL,4220,,27/06/2019,22738875,2440,GLEDWOOD CARE HOMES
Ealing Council,http://opendatacommunities.org/id/london-borough-council/ealing,CHILDREN & ADULTS,1,ADULT MENTAL HEALTH,RESIDENTIAL HOMES EXTERNAL,4220,,27/06/2019,22738876,4564,INSTANT CARE SOLUTIONS
Ealing Council,http://opendatacommunities.org/id/london-borough-council/ealing,CHILDREN & ADULTS,1,ADULT MENTAL HEALTH,SUPPORTED LIVING,4236,,27/06/2019,22738873,2300,CARE ASSIST KINGS ROAD
Ealing Council,http://opendatacommunities.org/id/london-borough-council/ealing,PLACE,6,REPAIRS & MAINTENANCE,REPAIR AND MAINTENANCE,1410,,04/06/2019,40872378,300,CALL RESPONSE 24/7 LLP
Ealing Council,http://opendatacommunities.org/id/london-borough-council/ealing,PLACE,6,REPAIRS & MAINTENANCE,REPAIR AND MAINTENANCE,1410,,03/07/2019,40872707,3900,CALL RESPONSE 24/7 LLP
Ealing Council,http://opendatacommunities.org/id/london-borough-council/ealing,PLACE,6,REPAIRS & MAINTENANCE,REPAIR AND MAINTENANCE,1410,,02/05/2019,40869554,1260,CALL RESPONSE 24/7 LLP
Ealing Council,http://opendatacommunities.org/id/london-borough-council/ealing,PLACE,6,REPAIRS & MAINTENANCE,REPAIR AND MAINTENANCE,1410,,02/05/2019,40869552,3900,CALL RESPONSE 24/7 LLP
Ealing Council,http://opendatacommunities.org/id/london-borough-council/ealing,PLACE,6,REPAIRS & MAINTENANCE,REPAIR AND MAINTENANCE,1410,,04/06/2019,40872328,3900,CALL RESPONSE 24/7 LLP
Ealing Council,http://opendatacommunities.org/id/london-borough-council/ealing,CHILDREN & ADULTS,1,SCHOOLS EFFECTIVENESS,PAYMENTS TO OTHER ESTAB.,4350,,24/06/2019,40867796,595,Sundry Supplier - Children and Adults
Ealing Council,http://opendatacommunities.org/id/london-borough-council/ealing,CHILDREN & ADULTS,1,SCHOOLS EFFECTIVENESS,PAYMENTS TO OTHER ESTAB.,4350,,03/06/2019,40868485,400,ACORN HOMES (UK) LIMITED
Ealing Council,http://opendatacommunities.org/id/london-borough-council/ealing,CHILDREN & ADULTS,1,SCHOOLS EFFECTIVENESS,PAYMENTS TO OTHER ESTAB.,4350,,03/07/2019,22739268,-850,Sundry Supplier - Children and Adults
Ealing Council,http://opendatacommunities.org/id/london-borough-council/ealing,CHILDREN & ADULTS,1,SCHOOLS EFFECTIVENESS,PAYMENTS TO OTHER ESTAB.,4350,,02/07/2019,40869181,500,Sundry Supplier - Children and Adults
Ealing Council,http://opendatacommunities.org/id/london-borough-council/ealing,CHILDREN & ADULTS,1,SCHOOLS EFFECTIVENESS,PAYMENTS TO OTHER ESTAB.,4350,,04/07/2019,40869353,1700,Sundry Supplier - Children and Adults
Ealing Council,http://opendatacommunities.org/id/london-borough-council/ealing,CHILDREN & ADULTS,1,SCHOOLS EFFECTIVENESS,EMPLOYMENT IN WORKSHOPS,4620,,16/05/2019,40871182,1800,Sundry Supplier - Children and Adults
Ealing Council,http://opendatacommunities.org/id/london-borough-council/ealing,PLACE,6,PARKING,PARKING (ON STREET),8212,,10/07/2019,40870142,273,Sundry Supplier - Environment & Customer Services
Ealing Council,http://opendatacommunities.org/id/london-borough-council/ealing,CHIEF EXECUTIVE DIRECTORATE,5,West London Alliance,SERVER HOSTING SERVICE CHARGES,3215,,09/04/2019,40871740,1342.8,THCO
Ealing Council,http://opendatacommunities.org/id/london-borough-council/ealing,CHIEF EXECUTIVE DIRECTORATE,5,West London Alliance,COMP OUTSOURCED SERVICES,3220,,20/06/2019,40870363,5214,WYG ENVIRONMNET PLANNING TRANSPORT LTD
Ealing Council,http://opendatacommunities.org/id/london-borough-council/ealing,CHIEF EXECUTIVE DIRECTORATE,5,West London Alliance,VEHICLE HIRE,2010,,05/06/2019,40871399,1185,Sundry Supplier - Chief Executives
Ealing Council,http://opendatacommunities.org/id/london-borough-council/ealing,CHIEF EXECUTIVE DIRECTORATE,5,West London Alliance,ADVERTISING,2690,,18/06/2019,40868448,520,Sundry - Housing Benefit Payments
Ealing Council,http://opendatacommunities.org/id/london-borough-council/ealing,PLACE,6,REGULATORY SERVICES,PAYMENTS TO CONTRACTORS,4000,,07/06/2019,40869293,459.25,ESSENTIAL SECRETARY LTD
Ealing Council,http://opendatacommunities.org/id/london-borough-council/ealing,PLACE,6,REGULATORY SERVICES,PAYMENTS TO CONTRACTORS,4000,,19/06/2019,40872134,470,JAY CEE FACILITIES SERVICES LTD
Ealing Council,http://opendatacommunities.org/id/london-borough-council/ealing,PLACE,6,REGULATORY SERVICES,COMP OUTSOURCED SERVICES,3220,,18/06/2019,40872077,9875,ROCKTIME LIMITED
Ealing Council,http://opendatacommunities.org/id/london-borough-council/ealing,PLACE,6,REGULATORY SERVICES,TRAINING,80,,17/05/2019,40869560,1380,Sundry Supplier - Regeneration & Housing
Ealing Council,http://opendatacommunities.org/id/london-borough-council/ealing,PLACE,6,REGULATORY SERVICES,LAND REGISTRY SERVICES,2750,,19/07/2019,40872054,9568,REGULATORY SERVICES - IMPREST ACCOUNT
Ealing Council,http://opendatacommunities.org/id/london-borough-council/ealing,PLACE,6,REGULATORY SERVICES,MINOR EQUIP PURCHASE,3320,,12/06/2019,40871574,536,Back Care Solutions Ltd
Ealing Council,http://opendatacommunities.org/id/london-borough-council/ealing,PLACE,6,REGULATORY SERVICES,MINOR EQUIP PURCHASE,3320,,12/06/2019,40870570,412,Sundry Supplier - Regeneration & Housing
Ealing Council,http://opendatacommunities.org/id/london-borough-council/ealing,PLACE,6,REGULATORY SERVICES,HMO REGISTRATIONS,8766,,17/07/2019,40871582,307.5,Sundry Supplier - Regeneration & Housing
Ealing Council,http://opendatacommunities.org/id/london-borough-council/ealing,COUNCIL WIDE OTHER,9,BALANCE SHEET,CTRL OR B/S REFUNDS,6056,,08/07/2019,22740292,-1363.4,Sundry NNDR Refunds
Ealing Council,http://opendatacommunities.org/id/london-borough-council/ealing,COUNCIL WIDE OTHER,9,BALANCE SHEET,CTRL OR B/S REFUNDS,6056,,08/07/2019,22740310,-442.33,Sundry Council Tax Refunds
Ealing Council,http://opendatacommunities.org/id/london-borough-council/ealing,COUNCIL WIDE OTHER,9,BALANCE SHEET,CTRL OR B/S REFUNDS,6056,,08/07/2019,22740308,-333.06,Sundry Council Tax Refunds
Ealing Council,http://opendatacommunities.org/id/london-borough-council/ealing,COUNCIL WIDE OTHER,9,BALANCE SHEET,CTRL OR B/S REFUNDS,6056,,08/07/2019,22740309,-1167.43,Sundry Council Tax Refunds
Ealing Council,http://opendatacommunities.org/id/london-borough-council/ealing,CAPITAL SCHEMES,K,HRA,CAPITAL - CONTRACT PAYMENTS,7200,,31/03/2019,40868848,500,KNAPP HICKS & PARTNERS LTD
Ealing Council,http://opendatacommunities.org/id/london-borough-council/ealing,CAPITAL SCHEMES,K,HRA,CAPITAL - SITE INVESTIGATION,7150,,24/06/2019,40870229,38625.27,HIGGINS CONSTRUCTION PLC
Ealing Council,http://opendatacommunities.org/id/london-borough-council/ealing,CAPITAL SCHEMES,K,HRA,CAPITAL - SITE INVESTIGATION,7150,,24/06/2019,40870229,2204.82,HIGGINS CONSTRUCTION PLC
Ealing Council,http://opendatacommunities.org/id/london-borough-council/ealing,CAPITAL SCHEMES,K,HRA,CAPITAL - CONTRACT PAYMENTS,7200,,13/06/2019,40872309,63228.4,A2DOMINION HOUSING GROUP LTD
Ealing Council,http://opendatacommunities.org/id/london-borough-council/ealing,CAPITAL SCHEMES,K,ENVIRONMENT & LEISURE,CAPITAL - CONTRACT PAYMENTS,7200,,14/06/2019,40871170,565,LEAP ENVIRONMENTAL LTD
Ealing Council,http://opendatacommunities.org/id/london-borough-council/ealing,CAPITAL SCHEMES,K,REGENERATION,CAPITAL - CONTRACT PAYMENTS,7200,,11/07/2019,40871276,555349.39,TIGERTURF (UK) LTD
Ealing Council,http://opendatacommunities.org/id/london-borough-council/ealing,CAPITAL SCHEMES,K,REGENERATION,CAPITAL - CONTRACT PAYMENTS,7200,,02/06/2019,40868555,8879.8,CYD PROJECTS LTD
Ealing Council,http://opendatacommunities.org/id/london-borough-council/ealing,CAPITAL SCHEMES,K,REGENERATION,CAPITAL - CONTRACT PAYMENTS,7200,,30/06/2019,40872688,277729.28,KIER CONSTRUCTION LTD-T/A KIER CONSTRN SOUTHERN
Ealing Council,http://opendatacommunities.org/id/london-borough-council/ealing,CAPITAL SCHEMES,K,REGENERATION,CAPITAL - CONTRACT PAYMENTS,7200,,10/10/2018,40869129,750,CMS CAMERON McKENNA LLP
Ealing Council,http://opendatacommunities.org/id/london-borough-council/ealing,CAPITAL SCHEMES,K,REGENERATION,CAPITAL - CONTRACT PAYMENTS,7200,,20/02/2019,40869133,821.65,CMS CAMERON McKENNA LLP
Ealing Council,http://opendatacommunities.org/id/london-borough-council/ealing,CAPITAL SCHEMES,K,REGENERATION,CAPITAL - CONTRACT PAYMENTS,7200,,31/05/2019,40868497,862.5,ROBINSON LOW FRANCIS LLP
Ealing Council,http://opendatacommunities.org/id/london-borough-council/ealing,CAPITAL SCHEMES,K,REGENERATION,CAPITAL - CONTRACT PAYMENTS,7200,,01/06/2019,40869057,38929.22,SLOANE DEMOLITION & DISMANTLING LIMITED
Ealing Council,http://opendatacommunities.org/id/london-borough-council/ealing,CAPITAL SCHEMES,K,REGENERATION,CAPITAL - CONTRACT PAYMENTS,7200,,06/06/2019,40870898,239312.54,TIGERTURF (UK) LTD
Ealing Council,http://opendatacommunities.org/id/london-borough-council/ealing,CAPITAL SCHEMES,K,ENVIRONMENT & LEISURE,CAPITAL - CONTRACT PAYMENTS,7200,,12/06/2019,40870497,35778.73,R BENSON PROPERTY MAINTENANCE LTD
Ealing Council,http://opendatacommunities.org/id/london-borough-council/ealing,CAPITAL SCHEMES,K,ENVIRONMENT & LEISURE,CAPITAL - CONTRACT PAYMENTS,7200,,12/07/2019,40871408,5347.21,MURRILL CONSTRUCTION LIMITED
Ealing Council,http://opendatacommunities.org/id/london-borough-council/ealing,COUNCIL WIDE OTHER,9,BALANCE SHEET,CTRL OR B/S VEHICLES,6120,,13/06/2019,40871834,309.99,CYCLESCHEME LTD
Ealing Council,http://opendatacommunities.org/id/london-borough-council/ealing,CAPITAL SCHEMES,K,ENVIRONMENT & LEISURE,CAPITAL - CONTRACT PAYMENTS,7200,,05/06/2019,40870347,1975,BT PAYPHONES
Ealing Council,http://opendatacommunities.org/id/london-borough-council/ealing,CAPITAL SCHEMES,K,ENVIRONMENT & LEISURE,CAPITAL - CONTRACT PAYMENTS,7200,,05/06/2019,40869317,1755.08,LONDON WOODFUELS LTD
Ealing Council,http://opendatacommunities.org/id/london-borough-council/ealing,CAPITAL SCHEMES,K,ENVIRONMENT & LEISURE,CTRL OR B/S INFRASTUCTURE ASSETS,6160,,03/06/2019,40868657,6675,E.A.S.E EMPOWERING ACTION & SELF ESTEEM
Ealing Council,http://opendatacommunities.org/id/london-borough-council/ealing,CAPITAL SCHEMES,K,ENVIRONMENT & LEISURE,CAPITAL - MINOR EQUIP./PLANT,7290,,01/07/2019,40868429,3000,Sundry Supplier - Environment & Customer Services
Ealing Council,http://opendatacommunities.org/id/london-borough-council/ealing,CAPITAL SCHEMES,K,ENVIRONMENT & LEISURE,CAPITAL - MINOR EQUIP./PLANT,7290,,01/07/2019,40868429,1000,Sundry Supplier - Environment & Customer Services
Ealing Council,http://opendatacommunities.org/id/london-borough-council/ealing,CAPITAL SCHEMES,K,ENVIRONMENT & LEISURE,CAPITAL - MINOR EQUIP./PLANT,7290,,10/07/2019,40870849,4780,Sundry Supplier - Environment & Customer Services
Ealing Council,http://opendatacommunities.org/id/london-borough-council/ealing,CAPITAL SCHEMES,K,COUNCIL WIDE,CAPITAL - CONTRACT PAYMENTS,7200,,03/06/2019,40870092,8478,@its (search & selection) Ltd
Ealing Council,http://opendatacommunities.org/id/london-borough-council/ealing,CAPITAL SCHEMES,K,COUNCIL WIDE,CAPITAL - CONTRACT PAYMENTS,7200,,03/06/2019,40870091,67551,@its (search & selection) Ltd
Ealing Council,http://opendatacommunities.org/id/london-borough-council/ealing,CHILDREN & ADULTS,1,SAFEGUARDING & SUPPORT - CIN,SECTION 17,4290,,06/03/2019,40870328,647.56,WEST LONDON YMCA
Ealing Council,http://opendatacommunities.org/id/london-borough-council/ealing,CHILDREN & ADULTS,1,SAFEGUARDING & SUPPORT - CIN,SECTION 17,4290,,06/03/2019,40870328,403.16,WEST LONDON YMCA
Ealing Council,http://opendatacommunities.org/id/london-borough-council/ealing,CHILDREN & ADULTS,1,SAFEGUARDING & SUPPORT - CIN,SECTION 17 INTENTIONALLY HOMELESS FROM HOUSING,4299,,01/05/2019,40870967,750,SD BUILDERS LIMITED
Ealing Council,http://opendatacommunities.org/id/london-borough-council/ealing,CHILDREN & ADULTS,1,SAFEGUARDING & SUPPORT - CIN,SECTION 17,4290,,15/02/2019,40868420,1144,SD BUILDERS LIMITED
Ealing Council,http://opendatacommunities.org/id/london-borough-council/ealing,CHILDREN & ADULTS,1,SAFEGUARDING & SUPPORT - CIN,SECTION 17,4290,,13/06/2019,40871117,616.74,WEST LONDON YMCA
Ealing Council,http://opendatacommunities.org/id/london-borough-council/ealing,CHILDREN & ADULTS,1,SAFEGUARDING & SUPPORT - CIN,SECTION 17 INTENTIONALLY HOMELESS FROM HOUSING,4299,,28/05/2019,40867660,684,CENTREMARK PROPERTIES LIMITED
Ealing Council,http://opendatacommunities.org/id/london-borough-council/ealing,CHILDREN & ADULTS,1,SAFEGUARDING & SUPPORT - CIN,SECTION 17 INTENTIONALLY HOMELESS FROM HOUSING,4299,,01/04/2019,40868424,425,SD BUILDERS LIMITED
Ealing Council,http://opendatacommunities.org/id/london-borough-council/ealing,CHILDREN & ADULTS,1,SAFEGUARDING & SUPPORT - CIN,SECTION 17 INTENTIONALLY HOMELESS FROM HOUSING,4299,,25/03/2019,40871240,870,DEFINITE FINANCE COMPANY LTD
Ealing Council,http://opendatacommunities.org/id/london-borough-council/ealing,CHILDREN & ADULTS,1,SAFEGUARDING & SUPPORT - CIN,SECTION 17 INTENTIONALLY HOMELESS FROM HOUSING,4299,,28/05/2019,40867654,1475,CENTREMARK PROPERTIES LIMITED
Ealing Council,http://opendatacommunities.org/id/london-borough-council/ealing,CHILDREN & ADULTS,1,EALING SERVICE FOR CHILDREN WITH ADDITIONAL NEEDS,RESIDENTIAL HOMES EXTERNAL,4220,,22/07/2019,22745895,12380,WILLOWS (DEVON) LTD
Ealing Council,http://opendatacommunities.org/id/london-borough-council/ealing,CHILDREN & ADULTS,1,EALING SERVICE FOR CHILDREN WITH ADDITIONAL NEEDS,RESIDENTIAL HOMES EXTERNAL,4220,,22/07/2019,22745895,2780,WILLOWS (DEVON) LTD
Ealing Council,http://opendatacommunities.org/id/london-borough-council/ealing,CHILDREN & ADULTS,1,EALING SERVICE FOR CHILDREN WITH ADDITIONAL NEEDS,SOCIAL SERVICES -INDEPENDENT FOSTERING,4221,,01/04/2019,40872358,5464.2,ANCHOR FOSTERCARE SERVICES LTD
Ealing Council,http://opendatacommunities.org/id/london-borough-council/ealing,CHILDREN & ADULTS,1,EALING SERVICE FOR CHILDREN WITH ADDITIONAL NEEDS,SOCIAL SERVICES -INDEPENDENT FOSTERING,4221,,01/05/2019,40872360,5646.34,ANCHOR FOSTERCARE SERVICES LTD
Ealing Council,http://opendatacommunities.org/id/london-borough-council/ealing,CHILDREN & ADULTS,1,EALING SERVICE FOR CHILDREN WITH ADDITIONAL NEEDS,SOCIAL SERVICES -INDEPENDENT FOSTERING,4221,,31/05/2019,40868327,5756.7,FAMILY FOSTERING LIMITED
Ealing Council,http://opendatacommunities.org/id/london-borough-council/ealing,CHILDREN & ADULTS,1,PERFORMANCE & TRAINING,TRAINING,80,,27/06/2019,40873300,780,SAM TARLING CONSULTANCY LIMITED
Ealing Council,http://opendatacommunities.org/id/london-borough-council/ealing,CHILDREN & ADULTS,1,PERFORMANCE & TRAINING,TRAINING,80,,19/06/2019,40872099,1300,JANET LEE TRAINING & CONSULTANCY LIMITED
Ealing Council,http://opendatacommunities.org/id/london-borough-council/ealing,CHILDREN & ADULTS,1,SAFEGUARDING & SUPP - BS &A&F,PAYMENTS TO CONTRACTORS,4000,,17/06/2019,40869990,300,SHL MINUTES LIMITED T/A SUSAN LUCKS
Ealing Council,http://opendatacommunities.org/id/london-borough-council/ealing,CHILDREN & ADULTS,1,SAFEGUARDING & SUPP - BS &A&F,PAYMENTS TO CONTRACTORS,4000,,17/06/2019,40869997,270,SHL MINUTES LIMITED T/A SUSAN LUCKS
Ealing Council,http://opendatacommunities.org/id/london-borough-council/ealing,CHILDREN & ADULTS,1,SAFEGUARDING & SUPP - BS &A&F,PAYMENTS TO CONTRACTORS,4000,,19/06/2019,40869998,300,SHL MINUTES LIMITED T/A SUSAN LUCKS
Ealing Council,http://opendatacommunities.org/id/london-borough-council/ealing,CHILDREN & ADULTS,1,SAFEGUARDING & SUPP - BS &A&F,PAYMENTS TO CONTRACTORS,4000,,05/07/2019,40870289,270,SHL MINUTES LIMITED T/A SUSAN LUCKS
Ealing Council,http://opendatacommunities.org/id/london-borough-council/ealing,CHILDREN & ADULTS,1,SAFEGUARDING & SUPP - BS &A&F,PAYMENTS TO CONTRACTORS,4000,,05/07/2019,40870292,270,SHL MINUTES LIMITED T/A SUSAN LUCKS
Ealing Council,http://opendatacommunities.org/id/london-borough-council/ealing,CHILDREN & ADULTS,1,SAFEGUARDING & SUPP - BS &A&F,PAYMENTS TO CONTRACTORS,4000,,05/07/2019,40870300,270,SHL MINUTES LIMITED T/A SUSAN LUCKS
Ealing Council,http://opendatacommunities.org/id/london-borough-council/ealing,CHILDREN & ADULTS,1,SAFEGUARDING & SUPP - BS &A&F,PAYMENTS TO CONTRACTORS,4000,,17/06/2019,40868012,330,SHL MINUTES LIMITED T/A SUSAN LUCKS
Ealing Council,http://opendatacommunities.org/id/london-borough-council/ealing,CHILDREN & ADULTS,1,SAFEGUARDING & SUPP - BS &A&F,PAYMENTS TO CONTRACTORS,4000,,17/06/2019,40868015,270,SHL MINUTES LIMITED T/A SUSAN LUCKS
Ealing Council,http://opendatacommunities.org/id/london-borough-council/ealing,CHILDREN & ADULTS,1,SAFEGUARDING & SUPP - BS &A&F,PAYMENTS TO CONTRACTORS,4000,,17/06/2019,40868464,390,SHL MINUTES LIMITED T/A SUSAN LUCKS
Ealing Council,http://opendatacommunities.org/id/london-borough-council/ealing,CHILDREN & ADULTS,1,SAFEGUARDING & SUPP - BS &A&F,MINOR EQUIP PURCHASE,3320,,30/04/2019,40871640,600,BLAZIE ENGINEERING LTD
Ealing Council,http://opendatacommunities.org/id/london-borough-council/ealing,CHILDREN & ADULTS,1,SAFEGUARDING & SUPP - BS &A&F,PAYMENTS TO CONTRACTORS,4000,,04/07/2019,40870308,360,SHL MINUTES LIMITED T/A SUSAN LUCKS
Ealing Council,http://opendatacommunities.org/id/london-borough-council/ealing,CHILDREN & ADULTS,1,SAFEGUARDING & SUPP - BS &A&F,PAYMENTS TO CONTRACTORS,4000,,04/07/2019,40870310,270,SHL MINUTES LIMITED T/A SUSAN LUCKS
Ealing Council,http://opendatacommunities.org/id/london-borough-council/ealing,CHILDREN & ADULTS,1,SAFEGUARDING & SUPP - BS &A&F,PAYMENTS TO CONTRACTORS,4000,,04/07/2019,40870315,300,SHL MINUTES LIMITED T/A SUSAN LUCKS
Ealing Council,http://opendatacommunities.org/id/london-borough-council/ealing,CHILDREN & ADULTS,1,SAFEGUARDING & SUPP - BS &A&F,PAYMENTS TO CONTRACTORS,4000,,17/06/2019,40868006,300,SHL MINUTES LIMITED T/A SUSAN LUCKS
Ealing Council,http://opendatacommunities.org/id/london-borough-council/ealing,CHILDREN & ADULTS,1,SAFEGUARDING & SUPP - BS &A&F,PAYMENTS TO CONTRACTORS,4000,,17/06/2019,40868007,420,SHL MINUTES LIMITED T/A SUSAN LUCKS
Ealing Council,http://opendatacommunities.org/id/london-borough-council/ealing,CHILDREN & ADULTS,1,SAFEGUARDING & SUPP - BS &A&F,PAYMENTS TO CONTRACTORS,4000,,17/06/2019,40868011,300,SHL MINUTES LIMITED T/A SUSAN LUCKS
Ealing Council,http://opendatacommunities.org/id/london-borough-council/ealing,CHIEF EXECUTIVE DIRECTORATE,5,CUSTOMER & TRANSACTIONAL SERVICES,EDUCATION -ADMIN STAT & CONSUMEABLE EQUIP,3821,,26/06/2019,40870674,650,STOPFORD INFORMATION SYSTEMS LIMITED
Ealing Council,http://opendatacommunities.org/id/london-borough-council/ealing,CHILDREN & ADULTS,1,SAFEGUARDING & SUPPORT - CIC,RESIDENTIAL HOMES EXTERNAL,4220,,31/05/2019,40872701,11625,HEARTWOOD OUTREACH SERVICES LTD
Ealing Council,http://opendatacommunities.org/id/london-borough-council/ealing,CHILDREN & ADULTS,1,SAFEGUARDING & SUPPORT - CIC,RESIDENTIAL HOMES EXTERNAL,4220,,30/05/2019,40868750,2923.52,WEST LONDON YMCA
Ealing Council,http://opendatacommunities.org/id/london-borough-council/ealing,CHILDREN & ADULTS,1,SAFEGUARDING & SUPPORT - CIC,RESIDENTIAL HOMES EXTERNAL,4220,,15/05/2019,40871010,13500,INDEPENDENT CHILDCARE GROUP OF SCH LTD T/A CAMBIAN CHILDCARE LTD
Ealing Council,http://opendatacommunities.org/id/london-borough-council/ealing,CHILDREN & ADULTS,1,SAFEGUARDING & SUPPORT - CIC,RESIDENTIAL HOMES EXTERNAL,4220,,02/06/2019,40869307,3697.87,CARE R US LTD T/A KROSSROADS
Ealing Council,http://opendatacommunities.org/id/london-borough-council/ealing,CHILDREN & ADULTS,1,SAFEGUARDING & SUPPORT - CIC,RESIDENTIAL HOMES EXTERNAL,4220,,15/02/2019,40872316,11399.92,ST CHRISTOPHERS FELLOWSHIP-SCF
Ealing Council,http://opendatacommunities.org/id/london-borough-council/ealing,CHILDREN & ADULTS,1,SAFEGUARDING & SUPPORT - CIC,RESIDENTIAL HOMES EXTERNAL,4220,,31/05/2019,40870238,1565.5,PEEPAL TREE SUPPORT SERVICES LTD
Ealing Council,http://opendatacommunities.org/id/london-borough-council/ealing,CHILDREN & ADULTS,1,SAFEGUARDING & SUPPORT - CIC,SOCIAL SERVICES -INDEPENDENT FOSTERING,4221,,22/07/2019,22745888,642.72,FOSTER CARE ASSOCIATES LIMITED
Ealing Council,http://opendatacommunities.org/id/london-borough-council/ealing,CHILDREN & ADULTS,1,SAFEGUARDING & SUPPORT - CIC,SOCIAL SERVICES -INDEPENDENT FOSTERING,4221,,22/07/2019,22745889,6417,NEXUS FOSTERING LIMITED
Ealing Council,http://opendatacommunities.org/id/london-borough-council/ealing,CHILDREN & ADULTS,1,SAFEGUARDING & SUPPORT - CIC,SOCIAL SERVICES -INDEPENDENT FOSTERING,4221,,22/07/2019,22745889,-6417,NEXUS FOSTERING LIMITED
Ealing Council,http://opendatacommunities.org/id/london-borough-council/ealing,CHILDREN & ADULTS,1,SAFEGUARDING & SUPPORT - CIC,SOCIAL SERVICES -INDEPENDENT FOSTERING,4221,,22/07/2019,22745889,2460.47,NEXUS FOSTERING LIMITED
Ealing Council,http://opendatacommunities.org/id/london-borough-council/ealing,CHILDREN & ADULTS,1,SAFEGUARDING & SUPPORT - CIC,SOCIAL SERVICES -INDEPENDENT FOSTERING,4221,,22/07/2019,22745886,-2480.71,CONNECT FOSTERING SERVICES LTD
Ealing Council,http://opendatacommunities.org/id/london-borough-council/ealing,CHILDREN & ADULTS,1,SAFEGUARDING & SUPPORT - CIC,SOCIAL SERVICES -INDEPENDENT FOSTERING,4221,,22/07/2019,22745886,323.57,CONNECT FOSTERING SERVICES LTD
Ealing Council,http://opendatacommunities.org/id/london-borough-council/ealing,CHILDREN & ADULTS,1,SAFEGUARDING & SUPPORT - CIC,SOCIAL SERVICES -INDEPENDENT FOSTERING,4221,,22/07/2019,22745886,-2356.68,CONNECT FOSTERING SERVICES LTD
Ealing Council,http://opendatacommunities.org/id/london-borough-council/ealing,CHILDREN & ADULTS,1,SAFEGUARDING & SUPPORT - CIC,SOCIAL SERVICES -INDEPENDENT FOSTERING,4221,,22/07/2019,22745886,-2612.14,CONNECT FOSTERING SERVICES LTD
Ealing Council,http://opendatacommunities.org/id/london-borough-council/ealing,CHILDREN & ADULTS,1,SAFEGUARDING & SUPPORT - CIC,SOCIAL SERVICES -INDEPENDENT FOSTERING,4221,,22/07/2019,22745887,433.14,BY THE BRIDGE LTD
Ealing Council,http://opendatacommunities.org/id/london-borough-council/ealing,CHILDREN & ADULTS,1,SAFEGUARDING & SUPPORT - CIC,SOCIAL SERVICES -INDEPENDENT FOSTERING,4221,,22/07/2019,22745887,433.14,BY THE BRIDGE LTD
Ealing Council,http://opendatacommunities.org/id/london-borough-council/ealing,CHILDREN & ADULTS,1,SAFEGUARDING & SUPPORT - CIC,SOCIAL SERVICES -INDEPENDENT FOSTERING,4221,,22/07/2019,22745883,1022.6,HEATH FARM FAMILY SERVICES LTD C/O ACORN CARE & EDUCATION LTD
Ealing Council,http://opendatacommunities.org/id/london-borough-council/ealing,CHILDREN & ADULTS,1,SAFEGUARDING & SUPPORT - CIC,SOCIAL SERVICES -INDEPENDENT FOSTERING,4221,,22/07/2019,22745883,418.18,HEATH FARM FAMILY SERVICES LTD C/O ACORN CARE & EDUCATION LTD
Ealing Council,http://opendatacommunities.org/id/london-borough-council/ealing,CHILDREN & ADULTS,1,SAFEGUARDING & SUPPORT - CIC,SOCIAL SERVICES -INDEPENDENT FOSTERING,4221,,22/07/2019,22745883,1463.63,HEATH FARM FAMILY SERVICES LTD C/O ACORN CARE & EDUCATION LTD
Ealing Council,http://opendatacommunities.org/id/london-borough-council/ealing,CHILDREN & ADULTS,1,SAFEGUARDING & SUPPORT - CIC,SOCIAL SERVICES -INDEPENDENT FOSTERING,4221,,22/07/2019,22745884,471.42,RAINBOW FOSTERING SERVICES LTD
Ealing Council,http://opendatacommunities.org/id/london-borough-council/ealing,CHILDREN & ADULTS,1,SAFEGUARDING & SUPPORT - CIC,SOCIAL SERVICES -INDEPENDENT FOSTERING,4221,,22/07/2019,22745885,2727.11,COMPASS FOSTERING LONDON LTD
Ealing Council,http://opendatacommunities.org/id/london-borough-council/ealing,CHILDREN & ADULTS,1,SAFEGUARDING & SUPPORT - CIC,SOCIAL SERVICES -INDEPENDENT FOSTERING,4221,,22/07/2019,22745886,2481.54,CONNECT FOSTERING SERVICES LTD
Ealing Council,http://opendatacommunities.org/id/london-borough-council/ealing,CHILDREN & ADULTS,1,SAFEGUARDING & SUPPORT - CIC,SOCIAL SERVICES -INDEPENDENT FOSTERING,4221,,22/07/2019,22745883,3885.16,HEATH FARM FAMILY SERVICES LTD C/O ACORN CARE & EDUCATION LTD
Ealing Council,http://opendatacommunities.org/id/london-borough-council/ealing,CHILDREN & ADULTS,1,SAFEGUARDING & SUPPORT - CIC,SOCIAL SERVICES -INDEPENDENT FOSTERING,4221,,22/07/2019,22745883,3885.16,HEATH FARM FAMILY SERVICES LTD C/O ACORN CARE & EDUCATION LTD
Ealing Council,http://opendatacommunities.org/id/london-borough-council/ealing,CHILDREN & ADULTS,1,SAFEGUARDING & SUPPORT - CIC,SOCIAL SERVICES -INDEPENDENT FOSTERING,4221,,22/07/2019,22745883,-5860.63,HEATH FARM FAMILY SERVICES LTD C/O ACORN CARE & EDUCATION LTD
Ealing Council,http://opendatacommunities.org/id/london-borough-council/ealing,CHILDREN & ADULTS,1,SAFEGUARDING & SUPPORT - CIC,SOCIAL SERVICES -INDEPENDENT FOSTERING,4221,,22/07/2019,22745883,1975.47,HEATH FARM FAMILY SERVICES LTD C/O ACORN CARE & EDUCATION LTD
Ealing Council,http://opendatacommunities.org/id/london-borough-council/ealing,CHILDREN & ADULTS,1,SAFEGUARDING & SUPPORT - CIC,SOCIAL SERVICES -INDEPENDENT FOSTERING,4221,,22/07/2019,22745883,1254.54,HEATH FARM FAMILY SERVICES LTD C/O ACORN CARE & EDUCATION LTD
Ealing Council,http://opendatacommunities.org/id/london-borough-council/ealing,CHILDREN & ADULTS,1,SAFEGUARDING & SUPPORT - CIC,SOCIAL SERVICES -INDEPENDENT FOSTERING,4221,,22/07/2019,22745883,627.27,HEATH FARM FAMILY SERVICES LTD C/O ACORN CARE & EDUCATION LTD
Ealing Council,http://opendatacommunities.org/id/london-borough-council/ealing,CHILDREN & ADULTS,1,SAFEGUARDING & SUPPORT - CIC,SOCIAL SERVICES -INDEPENDENT FOSTERING,4221,,31/03/2019,40870980,1027.26,NATIONAL FOSTERING AGENCY LTD
Ealing Council,http://opendatacommunities.org/id/london-borough-council/ealing,CHILDREN & ADULTS,1,SAFEGUARDING & SUPPORT - CIC,SOCIAL SERVICES -INDEPENDENT FOSTERING,4221,,24/06/2019,22745883,7363.71,HEATH FARM FAMILY SERVICES LTD C/O ACORN CARE & EDUCATION LTD
Ealing Council,http://opendatacommunities.org/id/london-borough-council/ealing,CHILDREN & ADULTS,1,SAFEGUARDING & SUPPORT - CIC,SOCIAL SERVICES -INDEPENDENT FOSTERING,4221,,22/07/2019,22745883,-5860.63,HEATH FARM FAMILY SERVICES LTD C/O ACORN CARE & EDUCATION LTD
Ealing Council,http://opendatacommunities.org/id/london-borough-council/ealing,CHILDREN & ADULTS,1,SAFEGUARDING & SUPPORT - CIC,SOCIAL SERVICES -INDEPENDENT FOSTERING,4221,,22/07/2019,22745883,1975.47,HEATH FARM FAMILY SERVICES LTD C/O ACORN CARE & EDUCATION LTD
Ealing Council,http://opendatacommunities.org/id/london-borough-council/ealing,CHILDREN & ADULTS,1,SAFEGUARDING & SUPPORT - CIC,SOCIAL SERVICES -INDEPENDENT FOSTERING,4221,,22/07/2019,22745883,3885.16,HEATH FARM FAMILY SERVICES LTD C/O ACORN CARE & EDUCATION LTD
Ealing Council,http://opendatacommunities.org/id/london-borough-council/ealing,CHILDREN & ADULTS,1,SAFEGUARDING & SUPPORT - CIC,SOCIAL SERVICES -INDEPENDENT FOSTERING,4221,,22/07/2019,22745883,-7363.71,HEATH FARM FAMILY SERVICES LTD C/O ACORN CARE & EDUCATION LTD
Ealing Council,http://opendatacommunities.org/id/london-borough-council/ealing,CHILDREN & ADULTS,1,SAFEGUARDING & SUPPORT - CIC,SOCIAL SERVICES -INDEPENDENT FOSTERING,4221,,28/02/2019,40869411,3099.88,REGIONAL FOSTERING SERVICES LTD
Ealing Council,http://opendatacommunities.org/id/london-borough-council/ealing,CHILDREN & ADULTS,1,SAFEGUARDING & SUPPORT - CIC,SOCIAL SERVICES -INDEPENDENT FOSTERING,4221,,31/03/2019,40869412,3432.01,REGIONAL FOSTERING SERVICES LTD
Ealing Council,http://opendatacommunities.org/id/london-borough-council/ealing,CHILDREN & ADULTS,1,SAFEGUARDING & SUPPORT - CIC,SOCIAL SERVICES -INDEPENDENT FOSTERING,4221,,31/03/2019,40869859,949.97,CARING HEARTS FOSTERING LTD
Ealing Council,http://opendatacommunities.org/id/london-borough-council/ealing,CHILDREN & ADULTS,1,SAFEGUARDING & SUPPORT - CIC,SOCIAL SERVICES -INDEPENDENT FOSTERING,4221,,30/04/2019,40869431,2384.97,REGIONAL FOSTERING SERVICES LTD
Ealing Council,http://opendatacommunities.org/id/london-borough-council/ealing,CHILDREN & ADULTS,1,SAFEGUARDING & SUPPORT - CIC,SOCIAL SERVICES -INDEPENDENT FOSTERING,4221,,31/05/2019,40869432,3520.67,REGIONAL FOSTERING SERVICES LTD
Ealing Council,http://opendatacommunities.org/id/london-borough-council/ealing,CHILDREN & ADULTS,1,SAFEGUARDING & SUPPORT - CIC,SOCIAL SERVICES -INDEPENDENT FOSTERING,4221,,31/10/2018,40870979,570.7,NATIONAL FOSTERING AGENCY LTD
Ealing Council,http://opendatacommunities.org/id/london-borough-council/ealing,CHILDREN & ADULTS,1,SAFEGUARDING & SUPPORT - CIC,SOCIAL SERVICES -INDEPENDENT FOSTERING,4221,,22/07/2019,22745945,3418.24,THE CHILDREN'S FAMILY TRUST
Ealing Council,http://opendatacommunities.org/id/london-borough-council/ealing,CHILDREN & ADULTS,1,SAFEGUARDING & SUPPORT - CIC,CHILDRENS SERVICES -ELIGIBLE CHILDREN OTHER COSTS,4282,,22/07/2019,22745942,15360,INSPIRE SCOTLAND LIMITED
Ealing Council,http://opendatacommunities.org/id/london-borough-council/ealing,CHILDREN & ADULTS,1,SAFEGUARDING & SUPPORT - CIC,SOCIAL SERVICES -INDEPENDENT FOSTERING,4221,,22/07/2019,22745948,3040,CARING HEARTS FOSTERING LTD
Ealing Council,http://opendatacommunities.org/id/london-borough-council/ealing,CHILDREN & ADULTS,1,INTEGRATED COMMISSIONING,PAYMENTS TO CONTRACTORS,4000,,24/05/2019,40871890,19250,RICHMOND FELLOWSHIP
Ealing Council,http://opendatacommunities.org/id/london-borough-council/ealing,CHILDREN & ADULTS,1,INTEGRATED COMMISSIONING,PAYMENTS TO CONTRACTORS,4000,,19/06/2019,40872124,20558.13,FAMILY ACTION
Ealing Council,http://opendatacommunities.org/id/london-borough-council/ealing,CHILDREN & ADULTS,1,SAFEGUARDING & SUPPORT - CIN,RESIDENTIAL HOMES EXTERNAL,4220,,03/07/2019,40869893,1371.3,YOUNG LONDON TODAY
Ealing Council,http://opendatacommunities.org/id/london-borough-council/ealing,CHILDREN & ADULTS,1,SAFEGUARDING & SUPPORT - CIN,RESIDENTIAL HOMES EXTERNAL,4220,,31/05/2019,40872851,2878.35,ABC HILLINGDON LTD - T/A ABC HOUSING
Ealing Council,http://opendatacommunities.org/id/london-borough-council/ealing,CHILDREN & ADULTS,1,SAFEGUARDING & SUPPORT - CIN,RESIDENTIAL HOMES EXTERNAL,4220,,01/04/2019,40872852,2785.5,ABC HILLINGDON LTD - T/A ABC HOUSING
Ealing Council,http://opendatacommunities.org/id/london-borough-council/ealing,CHILDREN & ADULTS,1,SAFEGUARDING & SUPPORT - CIN,RESIDENTIAL HOMES EXTERNAL,4220,,13/06/2019,40871134,911,WEST LONDON YMCA
Ealing Council,http://opendatacommunities.org/id/london-borough-council/ealing,CHILDREN & ADULTS,1,SAFEGUARDING & SUPPORT - CIN,RESIDENTIAL HOMES EXTERNAL,4220,,13/06/2019,40871135,1247.48,WEST LONDON YMCA
Ealing Council,http://opendatacommunities.org/id/london-borough-council/ealing,CHILDREN & ADULTS,1,SAFEGUARDING & SUPPORT - CIN,RESIDENTIAL HOMES EXTERNAL,4220,,30/04/2019,40871222,972.43,WEST LONDON YMCA
Ealing Council,http://opendatacommunities.org/id/london-borough-council/ealing,CHILDREN & ADULTS,1,SAFEGUARDING & SUPPORT - CIN,RESIDENTIAL HOMES EXTERNAL,4220,,13/06/2019,40871107,1247.48,WEST LONDON YMCA
Ealing Council,http://opendatacommunities.org/id/london-borough-council/ealing,CHILDREN & ADULTS,1,SAFEGUARDING & SUPPORT - CIN,SOCIAL SERVICES -INDEPENDENT FOSTERING,4221,,31/05/2019,40872606,2040,COMPASS FOSTERING LONDON LTD
Ealing Council,http://opendatacommunities.org/id/london-borough-council/ealing,CHILDREN & ADULTS,1,SAFEGUARDING & SUPPORT - CIN,SOCIAL SERVICES -INDEPENDENT FOSTERING,4221,,31/05/2019,40869035,3538.34,NATIONAL FOSTERING AGENCY LTD
Ealing Council,http://opendatacommunities.org/id/london-borough-council/ealing,CHILDREN & ADULTS,1,SAFEGUARDING & SUPPORT - CIN,SOCIAL SERVICES -INDEPENDENT FOSTERING,4221,,30/05/2019,40868347,1557.57,WEST LONDON YMCA
Ealing Council,http://opendatacommunities.org/id/london-borough-council/ealing,CHILDREN & ADULTS,1,SAFEGUARDING & SUPPORT - CIN,SOCIAL SERVICES -INDEPENDENT FOSTERING,4221,,01/04/2019,40868692,2608.54,COMPASS FOSTERING LONDON LTD
Ealing Council,http://opendatacommunities.org/id/london-borough-council/ealing,CHILDREN & ADULTS,1,SAFEGUARDING & SUPPORT - CIN,RESIDENTIAL HOMES EXTERNAL,4220,,31/05/2019,40868366,1719.39,WEST LONDON YMCA
Ealing Council,http://opendatacommunities.org/id/london-borough-council/ealing,CHILDREN & ADULTS,1,SAFEGUARDING & SUPPORT - CIN,RESIDENTIAL HOMES EXTERNAL,4220,,31/05/2019,40868507,1719.22,WEST LONDON YMCA
Ealing Council,http://opendatacommunities.org/id/london-borough-council/ealing,CHILDREN & ADULTS,1,SAFEGUARDING & SUPPORT - CIN,RESIDENTIAL HOMES EXTERNAL,4220,,31/05/2019,40868368,1650.13,WEST LONDON YMCA
Ealing Council,http://opendatacommunities.org/id/london-borough-council/ealing,CHILDREN & ADULTS,1,SAFEGUARDING & SUPPORT - CIN,RESIDENTIAL HOMES EXTERNAL,4220,,13/06/2019,40871094,1836.75,WEST LONDON YMCA
Ealing Council,http://opendatacommunities.org/id/london-borough-council/ealing,CHILDREN & ADULTS,1,SAFEGUARDING & SUPPORT - CIN,RESIDENTIAL HOMES EXTERNAL,4220,,13/06/2019,40871095,1247.48,WEST LONDON YMCA
Ealing Council,http://opendatacommunities.org/id/london-borough-council/ealing,CHILDREN & ADULTS,1,SAFEGUARDING & SUPPORT - CIN,RESIDENTIAL HOMES EXTERNAL,4220,,13/06/2019,40871097,885.31,WEST LONDON YMCA
Ealing Council,http://opendatacommunities.org/id/london-borough-council/ealing,CHILDREN & ADULTS,1,SAFEGUARDING & SUPPORT - CIN,RESIDENTIAL HOMES EXTERNAL,4220,,31/05/2019,40870237,1658.5,PEEPAL TREE SUPPORT SERVICES LTD
Ealing Council,http://opendatacommunities.org/id/london-borough-council/ealing,CHILDREN & ADULTS,1,SAFEGUARDING & SUPPORT - CIN,RESIDENTIAL HOMES EXTERNAL,4220,,13/06/2019,40871100,1247.48,WEST LONDON YMCA
Ealing Council,http://opendatacommunities.org/id/london-borough-council/ealing,CHILDREN & ADULTS,1,SAFEGUARDING & SUPPORT - CIN,RESIDENTIAL HOMES EXTERNAL,4220,,31/05/2019,40868505,620.31,WEST LONDON YMCA
Ealing Council,http://opendatacommunities.org/id/london-borough-council/ealing,CHILDREN & ADULTS,1,SAFEGUARDING & SUPPORT - CIN,RESIDENTIAL HOMES EXTERNAL,4220,,01/06/2019,40871672,1500,CASS ASSOCIATES LONDON LTD
Ealing Council,http://opendatacommunities.org/id/london-borough-council/ealing,CHILDREN & ADULTS,1,SAFEGUARDING & SUPPORT - CIN,RESIDENTIAL HOMES EXTERNAL,4220,,01/06/2019,40871672,428.55,CASS ASSOCIATES LONDON LTD
Ealing Council,http://opendatacommunities.org/id/london-borough-council/ealing,CHILDREN & ADULTS,1,SAFEGUARDING & SUPPORT - CIN,RESIDENTIAL HOMES EXTERNAL,4220,,03/07/2019,40869898,1371.3,YOUNG LONDON TODAY
Ealing Council,http://opendatacommunities.org/id/london-borough-council/ealing,CHILDREN & ADULTS,1,BUSINESS MANAGEMENT,TRAINING,80,,12/06/2019,40870524,1364,MSH TRAINING & CONSULTANCY LTD
Ealing Council,http://opendatacommunities.org/id/london-borough-council/ealing,CHILDREN & ADULTS,1,BUSINESS MANAGEMENT,TRAINING,80,,25/04/2019,40868616,295,FIRST RESPONSE TRAINING AND CONSULTANCY SERVICES LTD
Ealing Council,http://opendatacommunities.org/id/london-borough-council/ealing,CHILDREN & ADULTS,1,BUSINESS MANAGEMENT,TRAINING,80,,07/06/2019,40869428,540,EQUAL TRAINING
Ealing Council,http://opendatacommunities.org/id/london-borough-council/ealing,CHILDREN & ADULTS,1,BUSINESS MANAGEMENT,TRAINING,80,,07/03/2019,40869570,1800,ALASDAIR CANT & ASSOCIATES LTD
Ealing Council,http://opendatacommunities.org/id/london-borough-council/ealing,CHILDREN & ADULTS,1,BUSINESS MANAGEMENT,TRAINING,80,,06/06/2019,40870120,650,REDACTED SENSITIVE SUPPLIER
Ealing Council,http://opendatacommunities.org/id/london-borough-council/ealing,CHILDREN & ADULTS,1,BUSINESS MANAGEMENT,TRAINING,80,,10/06/2019,40870148,595,NORMAN MARK TRAINING
Ealing Council,http://opendatacommunities.org/id/london-borough-council/ealing,CHILDREN & ADULTS,1,BUSINESS MANAGEMENT,TRAINING,80,,27/06/2019,40873106,265,FIRST RESPONSE TRAINING AND CONSULTANCY SERVICES LTD
Ealing Council,http://opendatacommunities.org/id/london-borough-council/ealing,CHILDREN & ADULTS,1,OLDER PEOPLE,NURSING HOMES EXTERNAL NON PAYROLL,4235,,01/07/2019,40868566,609388.44,EALING CARE ALLIANCE LTD
Ealing Council,http://opendatacommunities.org/id/london-borough-council/ealing,CHILDREN & ADULTS,1,OLDER PEOPLE,NURSING HOMES EXTERNAL NON PAYROLL,4235,,01/07/2019,40868568,556686.76,EALING CARE ALLIANCE LTD
Ealing Council,http://opendatacommunities.org/id/london-borough-council/ealing,CHILDREN & ADULTS,1,OLDER PEOPLE,LEGAL FEES,2840,,31/05/2019,40872905,1680,CMS CAMERON McKENNA LLP
Ealing Council,http://opendatacommunities.org/id/london-borough-council/ealing,CHILDREN & ADULTS,1,OLDER PEOPLE,NURSING HOMES EXTERNAL NON PAYROLL,4235,,01/07/2019,40868569,686.29,EALING CARE ALLIANCE LTD
Ealing Council,http://opendatacommunities.org/id/london-borough-council/ealing,CHILDREN & ADULTS,1,OLDER PEOPLE,NURSING HOMES EXTERNAL NON PAYROLL,4235,,01/07/2019,40868571,429.06,EALING CARE ALLIANCE LTD
Ealing Council,http://opendatacommunities.org/id/london-borough-council/ealing,CHILDREN & ADULTS,1,SAFEGUARDING & SUPPORT - CIC,AGENCY,70,,17/05/2019,40869302,300,CHANCE FOR CHILDREN TRUST
Ealing Council,http://opendatacommunities.org/id/london-borough-council/ealing,CHILDREN & ADULTS,1,SAFEGUARDING & SUPPORT - CIC,AGENCY,70,,17/05/2019,40872891,300,CHANCE FOR CHILDREN TRUST
Ealing Council,http://opendatacommunities.org/id/london-borough-council/ealing,CHILDREN & ADULTS,1,SAFEGUARDING & SUPPORT - CIC,TRAINING,80,,06/06/2019,40871242,474,IDNA GENETICS LTD T/a ANGLIA DNA SERVICES
Ealing Council,http://opendatacommunities.org/id/london-borough-council/ealing,PLACE,6,LEISURE & PARKS,PAYMENTS TO CONTRACTORS,4000,,04/06/2019,40869243,13021.5,SPORTS AND LEISURE MANAGEMENT LTD
Ealing Council,http://opendatacommunities.org/id/london-borough-council/ealing,PLACE,6,PARKING,PAYMENTS TO CONTRACTORS,4000,,21/06/2019,40868045,26938.25,SERCO SOLUTIONS
Ealing Council,http://opendatacommunities.org/id/london-borough-council/ealing,PLACE,6,PARKING,CCTV MAINTENANCE & SERVICE,2932,,31/05/2019,40872996,15488,TYCO INTEGRATED SYSTEMS LTD
Ealing Council,http://opendatacommunities.org/id/london-borough-council/ealing,PLACE,6,TRANSPORT,PAYMENTS TO CONTRACTORS,4000,,07/06/2019,40870126,900,Sundry Supplier - Regeneration & Housing
Ealing Council,http://opendatacommunities.org/id/london-borough-council/ealing,PLACE,6,TRANSPORT,EXTERNAL TECHNICAL ADVICE,4060,,28/06/2019,40868520,675,FOR2FEET LIMITED
Ealing Council,http://opendatacommunities.org/id/london-borough-council/ealing,PLACE,6,TRANSPORT,PAYMENTS TO CONTRACTORS,4000,,06/06/2019,40869734,3430,SOUTHERN ELECTRIC CONTRACTING LTD
Ealing Council,http://opendatacommunities.org/id/london-borough-council/ealing,PLACE,6,TRANSPORT,PAYMENTS TO CONTRACTORS,4000,,15/07/2019,40872682,4000,PEDDLE MY WHEELS
Ealing Council,http://opendatacommunities.org/id/london-borough-council/ealing,PLACE,6,TRANSPORT,PAYMENTS TO CONTRACTORS,4000,,14/06/2019,40871082,1800,Sundry Supplier - Regeneration & Housing
Ealing Council,http://opendatacommunities.org/id/london-borough-council/ealing,PLACE,6,TRANSPORT,PAYMENTS TO CONTRACTORS,4000,,03/07/2019,40869190,312,Sundry Supplier - Regeneration & Housing
Ealing Council,http://opendatacommunities.org/id/london-borough-council/ealing,PLACE,6,TRANSPORT,PAYMENTS TO CONTRACTORS,4000,,03/07/2019,40869202,440,FIRST AID COVER LTD
Ealing Council,http://opendatacommunities.org/id/london-borough-council/ealing,PLACE,6,TRANSPORT,SPECIALIST TECHNICAL CONTRACTORS,4050,,17/06/2019,40869235,360,Sundry Supplier - Regeneration & Housing
Ealing Council,http://opendatacommunities.org/id/london-borough-council/ealing,PLACE,6,TRANSPORT,PAYMENTS TO CONTRACTORS,4000,,03/07/2019,40869351,250,Sundry Supplier - Regeneration & Housing
Ealing Council,http://opendatacommunities.org/id/london-borough-council/ealing,PLACE,6,PROPERTY & REGENERATION,PAYMENTS TO CONTRACTORS,4000,,28/05/2019,40867847,9166.66,PENNA PLC
Ealing Council,http://opendatacommunities.org/id/london-borough-council/ealing,PLACE,6,PROPERTY & REGENERATION,PAYMENTS TO CONTRACTORS,4000,,31/05/2019,40868433,8194,PENNA PLC
Ealing Council,http://opendatacommunities.org/id/london-borough-council/ealing,PLACE,6,PROPERTY & REGENERATION,EXTERNAL TECHNICAL ADVICE,4060,,29/03/2019,40868503,835.8,VALUATION OFFICE AGENCY T/A/ DVS PROPERTY SERVICES
Ealing Council,http://opendatacommunities.org/id/london-borough-council/ealing,PLACE,6,PROPERTY & REGENERATION,PAYMENTS TO CONTRACTORS,4000,,31/05/2019,40869147,29332.7,Sundry Supplier - Regeneration & Housing
Ealing Council,http://opendatacommunities.org/id/london-borough-council/ealing,PLACE,6,PROPERTY & REGENERATION,PAYMENTS TO CONTRACTORS,4000,,31/05/2019,40871152,11642.29,BARTON WILLMORE LLP
Ealing Council,http://opendatacommunities.org/id/london-borough-council/ealing,PLACE,6,PROPERTY & REGENERATION,EXTERNAL TECHNICAL ADVICE,4060,,31/01/2019,40869953,3250,VALUATION OFFICE AGENCY T/A/ DVS PROPERTY SERVICES
Ealing Council,http://opendatacommunities.org/id/london-borough-council/ealing,PLACE,6,PROPERTY & REGENERATION,EXTERNAL TECHNICAL ADVICE,4060,,29/03/2019,40870068,4797,VALUATION OFFICE AGENCY T/A/ DVS PROPERTY SERVICES
Ealing Council,http://opendatacommunities.org/id/london-borough-council/ealing,PLACE,6,PROPERTY & REGENERATION,SPECIALIST TECHNICAL CONTRACTORS,4050,,15/05/2019,40871570,4519.75,EDGEPLAN LTD
Ealing Council,http://opendatacommunities.org/id/london-borough-council/ealing,PLACE,6,PROPERTY & REGENERATION,SPECIALIST TECHNICAL CONTRACTORS,4050,,15/05/2019,40871571,5386.12,EDGEPLAN LTD
Ealing Council,http://opendatacommunities.org/id/london-borough-council/ealing,PLACE,6,PROPERTY & REGENERATION,ADVERTISING,2690,,30/06/2019,40869876,403.92,REACH PUBLISHING SERVICES LTD
Ealing Council,http://opendatacommunities.org/id/london-borough-council/ealing,PLACE,6,PROPERTY & REGENERATION,HIRE OF HALLS,2810,,06/06/2019,40869377,2350,QUESTORS THEATRE
Ealing Council,http://opendatacommunities.org/id/london-borough-council/ealing,PLACE,6,PROPERTY & REGENERATION,FEES & CHARGES (NON VATABLE),8211,,24/06/2019,40868469,1495,REDACTED SENSITIVE SUPPLIER
Ealing Council,http://opendatacommunities.org/id/london-borough-council/ealing,PLACE,6,PROPERTY & REGENERATION,FEES & CHARGES (NON VATABLE),8211,,27/06/2019,40868471,251.92,Sundry Supplier - Regeneration & Housing
Ealing Council,http://opendatacommunities.org/id/london-borough-council/ealing,PLACE,6,PROPERTY & REGENERATION,FEES & CHARGES (NON VATABLE),8211,,28/06/2019,40868477,2310,PORTALPLANQUEST LTD T/A PLANNING PORTAL
Ealing Council,http://opendatacommunities.org/id/london-borough-council/ealing,CAPITAL SCHEMES,K,HRA,"CAPITAL � PLANT, FURNITURE AND EQUIPMENT",7400,,30/05/2019,40869384,960,CENTRAL MOVES LIMITED
Ealing Council,http://opendatacommunities.org/id/london-borough-council/ealing,CAPITAL SCHEMES,K,HRA,CAPITAL - SOLICITORS FEES,7020,,24/04/2018,40867835,2474.93,PERSONA ASSOCIATES LIMITED
Ealing Council,http://opendatacommunities.org/id/london-borough-council/ealing,CAPITAL SCHEMES,K,SAFER COMMUNITIES,CAPITAL - CONTRACT PAYMENTS,7200,,24/06/2019,40872728,2033.28,COGNETIX LIMITED
Ealing Council,http://opendatacommunities.org/id/london-borough-council/ealing,CAPITAL SCHEMES,K,SAFER COMMUNITIES,CAPITAL - CONTRACT PAYMENTS,7200,,24/06/2019,40872729,7452.24,COGNETIX LIMITED
Ealing Council,http://opendatacommunities.org/id/london-borough-council/ealing,CAPITAL SCHEMES,K,SAFER COMMUNITIES,CAPITAL - CONTRACT PAYMENTS,7200,,24/06/2019,40872730,475.26,COGNETIX LIMITED
Ealing Council,http://opendatacommunities.org/id/london-borough-council/ealing,CAPITAL SCHEMES,K,SAFER COMMUNITIES,CAPITAL - CONTRACT PAYMENTS,7200,,24/06/2019,40872731,1692,COGNETIX LIMITED
Ealing Council,http://opendatacommunities.org/id/london-borough-council/ealing,CAPITAL SCHEMES,K,ENVIRONMENT & LEISURE,CAPITAL - CONTRACT PAYMENTS,7200,,03/07/2019,40872830,1738,DMA Signs Limited
Ealing Council,http://opendatacommunities.org/id/london-borough-council/ealing,CAPITAL SCHEMES,K,ENVIRONMENT & LEISURE,CAPITAL - CONTRACT PAYMENTS,7200,,03/07/2019,40872831,8690,DMA Signs Limited
Ealing Council,http://opendatacommunities.org/id/london-borough-council/ealing,CAPITAL SCHEMES,K,ENVIRONMENT & LEISURE,CAPITAL - CONTRACT PAYMENTS,7200,,28/06/2019,40872833,10428,DMA Signs Limited
Ealing Council,http://opendatacommunities.org/id/london-borough-council/ealing,CAPITAL SCHEMES,K,ENVIRONMENT & LEISURE,CAPITAL - CONTRACT PAYMENTS,7200,,03/07/2019,40872832,-10428,DMA Signs Limited
Ealing Council,http://opendatacommunities.org/id/london-borough-council/ealing,CAPITAL SCHEMES,K,ENVIRONMENT & LEISURE,CAPITAL - CIS TAX DEDUCTIONS,7250,,07/07/2019,40869507,5672.73,CENTURIAN SURFACING LTD - T/A CENTURIAN SERVICES
Ealing Council,http://opendatacommunities.org/id/london-borough-council/ealing,CHILDREN & ADULTS,1,PERFORMANCE & TRAINING,TRAINING,80,,17/06/2019,40871397,445,SECTION 31 TRAINING & CONSULTANCY LTD
Ealing Council,http://opendatacommunities.org/id/london-borough-council/ealing,CHILDREN & ADULTS,1,PERFORMANCE & TRAINING,CONFERENCE EXPENSES,3520,,30/06/2019,40869965,1800,THE DOWN UNDER CENTRE LTD
Ealing Council,http://opendatacommunities.org/id/london-borough-council/ealing,CHILDREN & ADULTS,1,SAFEGUARDING & SUPPORT - SM,ACTIVITIES,4196,,06/06/2019,40869415,5000,DESCENDANTS
Ealing Council,http://opendatacommunities.org/id/london-borough-council/ealing,PLACE,6,LEISURE & PARKS,VEHICLE HIRE,2010,,25/06/2019,40873006,1000,NEW BHARAT COACHES
Ealing Council,http://opendatacommunities.org/id/london-borough-council/ealing,PLACE,6,PARKING,REPAIR AND MAINTENANCE,1410,,14/06/2019,40872023,4250,ECL BUILDERS & DECORATORS
Ealing Council,http://opendatacommunities.org/id/london-borough-council/ealing,PLACE,6,HIGHWAYS,CONTRACT PAYMENTS -HIGHWAYS,4005,,10/06/2019,40869591,13915.56,MURRILL CONSTRUCTION LIMITED
Ealing Council,http://opendatacommunities.org/id/london-borough-council/ealing,PLACE,6,HIGHWAYS,CONTRACT PAYMENTS -HIGHWAYS,4005,,10/06/2019,40869596,34566.66,MURRILL CONSTRUCTION LIMITED
Ealing Council,http://opendatacommunities.org/id/london-borough-council/ealing,PLACE,6,HIGHWAYS,CONTRACT PAYMENTS -HIGHWAYS,4005,,10/06/2019,40869599,35048.23,MURRILL CONSTRUCTION LIMITED
Ealing Council,http://opendatacommunities.org/id/london-borough-council/ealing,PLACE,6,HIGHWAYS,CONTRACT PAYMENTS -HIGHWAYS,4005,,28/05/2019,40867806,1055.15,SSE POWER DISTRIBUTION CABLE DAMAGES SOUTH
Ealing Council,http://opendatacommunities.org/id/london-borough-council/ealing,PLACE,6,HIGHWAYS,CONTRACT PAYMENTS -HIGHWAYS,4005,,19/06/2019,40871633,754.67,SOUTHERN ELECTRIC CONTRACTING LTD
Ealing Council,http://opendatacommunities.org/id/london-borough-council/ealing,PLACE,6,HIGHWAYS,CONTRACT PAYMENTS -HIGHWAYS,4005,,07/06/2019,40869459,683.2,SOUTHERN ELECTRIC CONTRACTING LTD
Ealing Council,http://opendatacommunities.org/id/london-borough-council/ealing,PLACE,6,HIGHWAYS,CONTRACT PAYMENTS -HIGHWAYS,4005,,07/06/2019,40869474,10108.1,SOUTHERN ELECTRIC CONTRACTING LTD
Ealing Council,http://opendatacommunities.org/id/london-borough-council/ealing,PLACE,6,HIGHWAYS,CONTRACT PAYMENTS -HIGHWAYS,4005,,07/06/2019,40869478,4358.52,SOUTHERN ELECTRIC CONTRACTING LTD
Ealing Council,http://opendatacommunities.org/id/london-borough-council/ealing,PLACE,6,PROPERTY & REGENERATION,PAYMENTS TO CONTRACTORS,4000,,20/05/2019,40870252,9299.23,MITRE CONSTRUCTION CO LTD
Ealing Council,http://opendatacommunities.org/id/london-borough-council/ealing,PLACE,6,REPAIRS & MAINTENANCE,RECRUITMENT COSTS,510,,05/04/2019,40871084,9975,CAMPBELL TICKELL LTD
Ealing Council,http://opendatacommunities.org/id/london-borough-council/ealing,COUNCIL WIDE OTHER,9,BALANCE SHEET,CTRL OR B/S DEPOSITS,6610,,11/07/2019,40870855,313.82,HILL PARTNERSHIPS LTD
Ealing Council,http://opendatacommunities.org/id/london-borough-council/ealing,CAPITAL SCHEMES,K,HRA,CAPITAL � CAPITALISATION OF SALARIES,7590,,26/06/2019,40872558,20850,NEUNIE ASSOCIATES LIMITED
Ealing Council,http://opendatacommunities.org/id/london-borough-council/ealing,CAPITAL SCHEMES,K,HRA,CAPITAL � CAPITALISATION OF SALARIES,7590,,26/06/2019,40872559,21610,NEUNIE ASSOCIATES LIMITED
Ealing Council,http://opendatacommunities.org/id/london-borough-council/ealing,CAPITAL SCHEMES,K,HRA,CAPITAL � CAPITALISATION OF SALARIES,7590,,29/03/2019,40871363,425,PROPERTY HOUSE MARKETING LTD
Ealing Council,http://opendatacommunities.org/id/london-borough-council/ealing,CAPITAL SCHEMES,K,HRA,CAPITAL WORKS LICENCES,7630,,31/05/2019,40868676,690,PREMIER PEOPLE SOLUTIONS LTD T/A PREMIER PARTNERSHIP
Ealing Council,http://opendatacommunities.org/id/london-borough-council/ealing,CAPITAL SCHEMES,K,HRA,CAPITAL � CAPITALISATION OF SALARIES,7590,,30/06/2019,40868541,5332,REJUVENA8 LTD
Ealing Council,http://opendatacommunities.org/id/london-borough-council/ealing,CAPITAL SCHEMES,K,HRA,CAPITAL � CAPITALISATION OF SALARIES,7590,,24/06/2019,40870940,7625,PETER BRETT ASSOCIATES
Ealing Council,http://opendatacommunities.org/id/london-borough-council/ealing,CAPITAL SCHEMES,K,HRA,CAPITAL - SITE INVESTIGATION,7150,,10/07/2019,40872033,5460,BLOOM PROCUREMENT SERVICES LIMITED
Ealing Council,http://opendatacommunities.org/id/london-borough-council/ealing,CAPITAL SCHEMES,K,HRA,CAPITAL � CAPITALISATION OF SALARIES,7590,,31/05/2019,40869194,6400,CALFORDSEADEN LLP
Ealing Council,http://opendatacommunities.org/id/london-borough-council/ealing,CAPITAL SCHEMES,K,HRA,CAPITAL � CAPITALISATION OF SALARIES,7590,,31/05/2019,40869205,5800,CALFORDSEADEN LLP
Ealing Council,http://opendatacommunities.org/id/london-borough-council/ealing,CAPITAL SCHEMES,K,HRA,CAPITAL � CAPITALISATION OF SALARIES,7590,,31/05/2019,40868332,1383,SCMS ASSOCIATES LTD
Ealing Council,http://opendatacommunities.org/id/london-borough-council/ealing,CAPITAL SCHEMES,K,HRA,CAPITAL � CAPITALISATION OF SALARIES,7590,,10/06/2019,40869857,2950,PETER BRETT ASSOCIATES
Ealing Council,http://opendatacommunities.org/id/london-borough-council/ealing,CAPITAL SCHEMES,K,HRA,CAPITAL - WORKS IN DEFAULT,7525,,01/03/2019,40868142,3000,BELL MANAGEMENT ASSOCIATES LTD
Ealing Council,http://opendatacommunities.org/id/london-borough-council/ealing,CAPITAL SCHEMES,K,HRA,CAPITAL � CAPITALISATION OF SALARIES,7590,,31/05/2019,40872365,3687.25,PPCR ASSOCIATES LIMITED
Ealing Council,http://opendatacommunities.org/id/london-borough-council/ealing,CAPITAL SCHEMES,K,HRA,CAPITAL � CAPITALISATION OF SALARIES,7590,,24/06/2019,40870941,9700,PETER BRETT ASSOCIATES
Ealing Council,http://opendatacommunities.org/id/london-borough-council/ealing,CAPITAL SCHEMES,K,HRA,CAPITAL - WORKS IN DEFAULT,7525,,31/05/2019,40869183,4000,CALFORDSEADEN LLP
Ealing Council,http://opendatacommunities.org/id/london-borough-council/ealing,CAPITAL SCHEMES,K,HRA,CAPITAL - SITE INVESTIGATION,7150,,11/06/2019,40870228,1817.67,LAMYA CONSTRUCTION LTD
Ealing Council,http://opendatacommunities.org/id/london-borough-council/ealing,CAPITAL SCHEMES,K,HRA,CAPITAL � CAPITALISATION OF SALARIES,7590,,17/07/2019,40872560,22672,NEUNIE ASSOCIATES LIMITED
Ealing Council,http://opendatacommunities.org/id/london-borough-council/ealing,CAPITAL SCHEMES,K,HRA,CAPITAL � CAPITALISATION OF SALARIES,7590,,24/06/2019,40872648,8625,BPTW PARTNERSHIP
Ealing Council,http://opendatacommunities.org/id/london-borough-council/ealing,CAPITAL SCHEMES,K,HRA,CAPITAL � CAPITALISATION OF SALARIES,7590,,14/06/2019,40871171,7500,BPTW PARTNERSHIP
Ealing Council,http://opendatacommunities.org/id/london-borough-council/ealing,PLACE,6,HRA MANAGEMENT,PAYMENTS TO CONTRACTORS,4000,,30/11/2018,40868941,1458,SECURE PARKING AND STORAGE LTD (SPS)
Ealing Council,http://opendatacommunities.org/id/london-borough-council/ealing,PLACE,6,HRA MANAGEMENT,PAYMENTS TO CONTRACTORS,4000,,30/12/2018,40868942,1421.99,SECURE PARKING AND STORAGE LTD (SPS)
Ealing Council,http://opendatacommunities.org/id/london-borough-council/ealing,PLACE,6,HRA MANAGEMENT,PAYMENTS TO CONTRACTORS,4000,,30/01/2019,40868943,627.5,SECURE PARKING AND STORAGE LTD (SPS)
Ealing Council,http://opendatacommunities.org/id/london-borough-council/ealing,PLACE,6,HRA MANAGEMENT,PAYMENTS TO CONTRACTORS,4000,,28/02/2019,40868944,929.49,SECURE PARKING AND STORAGE LTD (SPS)
Ealing Council,http://opendatacommunities.org/id/london-borough-council/ealing,PLACE,6,HRA MANAGEMENT,PAYMENTS TO CONTRACTORS,4000,,28/03/2019,40868945,6073,SECURE PARKING AND STORAGE LTD (SPS)
Ealing Council,http://opendatacommunities.org/id/london-borough-council/ealing,PLACE,6,HRA MANAGEMENT,PAYMENTS TO CONTRACTORS,4000,,28/04/2019,40868946,5400,SECURE PARKING AND STORAGE LTD (SPS)
Ealing Council,http://opendatacommunities.org/id/london-borough-council/ealing,CHILDREN & ADULTS,1,SAFEGUARDING & SUPPORT - CIC,SOCIAL SERVICES CONTRACTUAL CARERS ALLOWANCES,4380,,02/07/2019,22739540,262.04,REDACTED SENSITIVE SUPPLIER
Ealing Council,http://opendatacommunities.org/id/london-borough-council/ealing,CHILDREN & ADULTS,1,SAFEGUARDING & SUPPORT - CIC,SOCIAL SERVICES CONTRACTUAL CARERS ALLOWANCES,4380,,02/07/2019,22739552,700,REDACTED SENSITIVE SUPPLIER
Ealing Council,http://opendatacommunities.org/id/london-borough-council/ealing,CHILDREN & ADULTS,1,SAFEGUARDING & SUPPORT - CIC,SOCIAL SERVICES CONTRACTUAL CARERS ALLOWANCES,4380,,02/07/2019,22739584,700,REDACTED SENSITIVE SUPPLIER
Ealing Council,http://opendatacommunities.org/id/london-borough-council/ealing,CHILDREN & ADULTS,1,SAFEGUARDING & SUPPORT - CIC,SOCIAL SERVICES CONTRACTUAL CARERS ALLOWANCES,4380,,02/07/2019,22739584,253.1,REDACTED SENSITIVE SUPPLIER
Ealing Council,http://opendatacommunities.org/id/london-borough-council/ealing,CHILDREN & ADULTS,1,SAFEGUARDING & SUPPORT - CIC,KINSHIP CARE (SOCIAL SERVICES),4662,,02/07/2019,22739556,262.04,REDACTED SENSITIVE SUPPLIER
Ealing Council,http://opendatacommunities.org/id/london-borough-council/ealing,CHILDREN & ADULTS,1,SAFEGUARDING & SUPPORT - CIC,CHILDRENS SERVICES LONG TERM CARE OTHER PAYMENTS,4384,,02/07/2019,22739556,786.12,REDACTED SENSITIVE SUPPLIER
Ealing Council,http://opendatacommunities.org/id/london-borough-council/ealing,CHILDREN & ADULTS,1,SAFEGUARDING & SUPPORT - CIC,SOCIAL SERVICES CONTRACTUAL CARERS ALLOWANCES,4380,,02/07/2019,22739565,262.04,REDACTED SENSITIVE SUPPLIER
Ealing Council,http://opendatacommunities.org/id/london-borough-council/ealing,CHILDREN & ADULTS,1,SAFEGUARDING & SUPPORT - CIC,SOCIAL SERVICES CONTRACTUAL CARERS ALLOWANCES,4380,,02/07/2019,22739565,262.04,REDACTED SENSITIVE SUPPLIER
Ealing Council,http://opendatacommunities.org/id/london-borough-council/ealing,CHILDREN & ADULTS,1,SAFEGUARDING & SUPPORT - CIC,SOCIAL SERVICES CONTRACTUAL CARERS ALLOWANCES,4380,,02/07/2019,22739517,1000,REDACTED SENSITIVE SUPPLIER
Ealing Council,http://opendatacommunities.org/id/london-borough-council/ealing,CHILDREN & ADULTS,1,SAFEGUARDING & SUPPORT - CIC,SOCIAL SERVICES CONTRACTUAL CARERS ALLOWANCES,4380,,02/07/2019,22739517,300,REDACTED SENSITIVE SUPPLIER
Ealing Council,http://opendatacommunities.org/id/london-borough-council/ealing,CHILDREN & ADULTS,1,SAFEGUARDING & SUPPORT - CIC,SOCIAL SERVICES CONTRACTUAL CARERS ALLOWANCES,4380,,02/07/2019,22739517,1000,REDACTED SENSITIVE SUPPLIER
Ealing Council,http://opendatacommunities.org/id/london-borough-council/ealing,CHILDREN & ADULTS,1,SAFEGUARDING & SUPPORT - CIC,SOCIAL SERVICES CONTRACTUAL CARERS ALLOWANCES,4380,,02/07/2019,22739464,262.04,REDACTED SENSITIVE SUPPLIER
Ealing Council,http://opendatacommunities.org/id/london-borough-council/ealing,CHILDREN & ADULTS,1,SAFEGUARDING & SUPPORT - CIC,SOCIAL SERVICES CONTRACTUAL CARERS ALLOWANCES,4380,,02/07/2019,22739583,393.02,REDACTED SENSITIVE SUPPLIER
Ealing Council,http://opendatacommunities.org/id/london-borough-council/ealing,CHILDREN & ADULTS,1,SAFEGUARDING & SUPPORT - CIC,SOCIAL SERVICES CONTRACTUAL CARERS ALLOWANCES,4380,,02/07/2019,22739583,433.62,REDACTED SENSITIVE SUPPLIER
Ealing Council,http://opendatacommunities.org/id/london-borough-council/ealing,CHILDREN & ADULTS,1,SAFEGUARDING & SUPPORT - CIC,SOCIAL SERVICES CONTRACTUAL CARERS ALLOWANCES,4380,,02/07/2019,22739495,700,REDACTED SENSITIVE SUPPLIER
Ealing Council,http://opendatacommunities.org/id/london-borough-council/ealing,CHILDREN & ADULTS,1,SAFEGUARDING & SUPPORT - CIC,SOCIAL SERVICES CONTRACTUAL CARERS ALLOWANCES,4380,,02/07/2019,22739509,297.04,REDACTED SENSITIVE SUPPLIER
Ealing Council,http://opendatacommunities.org/id/london-borough-council/ealing,CHILDREN & ADULTS,1,SAFEGUARDING & SUPPORT - CIC,SOCIAL SERVICES CONTRACTUAL CARERS ALLOWANCES,4380,,02/07/2019,22739511,262.04,REDACTED SENSITIVE SUPPLIER
Ealing Council,http://opendatacommunities.org/id/london-borough-council/ealing,CHILDREN & ADULTS,1,SAFEGUARDING & SUPPORT - CIC,SOCIAL SERVICES CONTRACTUAL CARERS ALLOWANCES,4380,,02/07/2019,22739514,262.04,REDACTED SENSITIVE SUPPLIER
Ealing Council,http://opendatacommunities.org/id/london-borough-council/ealing,CHILDREN & ADULTS,1,SAFEGUARDING & SUPPORT - CIC,SOCIAL SERVICES CONTRACTUAL CARERS ALLOWANCES,4380,,02/07/2019,22739514,700,REDACTED SENSITIVE SUPPLIER
Ealing Council,http://opendatacommunities.org/id/london-borough-council/ealing,CHILDREN & ADULTS,1,SAFEGUARDING & SUPPORT - CIC,SOCIAL SERVICES CONTRACTUAL CARERS ALLOWANCES,4380,,02/07/2019,22739517,300,REDACTED SENSITIVE SUPPLIER
Ealing Council,http://opendatacommunities.org/id/london-borough-council/ealing,CHILDREN & ADULTS,1,SAFEGUARDING & SUPPORT - CIC,SOCIAL SERVICES CONTRACTUAL CARERS ALLOWANCES,4380,,16/07/2019,22742283,650.43,REDACTED SENSITIVE SUPPLIER
Ealing Council,http://opendatacommunities.org/id/london-borough-council/ealing,CHILDREN & ADULTS,1,SAFEGUARDING & SUPPORT - CIC,SOCIAL SERVICES CONTRACTUAL CARERS ALLOWANCES,4380,,16/07/2019,22742283,393.02,REDACTED SENSITIVE SUPPLIER
Ealing Council,http://opendatacommunities.org/id/london-borough-council/ealing,CHILDREN & ADULTS,1,SAFEGUARDING & SUPPORT - CIC,SOCIAL SERVICES CONTRACTUAL CARERS ALLOWANCES,4380,,16/07/2019,22742286,262.04,REDACTED SENSITIVE SUPPLIER
Ealing Council,http://opendatacommunities.org/id/london-borough-council/ealing,CHILDREN & ADULTS,1,SAFEGUARDING & SUPPORT - CIC,SOCIAL SERVICES CONTRACTUAL CARERS ALLOWANCES,4380,,16/07/2019,22742345,650.43,REDACTED SENSITIVE SUPPLIER
Ealing Council,http://opendatacommunities.org/id/london-borough-council/ealing,CHILDREN & ADULTS,1,SAFEGUARDING & SUPPORT - CIC,SOCIAL SERVICES CONTRACTUAL CARERS ALLOWANCES,4380,,16/07/2019,22742345,262.04,REDACTED SENSITIVE SUPPLIER
Ealing Council,http://opendatacommunities.org/id/london-borough-council/ealing,CHILDREN & ADULTS,1,SAFEGUARDING & SUPPORT - CIC,SOCIAL SERVICES CONTRACTUAL CARERS ALLOWANCES,4380,,02/07/2019,22739495,700,REDACTED SENSITIVE SUPPLIER
Ealing Council,http://opendatacommunities.org/id/london-borough-council/ealing,CHILDREN & ADULTS,1,SAFEGUARDING & SUPPORT - CIC,SOCIAL SERVICES CONTRACTUAL CARERS ALLOWANCES,4380,,16/07/2019,22742530,836.27,REDACTED SENSITIVE SUPPLIER
Ealing Council,http://opendatacommunities.org/id/london-borough-council/ealing,CHILDREN & ADULTS,1,SAFEGUARDING & SUPPORT - CIC,SOCIAL SERVICES CONTRACTUAL CARERS ALLOWANCES,4380,,16/07/2019,22742531,643.57,REDACTED SENSITIVE SUPPLIER
Ealing Council,http://opendatacommunities.org/id/london-borough-council/ealing,CHILDREN & ADULTS,1,SAFEGUARDING & SUPPORT - CIC,SOCIAL SERVICES CONTRACTUAL CARERS ALLOWANCES,4380,,16/07/2019,22742533,700,REDACTED SENSITIVE SUPPLIER
Ealing Council,http://opendatacommunities.org/id/london-borough-council/ealing,CHILDREN & ADULTS,1,SAFEGUARDING & SUPPORT - CIC,SOCIAL SERVICES CONTRACTUAL CARERS ALLOWANCES,4380,,16/07/2019,22742533,262.04,REDACTED SENSITIVE SUPPLIER
Ealing Council,http://opendatacommunities.org/id/london-borough-council/ealing,CHILDREN & ADULTS,1,SAFEGUARDING & SUPPORT - CIC,SOCIAL SERVICES CONTRACTUAL CARERS ALLOWANCES,4380,,02/07/2019,22739696,700,REDACTED SENSITIVE SUPPLIER
Ealing Council,http://opendatacommunities.org/id/london-borough-council/ealing,CHILDREN & ADULTS,1,SAFEGUARDING & SUPPORT - CIC,KINSHIP CARE (SOCIAL SERVICES),4662,,02/07/2019,22739697,262.04,REDACTED SENSITIVE SUPPLIER
Ealing Council,http://opendatacommunities.org/id/london-borough-council/ealing,CHILDREN & ADULTS,1,SAFEGUARDING & SUPPORT - CIC,SOCIAL SERVICES CONTRACTUAL CARERS ALLOWANCES,4380,,16/07/2019,22742519,262.04,REDACTED SENSITIVE SUPPLIER
Ealing Council,http://opendatacommunities.org/id/london-borough-council/ealing,CHILDREN & ADULTS,1,SAFEGUARDING & SUPPORT - CIC,SOCIAL SERVICES CONTRACTUAL CARERS ALLOWANCES,4380,,16/07/2019,22742519,700,REDACTED SENSITIVE SUPPLIER
Ealing Council,http://opendatacommunities.org/id/london-borough-council/ealing,CHILDREN & ADULTS,1,SAFEGUARDING & SUPPORT - CIC,SOCIAL SERVICES CONTRACTUAL CARERS ALLOWANCES,4380,,16/07/2019,22742520,262.04,REDACTED SENSITIVE SUPPLIER
Ealing Council,http://opendatacommunities.org/id/london-borough-council/ealing,CHILDREN & ADULTS,1,SAFEGUARDING & SUPPORT - CIC,SOCIAL SERVICES CONTRACTUAL CARERS ALLOWANCES,4380,,16/07/2019,22742520,262.04,REDACTED SENSITIVE SUPPLIER
Ealing Council,http://opendatacommunities.org/id/london-borough-council/ealing,CHILDREN & ADULTS,1,SAFEGUARDING & SUPPORT - CIC,SOCIAL SERVICES CONTRACTUAL CARERS ALLOWANCES,4380,,16/07/2019,22742529,262.04,REDACTED SENSITIVE SUPPLIER
Ealing Council,http://opendatacommunities.org/id/london-borough-council/ealing,CHILDREN & ADULTS,1,SAFEGUARDING & SUPPORT - CIC,SOCIAL SERVICES CONTRACTUAL CARERS ALLOWANCES,4380,,16/07/2019,22742530,700,REDACTED SENSITIVE SUPPLIER
Ealing Council,http://opendatacommunities.org/id/london-borough-council/ealing,CHILDREN & ADULTS,1,SAFEGUARDING & SUPPORT - CIC,KINSHIP CARE (SOCIAL SERVICES),4662,,16/07/2019,22742444,262.04,REDACTED SENSITIVE SUPPLIER
Ealing Council,http://opendatacommunities.org/id/london-borough-council/ealing,CHILDREN & ADULTS,1,SAFEGUARDING & SUPPORT - CIC,SOCIAL SERVICES CONTRACTUAL CARERS ALLOWANCES,4380,,16/07/2019,22742407,262.04,REDACTED SENSITIVE SUPPLIER
Ealing Council,http://opendatacommunities.org/id/london-borough-council/ealing,CHILDREN & ADULTS,1,SAFEGUARDING & SUPPORT - CIC,SOCIAL SERVICES CONTRACTUAL CARERS ALLOWANCES,4380,,16/07/2019,22742407,700,REDACTED SENSITIVE SUPPLIER
Ealing Council,http://opendatacommunities.org/id/london-borough-council/ealing,CHILDREN & ADULTS,1,SAFEGUARDING & SUPPORT - CIC,SOCIAL SERVICES CONTRACTUAL CARERS ALLOWANCES,4380,,16/07/2019,22742476,-396.05,REDACTED SENSITIVE SUPPLIER
Ealing Council,http://opendatacommunities.org/id/london-borough-council/ealing,CHILDREN & ADULTS,1,SAFEGUARDING & SUPPORT - CIC,SOCIAL SERVICES CONTRACTUAL CARERS ALLOWANCES,4380,,16/07/2019,22742476,-396.05,REDACTED SENSITIVE SUPPLIER
Ealing Council,http://opendatacommunities.org/id/london-borough-council/ealing,CHILDREN & ADULTS,1,SAFEGUARDING & SUPPORT - CIC,SOCIAL SERVICES CONTRACTUAL CARERS ALLOWANCES,4380,,16/07/2019,22742476,-256.91,REDACTED SENSITIVE SUPPLIER
Ealing Council,http://opendatacommunities.org/id/london-borough-council/ealing,CHILDREN & ADULTS,1,SAFEGUARDING & SUPPORT - CIC,SOCIAL SERVICES CONTRACTUAL CARERS ALLOWANCES,4380,,16/07/2019,22742235,262.04,REDACTED SENSITIVE SUPPLIER
Ealing Council,http://opendatacommunities.org/id/london-borough-council/ealing,CHILDREN & ADULTS,1,SAFEGUARDING & SUPPORT - CIC,SOCIAL SERVICES CONTRACTUAL CARERS ALLOWANCES,4380,,16/07/2019,22742235,262.04,REDACTED SENSITIVE SUPPLIER
Ealing Council,http://opendatacommunities.org/id/london-borough-council/ealing,CHILDREN & ADULTS,1,SAFEGUARDING & SUPPORT - CIC,SOCIAL SERVICES CONTRACTUAL CARERS ALLOWANCES,4380,,16/07/2019,22742237,700,REDACTED SENSITIVE SUPPLIER
Ealing Council,http://opendatacommunities.org/id/london-borough-council/ealing,CHILDREN & ADULTS,1,SAFEGUARDING & SUPPORT - CIC,SOCIAL SERVICES CONTRACTUAL CARERS ALLOWANCES,4380,,16/07/2019,22742237,700,REDACTED SENSITIVE SUPPLIER
Ealing Council,http://opendatacommunities.org/id/london-borough-council/ealing,CHILDREN & ADULTS,1,SAFEGUARDING & SUPPORT - CIC,SOCIAL SERVICES CONTRACTUAL CARERS ALLOWANCES,4380,,16/07/2019,22742443,700,REDACTED SENSITIVE SUPPLIER
Ealing Council,http://opendatacommunities.org/id/london-borough-council/ealing,CHILDREN & ADULTS,1,SAFEGUARDING & SUPPORT - CIC,SOCIAL SERVICES CONTRACTUAL CARERS ALLOWANCES,4380,,16/07/2019,22742443,700,REDACTED SENSITIVE SUPPLIER
Ealing Council,http://opendatacommunities.org/id/london-borough-council/ealing,CHILDREN & ADULTS,1,SAFEGUARDING & SUPPORT - CIC,SOCIAL SERVICES CONTRACTUAL CARERS ALLOWANCES,4380,,16/07/2019,22742441,433.62,REDACTED SENSITIVE SUPPLIER
Ealing Council,http://opendatacommunities.org/id/london-borough-council/ealing,CHILDREN & ADULTS,1,SAFEGUARDING & SUPPORT - CIC,SOCIAL SERVICES CONTRACTUAL CARERS ALLOWANCES,4380,,16/07/2019,22742441,393.02,REDACTED SENSITIVE SUPPLIER
Ealing Council,http://opendatacommunities.org/id/london-borough-council/ealing,CHILDREN & ADULTS,1,SAFEGUARDING & SUPPORT - CIC,SOCIAL SERVICES CONTRACTUAL CARERS ALLOWANCES,4380,,16/07/2019,22742512,262.04,REDACTED SENSITIVE SUPPLIER
Ealing Council,http://opendatacommunities.org/id/london-borough-council/ealing,CHILDREN & ADULTS,1,SAFEGUARDING & SUPPORT - CIC,SOCIAL SERVICES CONTRACTUAL CARERS ALLOWANCES,4380,,16/07/2019,22742245,253.1,REDACTED SENSITIVE SUPPLIER
Ealing Council,http://opendatacommunities.org/id/london-borough-council/ealing,CHILDREN & ADULTS,1,SAFEGUARDING & SUPPORT - CIC,SOCIAL SERVICES CONTRACTUAL CARERS ALLOWANCES,4380,,16/07/2019,22742222,650.43,REDACTED SENSITIVE SUPPLIER
Ealing Council,http://opendatacommunities.org/id/london-borough-council/ealing,CHILDREN & ADULTS,1,SAFEGUARDING & SUPPORT - CIC,SOCIAL SERVICES CONTRACTUAL CARERS ALLOWANCES,4380,,16/07/2019,22742230,393.02,REDACTED SENSITIVE SUPPLIER
Ealing Council,http://opendatacommunities.org/id/london-borough-council/ealing,CHILDREN & ADULTS,1,SAFEGUARDING & SUPPORT - CIC,SOCIAL SERVICES CONTRACTUAL CARERS ALLOWANCES,4380,,16/07/2019,22742264,700,REDACTED SENSITIVE SUPPLIER
Ealing Council,http://opendatacommunities.org/id/london-borough-council/ealing,CHILDREN & ADULTS,1,SAFEGUARDING & SUPPORT - CIC,SOCIAL SERVICES CONTRACTUAL CARERS ALLOWANCES,4380,,16/07/2019,22742264,700,REDACTED SENSITIVE SUPPLIER
Ealing Council,http://opendatacommunities.org/id/london-borough-council/ealing,CHILDREN & ADULTS,1,SAFEGUARDING & SUPPORT - CIC,SOCIAL SERVICES CONTRACTUAL CARERS ALLOWANCES,4380,,16/07/2019,22742299,700,REDACTED SENSITIVE SUPPLIER
Ealing Council,http://opendatacommunities.org/id/london-borough-council/ealing,CHILDREN & ADULTS,1,SAFEGUARDING & SUPPORT - CIC,SOCIAL SERVICES CONTRACTUAL CARERS ALLOWANCES,4380,,16/07/2019,22742299,1272.77,REDACTED SENSITIVE SUPPLIER
Ealing Council,http://opendatacommunities.org/id/london-borough-council/ealing,CHILDREN & ADULTS,1,SAFEGUARDING & SUPPORT - CIC,SOCIAL SERVICES CONTRACTUAL CARERS ALLOWANCES,4380,,16/07/2019,22742347,262.04,REDACTED SENSITIVE SUPPLIER
Ealing Council,http://opendatacommunities.org/id/london-borough-council/ealing,CHILDREN & ADULTS,1,SAFEGUARDING & SUPPORT - CIC,SOCIAL SERVICES CONTRACTUAL CARERS ALLOWANCES,4380,,16/07/2019,22742347,262.04,REDACTED SENSITIVE SUPPLIER
Ealing Council,http://opendatacommunities.org/id/london-borough-council/ealing,CHILDREN & ADULTS,1,SAFEGUARDING & SUPPORT - CIC,SOCIAL SERVICES CONTRACTUAL CARERS ALLOWANCES,4380,,16/07/2019,22742255,700,REDACTED SENSITIVE SUPPLIER
Ealing Council,http://opendatacommunities.org/id/london-borough-council/ealing,CHILDREN & ADULTS,1,SAFEGUARDING & SUPPORT - CIC,SOCIAL SERVICES CONTRACTUAL CARERS ALLOWANCES,4380,,16/07/2019,22742256,346.54,REDACTED SENSITIVE SUPPLIER
Ealing Council,http://opendatacommunities.org/id/london-borough-council/ealing,CHILDREN & ADULTS,1,SAFEGUARDING & SUPPORT - CIC,SOCIAL SERVICES CONTRACTUAL CARERS ALLOWANCES,4380,,16/07/2019,22742256,346.54,REDACTED SENSITIVE SUPPLIER
Ealing Council,http://opendatacommunities.org/id/london-borough-council/ealing,CHILDREN & ADULTS,1,SAFEGUARDING & SUPPORT - CIC,SOCIAL SERVICES CONTRACTUAL CARERS ALLOWANCES,4380,,16/07/2019,22742258,262.04,REDACTED SENSITIVE SUPPLIER
Ealing Council,http://opendatacommunities.org/id/london-borough-council/ealing,CHILDREN & ADULTS,1,SAFEGUARDING & SUPPORT - CIC,SOCIAL SERVICES CONTRACTUAL CARERS ALLOWANCES,4380,,16/07/2019,22742261,700,REDACTED SENSITIVE SUPPLIER
Ealing Council,http://opendatacommunities.org/id/london-borough-council/ealing,CHILDREN & ADULTS,1,SAFEGUARDING & SUPPORT - CIC,SOCIAL SERVICES CONTRACTUAL CARERS ALLOWANCES,4380,,16/07/2019,22742261,262.04,REDACTED SENSITIVE SUPPLIER
Ealing Council,http://opendatacommunities.org/id/london-borough-council/ealing,CHILDREN & ADULTS,1,SAFEGUARDING & SUPPORT - CIC,SOCIAL SERVICES CONTRACTUAL CARERS ALLOWANCES,4380,,16/07/2019,22742312,262.04,REDACTED SENSITIVE SUPPLIER
Ealing Council,http://opendatacommunities.org/id/london-borough-council/ealing,CHILDREN & ADULTS,1,SAFEGUARDING & SUPPORT - CIC,SOCIAL SERVICES CONTRACTUAL CARERS ALLOWANCES,4380,,16/07/2019,22742312,262.04,REDACTED SENSITIVE SUPPLIER
Ealing Council,http://opendatacommunities.org/id/london-borough-council/ealing,CHILDREN & ADULTS,1,SAFEGUARDING & SUPPORT - CIC,SOCIAL SERVICES CONTRACTUAL CARERS ALLOWANCES,4380,,16/07/2019,22742313,262.04,REDACTED SENSITIVE SUPPLIER
Ealing Council,http://opendatacommunities.org/id/london-borough-council/ealing,CHILDREN & ADULTS,1,SAFEGUARDING & SUPPORT - CIC,SOCIAL SERVICES CONTRACTUAL CARERS ALLOWANCES,4380,,16/07/2019,22742240,700,REDACTED SENSITIVE SUPPLIER
Ealing Council,http://opendatacommunities.org/id/london-borough-council/ealing,CHILDREN & ADULTS,1,SAFEGUARDING & SUPPORT - CIC,SOCIAL SERVICES CONTRACTUAL CARERS ALLOWANCES,4380,,16/07/2019,22742242,700,REDACTED SENSITIVE SUPPLIER
Ealing Council,http://opendatacommunities.org/id/london-borough-council/ealing,CHILDREN & ADULTS,1,SAFEGUARDING & SUPPORT - CIC,SOCIAL SERVICES CONTRACTUAL CARERS ALLOWANCES,4380,,16/07/2019,22742242,700,REDACTED SENSITIVE SUPPLIER
Ealing Council,http://opendatacommunities.org/id/london-borough-council/ealing,CHILDREN & ADULTS,1,SAFEGUARDING & SUPPORT - CIC,SOCIAL SERVICES CONTRACTUAL CARERS ALLOWANCES,4380,,16/07/2019,22742476,712.38,REDACTED SENSITIVE SUPPLIER
Ealing Council,http://opendatacommunities.org/id/london-borough-council/ealing,CHILDREN & ADULTS,1,SAFEGUARDING & SUPPORT - CIC,SOCIAL SERVICES CONTRACTUAL CARERS ALLOWANCES,4380,,16/07/2019,22742476,-256.91,REDACTED SENSITIVE SUPPLIER
Ealing Council,http://opendatacommunities.org/id/london-borough-council/ealing,CHILDREN & ADULTS,1,SAFEGUARDING & SUPPORT - CIC,SOCIAL SERVICES CONTRACTUAL CARERS ALLOWANCES,4380,,16/07/2019,22742515,262.04,REDACTED SENSITIVE SUPPLIER
Ealing Council,http://opendatacommunities.org/id/london-borough-council/ealing,CHILDREN & ADULTS,1,SAFEGUARDING & SUPPORT - CIC,SOCIAL SERVICES CONTRACTUAL CARERS ALLOWANCES,4380,,16/07/2019,22742515,700,REDACTED SENSITIVE SUPPLIER
Ealing Council,http://opendatacommunities.org/id/london-borough-council/ealing,CHILDREN & ADULTS,1,SAFEGUARDING & SUPPORT - CIC,SOCIAL SERVICES CONTRACTUAL CARERS ALLOWANCES,4380,,16/07/2019,22742515,700,REDACTED SENSITIVE SUPPLIER
Ealing Council,http://opendatacommunities.org/id/london-borough-council/ealing,CHILDREN & ADULTS,1,SAFEGUARDING & SUPPORT - CIC,KINSHIP CARE (SOCIAL SERVICES),4662,,16/07/2019,22742303,262.04,REDACTED SENSITIVE SUPPLIER
Ealing Council,http://opendatacommunities.org/id/london-borough-council/ealing,CHILDREN & ADULTS,1,SAFEGUARDING & SUPPORT - CIC,SOCIAL SERVICES CONTRACTUAL CARERS ALLOWANCES,4380,,16/07/2019,22742208,519.81,REDACTED SENSITIVE SUPPLIER
Ealing Council,http://opendatacommunities.org/id/london-borough-council/ealing,CHILDREN & ADULTS,1,SAFEGUARDING & SUPPORT - CIC,SOCIAL SERVICES CONTRACTUAL CARERS ALLOWANCES,4380,,16/07/2019,22742212,262.04,REDACTED SENSITIVE SUPPLIER
Ealing Council,http://opendatacommunities.org/id/london-borough-council/ealing,CHILDREN & ADULTS,1,SAFEGUARDING & SUPPORT - CIC,SOCIAL SERVICES CONTRACTUAL CARERS ALLOWANCES,4380,,16/07/2019,22742212,262.04,REDACTED SENSITIVE SUPPLIER
Ealing Council,http://opendatacommunities.org/id/london-borough-council/ealing,CHILDREN & ADULTS,1,SAFEGUARDING & SUPPORT - CIC,SOCIAL SERVICES CONTRACTUAL CARERS ALLOWANCES,4380,,16/07/2019,22742212,262.04,REDACTED SENSITIVE SUPPLIER
Ealing Council,http://opendatacommunities.org/id/london-borough-council/ealing,CHILDREN & ADULTS,1,SAFEGUARDING & SUPPORT - CIC,SOCIAL SERVICES CONTRACTUAL CARERS ALLOWANCES,4380,,16/07/2019,22742220,262.04,REDACTED SENSITIVE SUPPLIER
Ealing Council,http://opendatacommunities.org/id/london-borough-council/ealing,CHILDREN & ADULTS,1,SAFEGUARDING & SUPPORT - CIC,SOCIAL SERVICES CONTRACTUAL CARERS ALLOWANCES,4380,,16/07/2019,22742330,700,REDACTED SENSITIVE SUPPLIER
Ealing Council,http://opendatacommunities.org/id/london-borough-council/ealing,CHILDREN & ADULTS,1,SAFEGUARDING & SUPPORT - CIC,SOCIAL SERVICES CONTRACTUAL CARERS ALLOWANCES,4380,,09/07/2019,22740797,282.27,REDACTED SENSITIVE SUPPLIER
Ealing Council,http://opendatacommunities.org/id/london-borough-council/ealing,CHILDREN & ADULTS,1,SAFEGUARDING & SUPPORT - CIC,SOCIAL SERVICES CONTRACTUAL CARERS ALLOWANCES,4380,,16/07/2019,22742172,262.04,REDACTED SENSITIVE SUPPLIER
Ealing Council,http://opendatacommunities.org/id/london-borough-council/ealing,CHILDREN & ADULTS,1,SAFEGUARDING & SUPPORT - CIC,SOCIAL SERVICES CONTRACTUAL CARERS ALLOWANCES,4380,,16/07/2019,22742181,700,REDACTED SENSITIVE SUPPLIER
Ealing Council,http://opendatacommunities.org/id/london-borough-council/ealing,CHILDREN & ADULTS,1,SAFEGUARDING & SUPPORT - CIC,KINSHIP CARE (SOCIAL SERVICES),4662,,16/07/2019,22742196,262.04,REDACTED SENSITIVE SUPPLIER
Ealing Council,http://opendatacommunities.org/id/london-borough-council/ealing,CHILDREN & ADULTS,1,SAFEGUARDING & SUPPORT - CIC,SOCIAL SERVICES CONTRACTUAL CARERS ALLOWANCES,4380,,16/07/2019,22742208,650.43,REDACTED SENSITIVE SUPPLIER
Ealing Council,http://opendatacommunities.org/id/london-borough-council/ealing,CHILDREN & ADULTS,1,SAFEGUARDING & SUPPORT - CIC,SOCIAL SERVICES CONTRACTUAL CARERS ALLOWANCES,4380,,16/07/2019,22742208,393.02,REDACTED SENSITIVE SUPPLIER
Ealing Council,http://opendatacommunities.org/id/london-borough-council/ealing,CHILDREN & ADULTS,1,SAFEGUARDING & SUPPORT - CIC,SOCIAL SERVICES CONTRACTUAL CARERS ALLOWANCES,4380,,09/07/2019,22740971,262.04,REDACTED SENSITIVE SUPPLIER
Ealing Council,http://opendatacommunities.org/id/london-borough-council/ealing,CHILDREN & ADULTS,1,SAFEGUARDING & SUPPORT - CIC,SOCIAL SERVICES CONTRACTUAL CARERS ALLOWANCES,4380,,09/07/2019,22740980,262.04,REDACTED SENSITIVE SUPPLIER
Ealing Council,http://opendatacommunities.org/id/london-borough-council/ealing,CHILDREN & ADULTS,1,SAFEGUARDING & SUPPORT - CIC,SOCIAL SERVICES CONTRACTUAL CARERS ALLOWANCES,4380,,09/07/2019,22740981,700,REDACTED SENSITIVE SUPPLIER
Ealing Council,http://opendatacommunities.org/id/london-borough-council/ealing,CHILDREN & ADULTS,1,SAFEGUARDING & SUPPORT - CIC,SOCIAL SERVICES CONTRACTUAL CARERS ALLOWANCES,4380,,09/07/2019,22740783,298.76,REDACTED SENSITIVE SUPPLIER
Ealing Council,http://opendatacommunities.org/id/london-borough-council/ealing,CHILDREN & ADULTS,1,SAFEGUARDING & SUPPORT - CIC,SOCIAL SERVICES CONTRACTUAL CARERS ALLOWANCES,4380,,09/07/2019,22740783,346.54,REDACTED SENSITIVE SUPPLIER
Ealing Council,http://opendatacommunities.org/id/london-borough-council/ealing,CHILDREN & ADULTS,1,SAFEGUARDING & SUPPORT - CIC,SOCIAL SERVICES CONTRACTUAL CARERS ALLOWANCES,4380,,09/07/2019,22740784,700,REDACTED SENSITIVE SUPPLIER
Ealing Council,http://opendatacommunities.org/id/london-borough-council/ealing,CHILDREN & ADULTS,1,SAFEGUARDING & SUPPORT - CIC,SOCIAL SERVICES CONTRACTUAL CARERS ALLOWANCES,4380,,09/07/2019,22740764,262.04,REDACTED SENSITIVE SUPPLIER
Ealing Council,http://opendatacommunities.org/id/london-borough-council/ealing,CHILDREN & ADULTS,1,SAFEGUARDING & SUPPORT - CIC,SOCIAL SERVICES CONTRACTUAL CARERS ALLOWANCES,4380,,09/07/2019,22740764,262.04,REDACTED SENSITIVE SUPPLIER
Ealing Council,http://opendatacommunities.org/id/london-borough-council/ealing,CHILDREN & ADULTS,1,SAFEGUARDING & SUPPORT - CIC,SOCIAL SERVICES CONTRACTUAL CARERS ALLOWANCES,4380,,09/07/2019,22740765,262.04,REDACTED SENSITIVE SUPPLIER
Ealing Council,http://opendatacommunities.org/id/london-borough-council/ealing,CHILDREN & ADULTS,1,SAFEGUARDING & SUPPORT - CIC,SOCIAL SERVICES CONTRACTUAL CARERS ALLOWANCES,4380,,09/07/2019,22740970,262.04,REDACTED SENSITIVE SUPPLIER
Ealing Council,http://opendatacommunities.org/id/london-borough-council/ealing,CHILDREN & ADULTS,1,SAFEGUARDING & SUPPORT - CIC,SOCIAL SERVICES CONTRACTUAL CARERS ALLOWANCES,4380,,09/07/2019,22740970,700,REDACTED SENSITIVE SUPPLIER
Ealing Council,http://opendatacommunities.org/id/london-borough-council/ealing,CHILDREN & ADULTS,1,SAFEGUARDING & SUPPORT - CIC,SOCIAL SERVICES CONTRACTUAL CARERS ALLOWANCES,4380,,09/07/2019,22740971,262.04,REDACTED SENSITIVE SUPPLIER
Ealing Council,http://opendatacommunities.org/id/london-borough-council/ealing,CHILDREN & ADULTS,1,SAFEGUARDING & SUPPORT - CIC,SOCIAL SERVICES CONTRACTUAL CARERS ALLOWANCES,4380,,09/07/2019,22740963,262.04,REDACTED SENSITIVE SUPPLIER
Ealing Council,http://opendatacommunities.org/id/london-borough-council/ealing,CHILDREN & ADULTS,1,SAFEGUARDING & SUPPORT - CIC,SOCIAL SERVICES CONTRACTUAL CARERS ALLOWANCES,4380,,09/07/2019,22740966,262.04,REDACTED SENSITIVE SUPPLIER
Ealing Council,http://opendatacommunities.org/id/london-borough-council/ealing,CHILDREN & ADULTS,1,SAFEGUARDING & SUPPORT - CIC,SOCIAL SERVICES CONTRACTUAL CARERS ALLOWANCES,4380,,09/07/2019,22740966,700,REDACTED SENSITIVE SUPPLIER
Ealing Council,http://opendatacommunities.org/id/london-borough-council/ealing,CHILDREN & ADULTS,1,SAFEGUARDING & SUPPORT - CIC,SOCIAL SERVICES CONTRACTUAL CARERS ALLOWANCES,4380,,09/07/2019,22740750,700,REDACTED SENSITIVE SUPPLIER
Ealing Council,http://opendatacommunities.org/id/london-borough-council/ealing,CHILDREN & ADULTS,1,SAFEGUARDING & SUPPORT - CIC,SOCIAL SERVICES CONTRACTUAL CARERS ALLOWANCES,4380,,09/07/2019,22740751,814.12,REDACTED SENSITIVE SUPPLIER
Ealing Council,http://opendatacommunities.org/id/london-borough-council/ealing,CHILDREN & ADULTS,1,SAFEGUARDING & SUPPORT - CIC,KINSHIP CARE (SOCIAL SERVICES),4662,,09/07/2019,22740755,262.04,REDACTED SENSITIVE SUPPLIER
Ealing Council,http://opendatacommunities.org/id/london-borough-council/ealing,CHILDREN & ADULTS,1,SAFEGUARDING & SUPPORT - CIC,SOCIAL SERVICES CONTRACTUAL CARERS ALLOWANCES,4380,,09/07/2019,22740896,700,REDACTED SENSITIVE SUPPLIER
Ealing Council,http://opendatacommunities.org/id/london-borough-council/ealing,CHILDREN & ADULTS,1,SAFEGUARDING & SUPPORT - CIC,SOCIAL SERVICES CONTRACTUAL CARERS ALLOWANCES,4380,,09/07/2019,22740695,700,REDACTED SENSITIVE SUPPLIER
Ealing Council,http://opendatacommunities.org/id/london-borough-council/ealing,CHILDREN & ADULTS,1,SAFEGUARDING & SUPPORT - CIC,SOCIAL SERVICES CONTRACTUAL CARERS ALLOWANCES,4380,,09/07/2019,22740738,262.04,REDACTED SENSITIVE SUPPLIER
Ealing Council,http://opendatacommunities.org/id/london-borough-council/ealing,CHILDREN & ADULTS,1,SAFEGUARDING & SUPPORT - CIC,SOCIAL SERVICES CONTRACTUAL CARERS ALLOWANCES,4380,,09/07/2019,22740783,298.76,REDACTED SENSITIVE SUPPLIER
Ealing Council,http://opendatacommunities.org/id/london-borough-council/ealing,CHILDREN & ADULTS,1,SAFEGUARDING & SUPPORT - CIC,SOCIAL SERVICES CONTRACTUAL CARERS ALLOWANCES,4380,,09/07/2019,22740783,303.98,REDACTED SENSITIVE SUPPLIER
Ealing Council,http://opendatacommunities.org/id/london-borough-council/ealing,CHILDREN & ADULTS,1,SAFEGUARDING & SUPPORT - CIC,SOCIAL SERVICES CONTRACTUAL CARERS ALLOWANCES,4380,,09/07/2019,22740960,393.02,REDACTED SENSITIVE SUPPLIER
Ealing Council,http://opendatacommunities.org/id/london-borough-council/ealing,CHILDREN & ADULTS,1,SAFEGUARDING & SUPPORT - CIC,SOCIAL SERVICES CONTRACTUAL CARERS ALLOWANCES,4380,,09/07/2019,22740674,786.12,REDACTED SENSITIVE SUPPLIER
Ealing Council,http://opendatacommunities.org/id/london-borough-council/ealing,CHILDREN & ADULTS,1,SAFEGUARDING & SUPPORT - CIC,SOCIAL SERVICES CONTRACTUAL CARERS ALLOWANCES,4380,,09/07/2019,22740674,262.04,REDACTED SENSITIVE SUPPLIER
Ealing Council,http://opendatacommunities.org/id/london-borough-council/ealing,CHILDREN & ADULTS,1,SAFEGUARDING & SUPPORT - CIC,SOCIAL SERVICES CONTRACTUAL CARERS ALLOWANCES,4380,,09/07/2019,22740674,298.76,REDACTED SENSITIVE SUPPLIER
Ealing Council,http://opendatacommunities.org/id/london-borough-council/ealing,CHILDREN & ADULTS,1,SAFEGUARDING & SUPPORT - CIC,SOCIAL SERVICES CONTRACTUAL CARERS ALLOWANCES,4380,,09/07/2019,22740896,700,REDACTED SENSITIVE SUPPLIER
Ealing Council,http://opendatacommunities.org/id/london-borough-council/ealing,CHILDREN & ADULTS,1,SAFEGUARDING & SUPPORT - CIC,SOCIAL SERVICES CONTRACTUAL CARERS ALLOWANCES,4380,,09/07/2019,22740966,700,REDACTED SENSITIVE SUPPLIER
Ealing Council,http://opendatacommunities.org/id/london-borough-council/ealing,CHILDREN & ADULTS,1,SAFEGUARDING & SUPPORT - CIC,KINSHIP CARE (SOCIAL SERVICES),4662,,09/07/2019,22740897,262.04,REDACTED SENSITIVE SUPPLIER
Ealing Council,http://opendatacommunities.org/id/london-borough-council/ealing,CHILDREN & ADULTS,1,SAFEGUARDING & SUPPORT - CIC,SOCIAL SERVICES CONTRACTUAL CARERS ALLOWANCES,4380,,09/07/2019,22740984,700,REDACTED SENSITIVE SUPPLIER
Ealing Council,http://opendatacommunities.org/id/london-borough-council/ealing,CHILDREN & ADULTS,1,SAFEGUARDING & SUPPORT - CIC,SOCIAL SERVICES CONTRACTUAL CARERS ALLOWANCES,4380,,09/07/2019,22740984,262.04,REDACTED SENSITIVE SUPPLIER
Ealing Council,http://opendatacommunities.org/id/london-borough-council/ealing,CHILDREN & ADULTS,1,SAFEGUARDING & SUPPORT - CIC,KINSHIP CARE (SOCIAL SERVICES),4662,,09/07/2019,22740648,262.04,REDACTED SENSITIVE SUPPLIER
Ealing Council,http://opendatacommunities.org/id/london-borough-council/ealing,CHILDREN & ADULTS,1,SAFEGUARDING & SUPPORT - CIC,SOCIAL SERVICES CONTRACTUAL CARERS ALLOWANCES,4380,,09/07/2019,22740662,306,REDACTED SENSITIVE SUPPLIER
Ealing Council,http://opendatacommunities.org/id/london-borough-council/ealing,CHILDREN & ADULTS,1,SAFEGUARDING & SUPPORT - CIC,SOCIAL SERVICES CONTRACTUAL CARERS ALLOWANCES,4380,,09/07/2019,22740665,262.04,REDACTED SENSITIVE SUPPLIER
Ealing Council,http://opendatacommunities.org/id/london-borough-council/ealing,CHILDREN & ADULTS,1,SAFEGUARDING & SUPPORT - CIC,SOCIAL SERVICES CONTRACTUAL CARERS ALLOWANCES,4380,,09/07/2019,22740665,262.04,REDACTED SENSITIVE SUPPLIER
Ealing Council,http://opendatacommunities.org/id/london-borough-council/ealing,CHILDREN & ADULTS,1,SAFEGUARDING & SUPPORT - CIC,SOCIAL SERVICES CONTRACTUAL CARERS ALLOWANCES,4380,,09/07/2019,22740713,700,REDACTED SENSITIVE SUPPLIER
Ealing Council,http://opendatacommunities.org/id/london-borough-council/ealing,CAPITAL SCHEMES,K,ENVIRONMENT & LEISURE,CAPITAL - CIS TAX DEDUCTIONS,7250,,07/07/2019,40869507,2000,CENTURIAN SURFACING LTD - T/A CENTURIAN SERVICES
Ealing Council,http://opendatacommunities.org/id/london-borough-council/ealing,CAPITAL SCHEMES,K,ENVIRONMENT & LEISURE,CAPITAL - CONTRACT PAYMENTS,7200,,31/05/2019,40867637,73280.14,DMA Signs Limited
Ealing Council,http://opendatacommunities.org/id/london-borough-council/ealing,CAPITAL SCHEMES,K,REGENERATION,CAPITAL - CONTRACT PAYMENTS,7200,,01/07/2019,40870939,1820,REDMAN PARTNERSHIP LLP
Ealing Council,http://opendatacommunities.org/id/london-borough-council/ealing,CAPITAL SCHEMES,K,REGENERATION,CAPITAL - CONTRACT PAYMENTS,7200,,10/04/2019,40868229,2890,ON CENTRE SURVEYS LTD
Ealing Council,http://opendatacommunities.org/id/london-borough-council/ealing,CAPITAL SCHEMES,K,REGENERATION,CAPITAL - CONTRACT PAYMENTS,7200,,13/06/2019,40870793,1980,GUNNERSBURY ESTATE (2026) CIC
Ealing Council,http://opendatacommunities.org/id/london-borough-council/ealing,CAPITAL SCHEMES,K,ENVIRONMENT & LEISURE,CAPITAL - CONTRACT PAYMENTS,7200,,11/06/2019,40869828,4400,REDACTED SENSITIVE SUPPLIER
Ealing Council,http://opendatacommunities.org/id/london-borough-council/ealing,PLACE,6,HRA MANAGEMENT,SUBSCRIPTIONS,3600,,01/04/2019,40872082,550,LONDON TELECARE LTD T/a UKTELEHEALTHCARE
Ealing Council,http://opendatacommunities.org/id/london-borough-council/ealing,PLACE,6,HOUSING SUPPLY,RECRUITMENT COSTS,510,,16/05/2019,40872277,4865,PENNA PLC
Ealing Council,http://opendatacommunities.org/id/london-borough-council/ealing,PLACE,6,HOUSING  DEMAND,RENTS,1200,,03/06/2019,40868822,10881,CENTREMARK PROPERTIES LIMITED
Ealing Council,http://opendatacommunities.org/id/london-borough-council/ealing,PLACE,6,HOUSING  DEMAND,RENTS,1200,,24/05/2019,40870458,31944.64,CATALYST HOUSING LTD
Ealing Council,http://opendatacommunities.org/id/london-borough-council/ealing,PLACE,6,HOUSING  DEMAND,REPAIR AND MAINTENANCE,1410,,25/07/2019,40872882,340,R&R SECURITY SERVICES LIMITED
Ealing Council,http://opendatacommunities.org/id/london-borough-council/ealing,PLACE,6,HOUSING  DEMAND,SECURITY SERVICES,2760,,17/06/2019,40873291,1211,PREVENTION & DETECTION (HOLDINGS) LIMITED
Ealing Council,http://opendatacommunities.org/id/london-borough-council/ealing,PLACE,6,HOUSING  DEMAND,SECURITY SERVICES,2760,,10/06/2019,40870871,1211,PREVENTION & DETECTION (HOLDINGS) LIMITED
Ealing Council,http://opendatacommunities.org/id/london-borough-council/ealing,PLACE,6,HOUSING  DEMAND,GROUNDS MAINTENANCE,1470,,26/03/2019,40869319,1047.9,Sundry Supplier - Regeneration & Housing
Ealing Council,http://opendatacommunities.org/id/london-borough-council/ealing,PLACE,6,HOUSING  DEMAND,SECURITY SERVICES,2760,,03/06/2019,40871925,1400,PREVENTION & DETECTION (HOLDINGS) LIMITED
Ealing Council,http://opendatacommunities.org/id/london-borough-council/ealing,PLACE,6,HOUSING  DEMAND,GROUNDS MAINTENANCE,1470,,29/03/2019,40869318,495,Sundry Supplier - Regeneration & Housing
Ealing Council,http://opendatacommunities.org/id/london-borough-council/ealing,PLACE,6,HOUSING  DEMAND,FURNITURE,3360,,28/06/2019,40870916,530,KENWAYS FURNITURE
Ealing Council,http://opendatacommunities.org/id/london-borough-council/ealing,PLACE,6,HOUSING  DEMAND,FURNITURE,3360,,04/03/2019,40870942,890,KENWAYS FURNITURE
Ealing Council,http://opendatacommunities.org/id/london-borough-council/ealing,PLACE,6,HOUSING  DEMAND,FURNITURE,3360,,14/05/2019,40870085,280,KENWAYS FURNITURE
Ealing Council,http://opendatacommunities.org/id/london-borough-council/ealing,PLACE,6,HOUSING  DEMAND,FURNITURE,3360,,31/05/2019,40870089,290,KENWAYS FURNITURE
Ealing Council,http://opendatacommunities.org/id/london-borough-council/ealing,PLACE,6,HOUSING  DEMAND,SECURITY SERVICES,2760,,01/07/2019,40871475,1211,PREVENTION & DETECTION (HOLDINGS) LIMITED
Ealing Council,http://opendatacommunities.org/id/london-borough-council/ealing,PLACE,6,HOUSING  DEMAND,SECURITY SERVICES,2760,,07/05/2019,40871477,1211,PREVENTION & DETECTION (HOLDINGS) LIMITED
Ealing Council,http://opendatacommunities.org/id/london-borough-council/ealing,PLACE,6,HOUSING  DEMAND,SECURITY SERVICES,2760,,20/05/2019,40870132,1211,PREVENTION & DETECTION (HOLDINGS) LIMITED
Ealing Council,http://opendatacommunities.org/id/london-borough-council/ealing,PLACE,6,HOUSING  DEMAND,SECURITY SERVICES,2760,,28/05/2019,40870134,1211,PREVENTION & DETECTION (HOLDINGS) LIMITED
Ealing Council,http://opendatacommunities.org/id/london-borough-council/ealing,PLACE,6,HOUSING  DEMAND,FURNITURE,3360,,03/06/2018,40871892,280,KENWAYS FURNITURE
Ealing Council,http://opendatacommunities.org/id/london-borough-council/ealing,PLACE,6,HOUSING  DEMAND,FURNITURE,3360,,03/06/2018,40871895,290,KENWAYS FURNITURE
Ealing Council,http://opendatacommunities.org/id/london-borough-council/ealing,CHILDREN & ADULTS,1,EARLY YEARS CHILDCARE & SAFE,TRAINING,80,,10/04/2019,40868587,395,GOVNET COMMUNICATIONS
Ealing Council,http://opendatacommunities.org/id/london-borough-council/ealing,CHILDREN & ADULTS,1,EARLY YEARS CHILDCARE & SAFE,MINOR EQUIP PURCHASE,3320,,05/07/2019,40871481,476.99,INSIGHT DIRECT (UK) LTD
Ealing Council,http://opendatacommunities.org/id/london-borough-council/ealing,CHILDREN & ADULTS,1,EARLY YEARS CHILDCARE & SAFE,CLEANING CONTRACT,1300,,30/06/2019,40869059,259.48,ASHLEY CLEANING SERVICES LIMITED
Ealing Council,http://opendatacommunities.org/id/london-borough-council/ealing,CHILDREN & ADULTS,1,EARLY YEARS CHILDCARE & SAFE,TRAINING,80,,19/06/2019,40873352,6000,GRETCHEN PRECEY SOC WK SCS LTD
Ealing Council,http://opendatacommunities.org/id/london-borough-council/ealing,CHILDREN & ADULTS,1,EARLY YEARS CHILDCARE & SAFE,CHILDCARE PROVISION,4690,,05/06/2019,40869316,325,JULIA HORNE T/A JUMA KIDS MUSIC LTD
Ealing Council,http://opendatacommunities.org/id/london-borough-council/ealing,CHILDREN & ADULTS,1,EARLY YEARS CHILDCARE & SAFE,SPECIALIST TECHNICAL CONTRACTORS,4050,,05/06/2019,40869315,500,JULIA HORNE T/A JUMA KIDS MUSIC LTD
Ealing Council,http://opendatacommunities.org/id/london-borough-council/ealing,CHILDREN & ADULTS,1,EARLY YEARS CHILDCARE & SAFE,CLEANING CONTRACT,1300,,31/05/2019,40868940,519,ASHLEY CLEANING SERVICES LIMITED
Ealing Council,http://opendatacommunities.org/id/london-borough-council/ealing,CHILDREN & ADULTS,1,EARLY YEARS CHILDCARE & SAFE,CLEANING CONTRACT,1300,,30/06/2019,40869058,519,ASHLEY CLEANING SERVICES LIMITED
Ealing Council,http://opendatacommunities.org/id/london-borough-council/ealing,CHILDREN & ADULTS,1,SCHOOLS EFFECTIVENESS,COMP SOFTWARE,3210,,01/07/2019,40869192,-535.5,EDUCARE FAMILY SUPPORT SERVICES LTD
Ealing Council,http://opendatacommunities.org/id/london-borough-council/ealing,PLACE,6,HRA REGENERATION,SURVEYS & CONSULTATION,2500,,22/05/2019,40872422,900,Sundry Supplier - Regeneration & Housing
Ealing Council,http://opendatacommunities.org/id/london-borough-council/ealing,PLACE,6,HRA REGENERATION,SURVEYS & CONSULTATION,2500,,22/05/2019,40872423,900,Sundry Supplier - Regeneration & Housing
Ealing Council,http://opendatacommunities.org/id/london-borough-council/ealing,PLACE,6,HRA REGENERATION,SURVEYS & CONSULTATION,2500,,22/05/2019,40872424,840,Sundry Supplier - Regeneration & Housing
Ealing Council,http://opendatacommunities.org/id/london-borough-council/ealing,CHILDREN & ADULTS,1,SCHOOLS PFI,PAYMENTS TO CONTRACTORS,4000,,01/07/2019,40868931,508710.76,EALING SCHOOLS PARTNERSHIP LTD
Ealing Council,http://opendatacommunities.org/id/london-borough-council/ealing,CHILDREN & ADULTS,1,SCHOOLS PFI,PAYMENTS TO CONTRACTORS,4000,,01/07/2019,40868932,10371.46,EALING SCHOOLS PARTNERSHIP LTD
Ealing Council,http://opendatacommunities.org/id/london-borough-council/ealing,CHILDREN & ADULTS,1,EARLY YEARS CHILDCARE & SAFE,PAYMENTS TO CONTRACTORS,4000,,23/05/2019,40870166,500,REU
Ealing Council,http://opendatacommunities.org/id/london-borough-council/ealing,CHILDREN & ADULTS,1,EARLY YEARS CHILDCARE & SAFE,PAYMENTS TO CONTRACTORS,4000,,06/03/2019,40870168,500,REU
Ealing Council,http://opendatacommunities.org/id/london-borough-council/ealing,CHILDREN & ADULTS,1,EARLY YEARS CHILDCARE & SAFE,PAYMENTS TO CONTRACTORS,4000,,15/03/2019,40870169,260,REU
Ealing Council,http://opendatacommunities.org/id/london-borough-council/ealing,CHILDREN & ADULTS,1,SAFEGUARDING & SUPPORT - CIN,SECTION 17 NRPF,4297,,01/05/2019,40866456,420,SD BUILDERS LIMITED
Ealing Council,http://opendatacommunities.org/id/london-borough-council/ealing,CHILDREN & ADULTS,1,SAFEGUARDING & SUPPORT - CIN,SECTION 17 NRPF,4297,,01/06/2019,40870966,420,SD BUILDERS LIMITED
Ealing Council,http://opendatacommunities.org/id/london-borough-council/ealing,CHILDREN & ADULTS,1,SAFEGUARDING & SUPPORT - CIN,SECTION 17 NRPF,4297,,28/05/2019,40867663,1505,CENTREMARK PROPERTIES LIMITED
Ealing Council,http://opendatacommunities.org/id/london-borough-council/ealing,CHILDREN & ADULTS,1,SAFEGUARDING & SUPPORT - CIN,SECTION 17 NRPF,4297,,28/05/2019,40867823,572,CENTREMARK PROPERTIES LIMITED
Ealing Council,http://opendatacommunities.org/id/london-borough-council/ealing,CHILDREN & ADULTS,1,SAFEGUARDING & SUPPORT - CIN,SECTION 17 NRPF,4297,,20/06/2019,40867230,682.08,REDACTED SENSITIVE SUPPLIER
Ealing Council,http://opendatacommunities.org/id/london-borough-council/ealing,CHILDREN & ADULTS,1,SAFEGUARDING & SUPPORT - CIN,SECTION 17 NRPF,4297,,20/06/2019,40867230,493.92,REDACTED SENSITIVE SUPPLIER
Ealing Council,http://opendatacommunities.org/id/london-borough-council/ealing,CHILDREN & ADULTS,1,SAFEGUARDING & SUPPORT - CIN,SECTION 17 NRPF,4297,,20/06/2019,40867234,511.56,REDACTED SENSITIVE SUPPLIER
Ealing Council,http://opendatacommunities.org/id/london-borough-council/ealing,CHILDREN & ADULTS,1,SAFEGUARDING & SUPPORT - CIN,SECTION 17 NRPF,4297,,20/06/2019,40867234,370.44,REDACTED SENSITIVE SUPPLIER
Ealing Council,http://opendatacommunities.org/id/london-borough-council/ealing,CHILDREN & ADULTS,1,"PLANNING, COMMISSIONING & PARTNERSHIPS",CHILDRENS SERVICES ACCOMMODATION ACTON,5790,,30/05/2019,40868281,20970,HM PRISON & PROBATION SERVICE
Ealing Council,http://opendatacommunities.org/id/london-borough-council/ealing,CHILDREN & ADULTS,1,"PLANNING, COMMISSIONING & PARTNERSHIPS",CHILDRENS SERVICES ACCOMMODATION ACTON,5790,,30/05/2019,40868283,18360,HM PRISON & PROBATION SERVICE
Ealing Council,http://opendatacommunities.org/id/london-borough-council/ealing,CHILDREN & ADULTS,1,"PLANNING, COMMISSIONING & PARTNERSHIPS",CHILDRENS SERVICES ACCOMMODATION ACTON,5790,,30/05/2019,40868282,6006,HM PRISON & PROBATION SERVICE
Ealing Council,http://opendatacommunities.org/id/london-borough-council/ealing,CHILDREN & ADULTS,1,SAFEGUARDING & SUPPORT - CIN,SECTION 17,4290,,03/04/2019,40869747,1260,CLUBS 4 KIDS
Ealing Council,http://opendatacommunities.org/id/london-borough-council/ealing,CHILDREN & ADULTS,1,SAFEGUARDING & SUPPORT - CIN,SECTION 17 NRPF,4297,,20/05/2019,40872178,1800,CENTREMARK PROPERTIES LIMITED
Ealing Council,http://opendatacommunities.org/id/london-borough-council/ealing,CHILDREN & ADULTS,1,SAFEGUARDING & SUPPORT - CIN,SECTION 17,4290,,04/04/2019,40872853,972,HS BIRK T/A ROSEWOOD PARK LTD
Ealing Council,http://opendatacommunities.org/id/london-borough-council/ealing,CHILDREN & ADULTS,1,SAFEGUARDING & SUPPORT - CIN,SECTION 17 NRPF,4297,,31/05/2019,40872686,972,ALTWOOD HOUSING LTD
Ealing Council,http://opendatacommunities.org/id/london-borough-council/ealing,CHILDREN & ADULTS,1,SAFEGUARDING & SUPPORT - CIC,SECTION 17,4290,,13/06/2019,40870907,320,ALERE TOXICOLOGY PLC
Ealing Council,http://opendatacommunities.org/id/london-borough-council/ealing,CHILDREN & ADULTS,1,SAFEGUARDING & SUPPORT - CIC,CHILDRENS SERVICES ACCOMMODATION ACTON,5790,,01/06/2018,40870963,375,SD BUILDERS LIMITED
Ealing Council,http://opendatacommunities.org/id/london-borough-council/ealing,CHILDREN & ADULTS,1,SAFEGUARDING & SUPPORT - CIC,CHILDRENS SERVICES ACCOMMODATION ACTON,5790,,01/06/2019,40870964,375,SD BUILDERS LIMITED
Ealing Council,http://opendatacommunities.org/id/london-borough-council/ealing,CHILDREN & ADULTS,1,SAFEGUARDING & SUPPORT - CIC,CHILDRENS SERVICES ACCOMMODATION ACTON,5790,,07/06/2019,40869827,1400,SATIN PROPERTIES LTD
Ealing Council,http://opendatacommunities.org/id/london-borough-council/ealing,CHILDREN & ADULTS,1,SAFEGUARDING & SUPPORT - CIC,CHILDRENS SERVICES ACCOMMODATION ACTON,5790,,15/05/2019,40868406,400,SD BUILDERS LIMITED
Ealing Council,http://opendatacommunities.org/id/london-borough-council/ealing,CHILDREN & ADULTS,1,SAFEGUARDING & SUPPORT - CIC,CHILDRENS SERVICES ACCOMMODATION ACTON,5790,,28/05/2019,40868022,562.8,REDACTED SENSITIVE SUPPLIER
Ealing Council,http://opendatacommunities.org/id/london-borough-council/ealing,CHILDREN & ADULTS,1,SAFEGUARDING & SUPPORT - CIC,CHILDRENS SERVICES ACCOMMODATION ACTON,5790,,28/05/2019,40868022,277.2,REDACTED SENSITIVE SUPPLIER
Ealing Council,http://opendatacommunities.org/id/london-borough-council/ealing,CHILDREN & ADULTS,1,SAFEGUARDING & SUPPORT - CIC,CHILDRENS SERVICES ACCOMMODATION ACTON,5790,,30/04/2019,40868098,422.1,REDACTED SENSITIVE SUPPLIER
Ealing Council,http://opendatacommunities.org/id/london-borough-council/ealing,CHILDREN & ADULTS,1,SAFEGUARDING & SUPPORT - CIC,VEHICLE HIRE,2010,,31/05/2019,40868416,1050,HATS GROUP LTD T/A TRANSPORT SERVICES (HATS)
Ealing Council,http://opendatacommunities.org/id/london-borough-council/ealing,CHILDREN & ADULTS,1,SAFEGUARDING & SUPPORT - CIC,VEHICLE HIRE,2010,,14/05/2019,40868879,270,MANOR WHEELS
Ealing Council,http://opendatacommunities.org/id/london-borough-council/ealing,CHILDREN & ADULTS,1,SAFEGUARDING & SUPPORT - CIC,CONFERENCE EXPENSES,3520,,28/05/2019,40870943,3420,ACTON TOWN HOTEL
Ealing Council,http://opendatacommunities.org/id/london-borough-council/ealing,PLACE,6,"ARTS, HERITAGE AND LIBRARIES",GRANTS,5010,,29/07/2019,40873047,500,Sundry Supplier - Environment & Customer Services
Ealing Council,http://opendatacommunities.org/id/london-borough-council/ealing,PLACE,6,"ARTS, HERITAGE AND LIBRARIES",GRANTS,5010,,10/06/2019,40869960,1000,SOUTHALL COMMUNITY ACTION GROUP
Ealing Council,http://opendatacommunities.org/id/london-borough-council/ealing,PLACE,6,PARKING,PARKING (ON STREET),8212,,15/07/2019,40870857,585,Sundry Supplier - Environment & Customer Services
Ealing Council,http://opendatacommunities.org/id/london-borough-council/ealing,PLACE,6,HIGHWAYS,CONTRACT PAYMENTS -HIGHWAYS,4005,,12/07/2019,40872681,1778.61,MURRILL CONSTRUCTION LIMITED
Ealing Council,http://opendatacommunities.org/id/london-borough-council/ealing,PLACE,6,HIGHWAYS,CONTRACT PAYMENTS -HIGHWAYS,4005,,12/07/2019,40872684,3431.33,MURRILL CONSTRUCTION LIMITED
Ealing Council,http://opendatacommunities.org/id/london-borough-council/ealing,PLACE,6,HIGHWAYS,CONTRACT PAYMENTS -HIGHWAYS,4005,,10/06/2019,40869675,6825.15,MURRILL CONSTRUCTION LIMITED
Ealing Council,http://opendatacommunities.org/id/london-borough-council/ealing,PLACE,6,HIGHWAYS,CONTRACT PAYMENTS -HIGHWAYS,4005,,10/06/2019,40869677,4455.5,MURRILL CONSTRUCTION LIMITED
Ealing Council,http://opendatacommunities.org/id/london-borough-council/ealing,PLACE,6,HIGHWAYS,CONTRACT PAYMENTS -HIGHWAYS,4005,,01/06/2019,40870319,1404,LOBEG
Ealing Council,http://opendatacommunities.org/id/london-borough-council/ealing,PLACE,6,HIGHWAYS,CONTRACT PAYMENTS -HIGHWAYS,4005,,17/04/2019,40872651,1421.5,WSP UK LTD T/A WSP PARSONS BRINCKERHOFF
Ealing Council,http://opendatacommunities.org/id/london-borough-council/ealing,PLACE,6,HIGHWAYS,CONTRACT PAYMENTS -HIGHWAYS,4005,,17/04/2019,40872652,568.6,WSP UK LTD T/A WSP PARSONS BRINCKERHOFF
Ealing Council,http://opendatacommunities.org/id/london-borough-council/ealing,PLACE,6,HIGHWAYS,SPECIALIST TECHNICAL CONTRACTORS,4050,,17/04/2019,40872653,625.46,WSP UK LTD T/A WSP PARSONS BRINCKERHOFF
Ealing Council,http://opendatacommunities.org/id/london-borough-council/ealing,PLACE,6,HIGHWAYS,LICENCES,2710,,27/05/2019,40868456,289.8,VODAFONE LTD
Ealing Council,http://opendatacommunities.org/id/london-borough-council/ealing,CHILDREN & ADULTS,1,SAFEGUARDING & SUPPORT - CIC,SOCIAL SERVICES CONTRACTUAL CARERS ALLOWANCES,4380,,09/07/2019,22740713,262.04,REDACTED SENSITIVE SUPPLIER
